Workbook

Sheet MarginingExample
D8: Case 1 | F8: Case 2 | J8: Case 1 | K8: Case 2
C9: IR | D9: ∆MTM | E9: IM | F9: ∆MTM | G9: IM | I9: Alpha | J9: 0.99 | K9: 0.99
B10: 0 | C10: 0.03 | I10: Metric | J10: VAR | K10: ES
B11: =B10+1 -> 1 | C11: 0.03019931752 | D11: =IF(ReturnsType="Relative", (C11/C10-1)*IRNow1*ApproxDuration(C11,5), (C11-C10)*ApproxDuration(C11,5)) -> 0.0008324956896 | F11: =IF(ReturnsType2="Relative", (C11/C10-1)*IRNow1*ApproxDuration(C11,5), (C11-C10)*ApproxDuration(C11,5)) -> 0.0008324956896 | I11: Returns | J11: Relative | K11: Relative
B12: =B11+1 -> 2 | C12: 0.0304584872 | D12: =IF(ReturnsType="Relative", (C12/C11-1)*IRNow1*ApproxDuration(C12,5), (C12-C11)*ApproxDuration(C12,5)) -> 0.001074658725 | F12: =IF(ReturnsType2="Relative", (C12/C11-1)*IRNow1*ApproxDuration(C12,5), (C12-C11)*ApproxDuration(C12,5)) -> 0.001074658725 | I12: Data window | J12: 1250 | K12: 1250
B13: 3 | C13: 0.02827993809 | D13: =IF(ReturnsType="Relative", (C13/C12-1)*IRNow1*ApproxDuration(C13,5), (C13-C12)*ApproxDuration(C13,5)) -> -0.009004300568 | F13: =IF(ReturnsType2="Relative", (C13/C12-1)*IRNow1*ApproxDuration(C13,5), (C13-C12)*ApproxDuration(C13,5)) -> -0.009004300568 | I13: Stress window | J13: 0 | K13: 0
B14: 4 | C14: 0.03130660858 | D14: =IF(ReturnsType="Relative", (C14/C13-1)*IRNow1*ApproxDuration(C14,5), (C14-C13)*ApproxDuration(C14,5)) -> 0.01337436086 | F14: =IF(ReturnsType2="Relative", (C14/C13-1)*IRNow1*ApproxDuration(C14,5), (C14-C13)*ApproxDuration(C14,5)) -> 0.01337436086
B15: 5 | C15: 0.03127469017 | D15: =IF(ReturnsType="Relative", (C15/C14-1)*IRNow1*ApproxDuration(C15,5), (C15-C14)*ApproxDuration(C15,5)) -> -0.0001274163716 | F15: =IF(ReturnsType2="Relative", (C15/C14-1)*IRNow1*ApproxDuration(C15,5), (C15-C14)*ApproxDuration(C15,5)) -> -0.0001274163716
B16: 6 | C16: 0.03143748788 | D16: =IF(ReturnsType="Relative", (C16/C15-1)*IRNow1*ApproxDuration(C16,5), (C16-C15)*ApproxDuration(C16,5)) -> 0.0006502842276 | F16: =IF(ReturnsType2="Relative", (C16/C15-1)*IRNow1*ApproxDuration(C16,5), (C16-C15)*ApproxDuration(C16,5)) -> 0.0006502842276
B17: 7 | C17: 0.03287050034 | D17: =IF(ReturnsType="Relative", (C17/C16-1)*IRNow1*ApproxDuration(C17,5), (C17-C16)*ApproxDuration(C17,5)) -> 0.005674608343 | F17: =IF(ReturnsType2="Relative", (C17/C16-1)*IRNow1*ApproxDuration(C17,5), (C17-C16)*ApproxDuration(C17,5)) -> 0.005674608343
B18: 8 | C18: 0.03261984543 | D18: =IF(ReturnsType="Relative", (C18/C17-1)*IRNow1*ApproxDuration(C18,5), (C18-C17)*ApproxDuration(C18,5)) -> -0.0009498791891 | F18: =IF(ReturnsType2="Relative", (C18/C17-1)*IRNow1*ApproxDuration(C18,5), (C18-C17)*ApproxDuration(C18,5)) -> -0.0009498791891
B19: 9 | C19: 0.03206801492 | D19: =IF(ReturnsType="Relative", (C19/C18-1)*IRNow1*ApproxDuration(C19,5), (C19-C18)*ApproxDuration(C19,5)) -> -0.002110110957 | F19: =IF(ReturnsType2="Relative", (C19/C18-1)*IRNow1*ApproxDuration(C19,5), (C19-C18)*ApproxDuration(C19,5)) -> -0.002110110957
B20: 10 | C20: 0.03236893177 | D20: =IF(ReturnsType="Relative", (C20/C19-1)*IRNow1*ApproxDuration(C20,5), (C20-C19)*ApproxDuration(C20,5)) -> 0.001169601612 | F20: =IF(ReturnsType2="Relative", (C20/C19-1)*IRNow1*ApproxDuration(C20,5), (C20-C19)*ApproxDuration(C20,5)) -> 0.001169601612
B21: 11 | C21: 0.03333653361 | D21: =IF(ReturnsType="Relative", (C21/C20-1)*IRNow1*ApproxDuration(C21,5), (C21-C20)*ApproxDuration(C21,5)) -> 0.00371714961 | F21: =IF(ReturnsType2="Relative", (C21/C20-1)*IRNow1*ApproxDuration(C21,5), (C21-C20)*ApproxDuration(C21,5)) -> 0.00371714961
B22: 12 | C22: 0.03400975423 | D22: =IF(ReturnsType="Relative", (C22/C21-1)*IRNow1*ApproxDuration(C22,5), (C22-C21)*ApproxDuration(C22,5)) -> 0.002507080381 | F22: =IF(ReturnsType2="Relative", (C22/C21-1)*IRNow1*ApproxDuration(C22,5), (C22-C21)*ApproxDuration(C22,5)) -> 0.002507080381
B23: 13 | C23: 0.03410759612 | D23: =IF(ReturnsType="Relative", (C23/C22-1)*IRNow1*ApproxDuration(C23,5), (C23-C22)*ApproxDuration(C23,5)) -> 0.0003570667284 | F23: =IF(ReturnsType2="Relative", (C23/C22-1)*IRNow1*ApproxDuration(C23,5), (C23-C22)*ApproxDuration(C23,5)) -> 0.0003570667284
B24: 14 | C24: 0.03411081152 | D24: =IF(ReturnsType="Relative", (C24/C23-1)*IRNow1*ApproxDuration(C24,5), (C24-C23)*ApproxDuration(C24,5)) -> 1.170061931e-05 | F24: =IF(ReturnsType2="Relative", (C24/C23-1)*IRNow1*ApproxDuration(C24,5), (C24-C23)*ApproxDuration(C24,5)) -> 1.170061931e-05
B25: 15 | C25: 0.03538191944 | D25: =IF(ReturnsType="Relative", (C25/C24-1)*IRNow1*ApproxDuration(C25,5), (C25-C24)*ApproxDuration(C25,5)) -> 0.004610785317 | F25: =IF(ReturnsType2="Relative", (C25/C24-1)*IRNow1*ApproxDuration(C25,5), (C25-C24)*ApproxDuration(C25,5)) -> 0.004610785317
B26: 16 | C26: 0.03539933168 | D26: =IF(ReturnsType="Relative", (C26/C25-1)*IRNow1*ApproxDuration(C26,5), (C26-C25)*ApproxDuration(C26,5)) -> 6.088906375e-05 | F26: =IF(ReturnsType2="Relative", (C26/C25-1)*IRNow1*ApproxDuration(C26,5), (C26-C25)*ApproxDuration(C26,5)) -> 6.088906375e-05
B27: 17 | C27: 0.03594388567 | D27: =IF(ReturnsType="Relative", (C27/C26-1)*IRNow1*ApproxDuration(C27,5), (C27-C26)*ApproxDuration(C27,5)) -> 0.001900808611 | F27: =IF(ReturnsType2="Relative", (C27/C26-1)*IRNow1*ApproxDuration(C27,5), (C27-C26)*ApproxDuration(C27,5)) -> 0.001900808611
B28: 18 | C28: 0.03489431012 | D28: =IF(ReturnsType="Relative", (C28/C27-1)*IRNow1*ApproxDuration(C28,5), (C28-C27)*ApproxDuration(C28,5)) -> -0.003617321671 | F28: =IF(ReturnsType2="Relative", (C28/C27-1)*IRNow1*ApproxDuration(C28,5), (C28-C27)*ApproxDuration(C28,5)) -> -0.003617321671
B29: 19 | C29: 0.0344574532 | D29: =IF(ReturnsType="Relative", (C29/C28-1)*IRNow1*ApproxDuration(C29,5), (C29-C28)*ApproxDuration(C29,5)) -> -0.001552543121 | F29: =IF(ReturnsType2="Relative", (C29/C28-1)*IRNow1*ApproxDuration(C29,5), (C29-C28)*ApproxDuration(C29,5)) -> -0.001552543121
B30: 20 | C30: 0.03435723908 | D30: =IF(ReturnsType="Relative", (C30/C29-1)*IRNow1*ApproxDuration(C30,5), (C30-C29)*ApproxDuration(C30,5)) -> -0.0003607534495 | F30: =IF(ReturnsType2="Relative", (C30/C29-1)*IRNow1*ApproxDuration(C30,5), (C30-C29)*ApproxDuration(C30,5)) -> -0.0003607534495
B31: 21 | C31: 0.03390403084 | D31: =IF(ReturnsType="Relative", (C31/C30-1)*IRNow1*ApproxDuration(C31,5), (C31-C30)*ApproxDuration(C31,5)) -> -0.001638031915 | F31: =IF(ReturnsType2="Relative", (C31/C30-1)*IRNow1*ApproxDuration(C31,5), (C31-C30)*ApproxDuration(C31,5)) -> -0.001638031915
B32: 22 | C32: 0.03385469328 | D32: =IF(ReturnsType="Relative", (C32/C31-1)*IRNow1*ApproxDuration(C32,5), (C32-C31)*ApproxDuration(C32,5)) -> -0.0001807262302 | F32: =IF(ReturnsType2="Relative", (C32/C31-1)*IRNow1*ApproxDuration(C32,5), (C32-C31)*ApproxDuration(C32,5)) -> -0.0001807262302
B33: 23 | C33: 0.03379001348 | D33: =IF(ReturnsType="Relative", (C33/C32-1)*IRNow1*ApproxDuration(C33,5), (C33-C32)*ApproxDuration(C33,5)) -> -0.0002373082909 | F33: =IF(ReturnsType2="Relative", (C33/C32-1)*IRNow1*ApproxDuration(C33,5), (C33-C32)*ApproxDuration(C33,5)) -> -0.0002373082909
B34: 24 | C34: 0.03432153842 | D34: =IF(ReturnsType="Relative", (C34/C33-1)*IRNow1*ApproxDuration(C34,5), (C34-C33)*ApproxDuration(C34,5)) -> 0.00195136127 | F34: =IF(ReturnsType2="Relative", (C34/C33-1)*IRNow1*ApproxDuration(C34,5), (C34-C33)*ApproxDuration(C34,5)) -> 0.00195136127
B35: 25 | C35: 0.03355545007 | D35: =IF(ReturnsType="Relative", (C35/C34-1)*IRNow1*ApproxDuration(C35,5), (C35-C34)*ApproxDuration(C35,5)) -> -0.002774104219 | F35: =IF(ReturnsType2="Relative", (C35/C34-1)*IRNow1*ApproxDuration(C35,5), (C35-C34)*ApproxDuration(C35,5)) -> -0.002774104219
B36: 26 | C36: 0.03461828221 | D36: =IF(ReturnsType="Relative", (C36/C35-1)*IRNow1*ApproxDuration(C36,5), (C36-C35)*ApproxDuration(C36,5)) -> 0.003926368683 | F36: =IF(ReturnsType2="Relative", (C36/C35-1)*IRNow1*ApproxDuration(C36,5), (C36-C35)*ApproxDuration(C36,5)) -> 0.003926368683
B37: 27 | C37: 0.03426449215 | D37: =IF(ReturnsType="Relative", (C37/C36-1)*IRNow1*ApproxDuration(C37,5), (C37-C36)*ApproxDuration(C37,5)) -> -0.001267951614 | F37: =IF(ReturnsType2="Relative", (C37/C36-1)*IRNow1*ApproxDuration(C37,5), (C37-C36)*ApproxDuration(C37,5)) -> -0.001267951614
B38: 28 | C38: 0.03376343673 | D38: =IF(ReturnsType="Relative", (C38/C37-1)*IRNow1*ApproxDuration(C38,5), (C38-C37)*ApproxDuration(C38,5)) -> -0.001816488431 | F38: =IF(ReturnsType2="Relative", (C38/C37-1)*IRNow1*ApproxDuration(C38,5), (C38-C37)*ApproxDuration(C38,5)) -> -0.001816488431
B39: 29 | C39: 0.03274085867 | D39: =IF(ReturnsType="Relative", (C39/C38-1)*IRNow1*ApproxDuration(C39,5), (C39-C38)*ApproxDuration(C39,5)) -> -0.003771555418 | F39: =IF(ReturnsType2="Relative", (C39/C38-1)*IRNow1*ApproxDuration(C39,5), (C39-C38)*ApproxDuration(C39,5)) -> -0.003771555418
B40: 30 | C40: 0.03248345206 | D40: =IF(ReturnsType="Relative", (C40/C39-1)*IRNow1*ApproxDuration(C40,5), (C40-C39)*ApproxDuration(C40,5)) -> -0.0009796527994 | F40: =IF(ReturnsType2="Relative", (C40/C39-1)*IRNow1*ApproxDuration(C40,5), (C40-C39)*ApproxDuration(C40,5)) -> -0.0009796527994
B41: 31 | C41: 0.03211001534 | D41: =IF(ReturnsType="Relative", (C41/C40-1)*IRNow1*ApproxDuration(C41,5), (C41-C40)*ApproxDuration(C41,5)) -> -0.00143381111 | F41: =IF(ReturnsType2="Relative", (C41/C40-1)*IRNow1*ApproxDuration(C41,5), (C41-C40)*ApproxDuration(C41,5)) -> -0.00143381111
B42: 32 | C42: 0.03105141715 | D42: =IF(ReturnsType="Relative", (C42/C41-1)*IRNow1*ApproxDuration(C42,5), (C42-C41)*ApproxDuration(C42,5)) -> -0.004122368968 | F42: =IF(ReturnsType2="Relative", (C42/C41-1)*IRNow1*ApproxDuration(C42,5), (C42-C41)*ApproxDuration(C42,5)) -> -0.004122368968
B43: 33 | C43: 0.03100042649 | D43: =IF(ReturnsType="Relative", (C43/C42-1)*IRNow1*ApproxDuration(C43,5), (C43-C42)*ApproxDuration(C43,5)) -> -0.0002053616624 | F43: =IF(ReturnsType2="Relative", (C43/C42-1)*IRNow1*ApproxDuration(C43,5), (C43-C42)*ApproxDuration(C43,5)) -> -0.0002053616624
B44: 34 | C44: 0.03074323446 | D44: =IF(ReturnsType="Relative", (C44/C43-1)*IRNow1*ApproxDuration(C44,5), (C44-C43)*ApproxDuration(C44,5)) -> -0.001038178534 | F44: =IF(ReturnsType2="Relative", (C44/C43-1)*IRNow1*ApproxDuration(C44,5), (C44-C43)*ApproxDuration(C44,5)) -> -0.001038178534
B45: 35 | C45: 0.03063606302 | D45: =IF(ReturnsType="Relative", (C45/C44-1)*IRNow1*ApproxDuration(C45,5), (C45-C44)*ApproxDuration(C45,5)) -> -0.0004363400817 | F45: =IF(ReturnsType2="Relative", (C45/C44-1)*IRNow1*ApproxDuration(C45,5), (C45-C44)*ApproxDuration(C45,5)) -> -0.0004363400817
B46: 36 | C46: 0.02679363433 | D46: =IF(ReturnsType="Relative", (C46/C45-1)*IRNow1*ApproxDuration(C46,5), (C46-C45)*ApproxDuration(C46,5)) -> -0.01584676194 | F46: =IF(ReturnsType2="Relative", (C46/C45-1)*IRNow1*ApproxDuration(C46,5), (C46-C45)*ApproxDuration(C46,5)) -> -0.01584676194
B47: 37 | C47: 0.0279967386 | D47: =IF(ReturnsType="Relative", (C47/C46-1)*IRNow1*ApproxDuration(C47,5), (C47-C46)*ApproxDuration(C47,5)) -> 0.005656696438 | F47: =IF(ReturnsType2="Relative", (C47/C46-1)*IRNow1*ApproxDuration(C47,5), (C47-C46)*ApproxDuration(C47,5)) -> 0.005656696438
B48: 38 | C48: 0.02885620749 | D48: =IF(ReturnsType="Relative", (C48/C47-1)*IRNow1*ApproxDuration(C48,5), (C48-C47)*ApproxDuration(C48,5)) -> 0.003859249783 | F48: =IF(ReturnsType2="Relative", (C48/C47-1)*IRNow1*ApproxDuration(C48,5), (C48-C47)*ApproxDuration(C48,5)) -> 0.003859249783
B49: 39 | C49: 0.02781620305 | D49: =IF(ReturnsType="Relative", (C49/C48-1)*IRNow1*ApproxDuration(C49,5), (C49-C48)*ApproxDuration(C49,5)) -> -0.004542329428 | F49: =IF(ReturnsType2="Relative", (C49/C48-1)*IRNow1*ApproxDuration(C49,5), (C49-C48)*ApproxDuration(C49,5)) -> -0.004542329428
B50: 40 | C50: 0.02832336365 | D50: =IF(ReturnsType="Relative", (C50/C49-1)*IRNow1*ApproxDuration(C50,5), (C50-C49)*ApproxDuration(C50,5)) -> 0.002295052229 | F50: =IF(ReturnsType2="Relative", (C50/C49-1)*IRNow1*ApproxDuration(C50,5), (C50-C49)*ApproxDuration(C50,5)) -> 0.002295052229
B51: 41 | C51: 0.03056845143 | D51: =IF(ReturnsType="Relative", (C51/C50-1)*IRNow1*ApproxDuration(C51,5), (C51-C50)*ApproxDuration(C51,5)) -> 0.009923288968 | F51: =IF(ReturnsType2="Relative", (C51/C50-1)*IRNow1*ApproxDuration(C51,5), (C51-C50)*ApproxDuration(C51,5)) -> 0.009923288968
B52: 42 | C52: 0.03062715501 | D52: =IF(ReturnsType="Relative", (C52/C51-1)*IRNow1*ApproxDuration(C52,5), (C52-C51)*ApproxDuration(C52,5)) -> 0.0002403787941 | F52: =IF(ReturnsType2="Relative", (C52/C51-1)*IRNow1*ApproxDuration(C52,5), (C52-C51)*ApproxDuration(C52,5)) -> 0.0002403787941
B53: 43 | C53: 0.03108132343 | D53: =IF(ReturnsType="Relative", (C53/C52-1)*IRNow1*ApproxDuration(C53,5), (C53-C52)*ApproxDuration(C53,5)) -> 0.0018541073 | F53: =IF(ReturnsType2="Relative", (C53/C52-1)*IRNow1*ApproxDuration(C53,5), (C53-C52)*ApproxDuration(C53,5)) -> 0.0018541073
B54: 44 | C54: 0.02905481064 | D54: =IF(ReturnsType="Relative", (C54/C53-1)*IRNow1*ApproxDuration(C54,5), (C54-C53)*ApproxDuration(C54,5)) -> -0.008192559165 | F54: =IF(ReturnsType2="Relative", (C54/C53-1)*IRNow1*ApproxDuration(C54,5), (C54-C53)*ApproxDuration(C54,5)) -> -0.008192559165
B55: 45 | C55: 0.02957222533 | D55: =IF(ReturnsType="Relative", (C55/C54-1)*IRNow1*ApproxDuration(C55,5), (C55-C54)*ApproxDuration(C55,5)) -> 0.00223481915 | F55: =IF(ReturnsType2="Relative", (C55/C54-1)*IRNow1*ApproxDuration(C55,5), (C55-C54)*ApproxDuration(C55,5)) -> 0.00223481915
B56: 46 | C56: 0.0295508129 | D56: =IF(ReturnsType="Relative", (C56/C55-1)*IRNow1*ApproxDuration(C56,5), (C56-C55)*ApproxDuration(C56,5)) -> -9.087120114e-05 | F56: =IF(ReturnsType2="Relative", (C56/C55-1)*IRNow1*ApproxDuration(C56,5), (C56-C55)*ApproxDuration(C56,5)) -> -9.087120114e-05
B57: 47 | C57: 0.0295491237 | D57: =IF(ReturnsType="Relative", (C57/C56-1)*IRNow1*ApproxDuration(C57,5), (C57-C56)*ApproxDuration(C57,5)) -> -7.173950758e-06 | F57: =IF(ReturnsType2="Relative", (C57/C56-1)*IRNow1*ApproxDuration(C57,5), (C57-C56)*ApproxDuration(C57,5)) -> -7.173950758e-06
B58: 48 | C58: 0.0295943998 | D58: =IF(ReturnsType="Relative", (C58/C57-1)*IRNow1*ApproxDuration(C58,5), (C58-C57)*ApproxDuration(C58,5)) -> 0.0001922749088 | F58: =IF(ReturnsType2="Relative", (C58/C57-1)*IRNow1*ApproxDuration(C58,5), (C58-C57)*ApproxDuration(C58,5)) -> 0.0001922749088
B59: 49 | C59: 0.03058987283 | D59: =IF(ReturnsType="Relative", (C59/C58-1)*IRNow1*ApproxDuration(C59,5), (C59-C58)*ApproxDuration(C59,5)) -> 0.004210798283 | F59: =IF(ReturnsType2="Relative", (C59/C58-1)*IRNow1*ApproxDuration(C59,5), (C59-C58)*ApproxDuration(C59,5)) -> 0.004210798283
B60: 50 | C60: 0.03154378 | D60: =IF(ReturnsType="Relative", (C60/C59-1)*IRNow1*ApproxDuration(C60,5), (C60-C59)*ApproxDuration(C60,5)) -> 0.003894610435 | F60: =IF(ReturnsType2="Relative", (C60/C59-1)*IRNow1*ApproxDuration(C60,5), (C60-C59)*ApproxDuration(C60,5)) -> 0.003894610435
B61: 51 | C61: 0.03226774861 | D61: =IF(ReturnsType="Relative", (C61/C60-1)*IRNow1*ApproxDuration(C61,5), (C61-C60)*ApproxDuration(C61,5)) -> 0.002861385947 | F61: =IF(ReturnsType2="Relative", (C61/C60-1)*IRNow1*ApproxDuration(C61,5), (C61-C60)*ApproxDuration(C61,5)) -> 0.002861385947
B62: 52 | C62: 0.03206111127 | D62: =IF(ReturnsType="Relative", (C62/C61-1)*IRNow1*ApproxDuration(C62,5), (C62-C61)*ApproxDuration(C62,5)) -> -0.0007987831789 | F62: =IF(ReturnsType2="Relative", (C62/C61-1)*IRNow1*ApproxDuration(C62,5), (C62-C61)*ApproxDuration(C62,5)) -> -0.0007987831789
B63: 53 | C63: 0.03196246021 | D63: =IF(ReturnsType="Relative", (C63/C62-1)*IRNow1*ApproxDuration(C63,5), (C63-C62)*ApproxDuration(C63,5)) -> -0.0003838983386 | F63: =IF(ReturnsType2="Relative", (C63/C62-1)*IRNow1*ApproxDuration(C63,5), (C63-C62)*ApproxDuration(C63,5)) -> -0.0003838983386
B64: 54 | C64: 0.03231227407 | D64: =IF(ReturnsType="Relative", (C64/C63-1)*IRNow1*ApproxDuration(C64,5), (C64-C63)*ApproxDuration(C64,5)) -> 0.001364332441 | F64: =IF(ReturnsType2="Relative", (C64/C63-1)*IRNow1*ApproxDuration(C64,5), (C64-C63)*ApproxDuration(C64,5)) -> 0.001364332441
B65: 55 | C65: 0.03297326022 | D65: =IF(ReturnsType="Relative", (C65/C64-1)*IRNow1*ApproxDuration(C65,5), (C65-C64)*ApproxDuration(C65,5)) -> 0.002545951263 | F65: =IF(ReturnsType2="Relative", (C65/C64-1)*IRNow1*ApproxDuration(C65,5), (C65-C64)*ApproxDuration(C65,5)) -> 0.002545951263
B66: 56 | C66: 0.03047739519 | D66: =IF(ReturnsType="Relative", (C66/C65-1)*IRNow1*ApproxDuration(C66,5), (C66-C65)*ApproxDuration(C66,5)) -> -0.009478130727 | F66: =IF(ReturnsType2="Relative", (C66/C65-1)*IRNow1*ApproxDuration(C66,5), (C66-C65)*ApproxDuration(C66,5)) -> -0.009478130727
B67: 57 | C67: 0.02972070515 | D67: =IF(ReturnsType="Relative", (C67/C66-1)*IRNow1*ApproxDuration(C67,5), (C67-C66)*ApproxDuration(C67,5)) -> -0.003114616823 | F67: =IF(ReturnsType2="Relative", (C67/C66-1)*IRNow1*ApproxDuration(C67,5), (C67-C66)*ApproxDuration(C67,5)) -> -0.003114616823
B68: 58 | C68: 0.02894942847 | D68: =IF(ReturnsType="Relative", (C68/C67-1)*IRNow1*ApproxDuration(C68,5), (C68-C67)*ApproxDuration(C68,5)) -> -0.003261613436 | F68: =IF(ReturnsType2="Relative", (C68/C67-1)*IRNow1*ApproxDuration(C68,5), (C68-C67)*ApproxDuration(C68,5)) -> -0.003261613436
B69: 59 | C69: 0.02879637184 | D69: =IF(ReturnsType="Relative", (C69/C68-1)*IRNow1*ApproxDuration(C69,5), (C69-C68)*ApproxDuration(C69,5)) -> -0.0006647459654 | F69: =IF(ReturnsType2="Relative", (C69/C68-1)*IRNow1*ApproxDuration(C69,5), (C69-C68)*ApproxDuration(C69,5)) -> -0.0006647459654
B70: 60 | C70: 0.02876722242 | D70: =IF(ReturnsType="Relative", (C70/C69-1)*IRNow1*ApproxDuration(C70,5), (C70-C69)*ApproxDuration(C70,5)) -> -0.00012728189 | F70: =IF(ReturnsType2="Relative", (C70/C69-1)*IRNow1*ApproxDuration(C70,5), (C70-C69)*ApproxDuration(C70,5)) -> -0.00012728189
B71: 61 | C71: 0.03015851563 | D71: =IF(ReturnsType="Relative", (C71/C70-1)*IRNow1*ApproxDuration(C71,5), (C71-C70)*ApproxDuration(C71,5)) -> 0.006060684784 | F71: =IF(ReturnsType2="Relative", (C71/C70-1)*IRNow1*ApproxDuration(C71,5), (C71-C70)*ApproxDuration(C71,5)) -> 0.006060684784
B72: 62 | C72: 0.0297222445 | D72: =IF(ReturnsType="Relative", (C72/C71-1)*IRNow1*ApproxDuration(C72,5), (C72-C71)*ApproxDuration(C72,5)) -> -0.001814718791 | F72: =IF(ReturnsType2="Relative", (C72/C71-1)*IRNow1*ApproxDuration(C72,5), (C72-C71)*ApproxDuration(C72,5)) -> -0.001814718791
B73: 63 | C73: 0.02969224085 | D73: =IF(ReturnsType="Relative", (C73/C72-1)*IRNow1*ApproxDuration(C73,5), (C73-C72)*ApproxDuration(C73,5)) -> -0.0001266447246 | F73: =IF(ReturnsType2="Relative", (C73/C72-1)*IRNow1*ApproxDuration(C73,5), (C73-C72)*ApproxDuration(C73,5)) -> -0.0001266447246
B74: 64 | C74: 0.02999309784 | D74: =IF(ReturnsType="Relative", (C74/C73-1)*IRNow1*ApproxDuration(C74,5), (C74-C73)*ApproxDuration(C74,5)) -> 0.001270261686 | F74: =IF(ReturnsType2="Relative", (C74/C73-1)*IRNow1*ApproxDuration(C74,5), (C74-C73)*ApproxDuration(C74,5)) -> 0.001270261686
B75: 65 | C75: 0.02914524703 | D75: =IF(ReturnsType="Relative", (C75/C74-1)*IRNow1*ApproxDuration(C75,5), (C75-C74)*ApproxDuration(C75,5)) -> -0.003551174796 | F75: =IF(ReturnsType2="Relative", (C75/C74-1)*IRNow1*ApproxDuration(C75,5), (C75-C74)*ApproxDuration(C75,5)) -> -0.003551174796
B76: =B75+1 -> 66 | C76: 0.02828366667 | D76: =IF(ReturnsType="Relative", (C76/C75-1)*IRNow1*ApproxDuration(C76,5), (C76-C75)*ApproxDuration(C76,5)) -> -0.003721474538 | F76: =IF(ReturnsType2="Relative", (C76/C75-1)*IRNow1*ApproxDuration(C76,5), (C76-C75)*ApproxDuration(C76,5)) -> -0.003721474538
B77: 67 | C77: 0.02846980269 | D77: =IF(ReturnsType="Relative", (C77/C76-1)*IRNow1*ApproxDuration(C77,5), (C77-C76)*ApproxDuration(C77,5)) -> 0.000828103084 | F77: =IF(ReturnsType2="Relative", (C77/C76-1)*IRNow1*ApproxDuration(C77,5), (C77-C76)*ApproxDuration(C77,5)) -> 0.000828103084
B78: 68 | C78: 0.02906326866 | D78: =IF(ReturnsType="Relative", (C78/C77-1)*IRNow1*ApproxDuration(C78,5), (C78-C77)*ApproxDuration(C78,5)) -> 0.002619220975 | F78: =IF(ReturnsType2="Relative", (C78/C77-1)*IRNow1*ApproxDuration(C78,5), (C78-C77)*ApproxDuration(C78,5)) -> 0.002619220975
B79: 69 | C79: 0.02822493305 | D79: =IF(ReturnsType="Relative", (C79/C78-1)*IRNow1*ApproxDuration(C79,5), (C79-C78)*ApproxDuration(C79,5)) -> -0.00363180672 | F79: =IF(ReturnsType2="Relative", (C79/C78-1)*IRNow1*ApproxDuration(C79,5), (C79-C78)*ApproxDuration(C79,5)) -> -0.00363180672
B80: 70 | C80: 0.02743772496 | D80: =IF(ReturnsType="Relative", (C80/C79-1)*IRNow1*ApproxDuration(C80,5), (C80-C79)*ApproxDuration(C80,5)) -> -0.003518364126 | F80: =IF(ReturnsType2="Relative", (C80/C79-1)*IRNow1*ApproxDuration(C80,5), (C80-C79)*ApproxDuration(C80,5)) -> -0.003518364126
B81: 71 | C81: 0.02738710034 | D81: =IF(ReturnsType="Relative", (C81/C80-1)*IRNow1*ApproxDuration(C81,5), (C81-C80)*ApproxDuration(C81,5)) -> -0.0002327831738 | F81: =IF(ReturnsType2="Relative", (C81/C80-1)*IRNow1*ApproxDuration(C81,5), (C81-C80)*ApproxDuration(C81,5)) -> -0.0002327831738
B82: 72 | C82: 0.0275743803 | D82: =IF(ReturnsType="Relative", (C82/C81-1)*IRNow1*ApproxDuration(C82,5), (C82-C81)*ApproxDuration(C82,5)) -> 0.0008623517359 | F82: =IF(ReturnsType2="Relative", (C82/C81-1)*IRNow1*ApproxDuration(C82,5), (C82-C81)*ApproxDuration(C82,5)) -> 0.0008623517359
B83: 73 | C83: 0.0277988348 | D83: =IF(ReturnsType="Relative", (C83/C82-1)*IRNow1*ApproxDuration(C83,5), (C83-C82)*ApproxDuration(C83,5)) -> 0.001025944027 | F83: =IF(ReturnsType2="Relative", (C83/C82-1)*IRNow1*ApproxDuration(C83,5), (C83-C82)*ApproxDuration(C83,5)) -> 0.001025944027
B84: 74 | C84: 0.02704886586 | D84: =IF(ReturnsType="Relative", (C84/C83-1)*IRNow1*ApproxDuration(C84,5), (C84-C83)*ApproxDuration(C84,5)) -> -0.003406539697 | F84: =IF(ReturnsType2="Relative", (C84/C83-1)*IRNow1*ApproxDuration(C84,5), (C84-C83)*ApproxDuration(C84,5)) -> -0.003406539697
B85: 75 | C85: 0.02512752919 | D85: =IF(ReturnsType="Relative", (C85/C84-1)*IRNow1*ApproxDuration(C85,5), (C85-C84)*ApproxDuration(C85,5)) -> -0.009011392576 | F85: =IF(ReturnsType2="Relative", (C85/C84-1)*IRNow1*ApproxDuration(C85,5), (C85-C84)*ApproxDuration(C85,5)) -> -0.009011392576
B86: 76 | C86: 0.02506244799 | D86: =IF(ReturnsType="Relative", (C86/C85-1)*IRNow1*ApproxDuration(C86,5), (C86-C85)*ApproxDuration(C86,5)) -> -0.0003286339754 | F86: =IF(ReturnsType2="Relative", (C86/C85-1)*IRNow1*ApproxDuration(C86,5), (C86-C85)*ApproxDuration(C86,5)) -> -0.0003286339754
B87: 77 | C87: 0.02544506176 | D87: =IF(ReturnsType="Relative", (C87/C86-1)*IRNow1*ApproxDuration(C87,5), (C87-C86)*ApproxDuration(C87,5)) -> 0.001935250168 | F87: =IF(ReturnsType2="Relative", (C87/C86-1)*IRNow1*ApproxDuration(C87,5), (C87-C86)*ApproxDuration(C87,5)) -> 0.001935250168
B88: 78 | C88: 0.02583275702 | D88: =IF(ReturnsType="Relative", (C88/C87-1)*IRNow1*ApproxDuration(C88,5), (C88-C87)*ApproxDuration(C88,5)) -> 0.00192963441 | F88: =IF(ReturnsType2="Relative", (C88/C87-1)*IRNow1*ApproxDuration(C88,5), (C88-C87)*ApproxDuration(C88,5)) -> 0.00192963441
B89: 79 | C89: 0.0247415245 | D89: =IF(ReturnsType="Relative", (C89/C88-1)*IRNow1*ApproxDuration(C89,5), (C89-C88)*ApproxDuration(C89,5)) -> -0.005364069918 | F89: =IF(ReturnsType2="Relative", (C89/C88-1)*IRNow1*ApproxDuration(C89,5), (C89-C88)*ApproxDuration(C89,5)) -> -0.005364069918
B90: 80 | C90: 0.02308333602 | D90: =IF(ReturnsType="Relative", (C90/C89-1)*IRNow1*ApproxDuration(C90,5), (C90-C89)*ApproxDuration(C90,5)) -> -0.00854515252 | F90: =IF(ReturnsType2="Relative", (C90/C89-1)*IRNow1*ApproxDuration(C90,5), (C90-C89)*ApproxDuration(C90,5)) -> -0.00854515252
B91: 81 | C91: 0.02369771477 | D91: =IF(ReturnsType="Relative", (C91/C90-1)*IRNow1*ApproxDuration(C91,5), (C91-C90)*ApproxDuration(C91,5)) -> 0.00338840986 | F91: =IF(ReturnsType2="Relative", (C91/C90-1)*IRNow1*ApproxDuration(C91,5), (C91-C90)*ApproxDuration(C91,5)) -> 0.00338840986
B92: 82 | C92: 0.02187924981 | D92: =IF(ReturnsType="Relative", (C92/C91-1)*IRNow1*ApproxDuration(C92,5), (C92-C91)*ApproxDuration(C92,5)) -> -0.009812816594 | F92: =IF(ReturnsType2="Relative", (C92/C91-1)*IRNow1*ApproxDuration(C92,5), (C92-C91)*ApproxDuration(C92,5)) -> -0.009812816594
B93: 83 | C93: 0.02255807808 | D93: =IF(ReturnsType="Relative", (C93/C92-1)*IRNow1*ApproxDuration(C93,5), (C93-C92)*ApproxDuration(C93,5)) -> 0.00396094964 | F93: =IF(ReturnsType2="Relative", (C93/C92-1)*IRNow1*ApproxDuration(C93,5), (C93-C92)*ApproxDuration(C93,5)) -> 0.00396094964
B94: 84 | C94: 0.02291581684 | D94: =IF(ReturnsType="Relative", (C94/C93-1)*IRNow1*ApproxDuration(C94,5), (C94-C93)*ApproxDuration(C94,5)) -> 0.002022808071 | F94: =IF(ReturnsType2="Relative", (C94/C93-1)*IRNow1*ApproxDuration(C94,5), (C94-C93)*ApproxDuration(C94,5)) -> 0.002022808071
B95: 85 | C95: 0.01957588756 | D95: =IF(ReturnsType="Relative", (C95/C94-1)*IRNow1*ApproxDuration(C95,5), (C95-C94)*ApproxDuration(C95,5)) -> -0.0187436772 | F95: =IF(ReturnsType2="Relative", (C95/C94-1)*IRNow1*ApproxDuration(C95,5), (C95-C94)*ApproxDuration(C95,5)) -> -0.0187436772
B96: 86 | C96: 0.01967691966 | D96: =IF(ReturnsType="Relative", (C96/C95-1)*IRNow1*ApproxDuration(C96,5), (C96-C95)*ApproxDuration(C96,5)) -> 0.0006635641056 | F96: =IF(ReturnsType2="Relative", (C96/C95-1)*IRNow1*ApproxDuration(C96,5), (C96-C95)*ApproxDuration(C96,5)) -> 0.0006635641056
B97: 87 | C97: 0.01983307944 | D97: =IF(ReturnsType="Relative", (C97/C96-1)*IRNow1*ApproxDuration(C97,5), (C97-C96)*ApproxDuration(C97,5)) -> 0.00101997678 | F97: =IF(ReturnsType2="Relative", (C97/C96-1)*IRNow1*ApproxDuration(C97,5), (C97-C96)*ApproxDuration(C97,5)) -> 0.00101997678
B98: 88 | C98: 0.01869364945 | D98: =IF(ReturnsType="Relative", (C98/C97-1)*IRNow1*ApproxDuration(C98,5), (C98-C97)*ApproxDuration(C98,5)) -> -0.007404452767 | F98: =IF(ReturnsType2="Relative", (C98/C97-1)*IRNow1*ApproxDuration(C98,5), (C98-C97)*ApproxDuration(C98,5)) -> -0.007404452767
B99: 89 | C99: 0.01842516308 | D99: =IF(ReturnsType="Relative", (C99/C98-1)*IRNow1*ApproxDuration(C99,5), (C99-C98)*ApproxDuration(C99,5)) -> -0.001852296962 | F99: =IF(ReturnsType2="Relative", (C99/C98-1)*IRNow1*ApproxDuration(C99,5), (C99-C98)*ApproxDuration(C99,5)) -> -0.001852296962
B100: 90 | C100: 0.01833113897 | D100: =IF(ReturnsType="Relative", (C100/C99-1)*IRNow1*ApproxDuration(C100,5), (C100-C99)*ApproxDuration(C100,5)) -> -0.0006582803965 | F100: =IF(ReturnsType2="Relative", (C100/C99-1)*IRNow1*ApproxDuration(C100,5), (C100-C99)*ApproxDuration(C100,5)) -> -0.0006582803965
B101: 91 | C101: 0.01847021924 | D101: =IF(ReturnsType="Relative", (C101/C100-1)*IRNow1*ApproxDuration(C101,5), (C101-C100)*ApproxDuration(C101,5)) -> 0.0009783863905 | F101: =IF(ReturnsType2="Relative", (C101/C100-1)*IRNow1*ApproxDuration(C101,5), (C101-C100)*ApproxDuration(C101,5)) -> 0.0009783863905
B102: 92 | C102: 0.01859108149 | D102: =IF(ReturnsType="Relative", (C102/C101-1)*IRNow1*ApproxDuration(C102,5), (C102-C101)*ApproxDuration(C102,5)) -> 0.0008435750593 | F102: =IF(ReturnsType2="Relative", (C102/C101-1)*IRNow1*ApproxDuration(C102,5), (C102-C101)*ApproxDuration(C102,5)) -> 0.0008435750593
B103: 93 | C103: 0.01854302683 | D103: =IF(ReturnsType="Relative", (C103/C102-1)*IRNow1*ApproxDuration(C103,5), (C103-C102)*ApproxDuration(C103,5)) -> -0.0003332631933 | F103: =IF(ReturnsType2="Relative", (C103/C102-1)*IRNow1*ApproxDuration(C103,5), (C103-C102)*ApproxDuration(C103,5)) -> -0.0003332631933
B104: 94 | C104: 0.01915983426 | D104: =IF(ReturnsType="Relative", (C104/C103-1)*IRNow1*ApproxDuration(C104,5), (C104-C103)*ApproxDuration(C104,5)) -> 0.00428219334 | F104: =IF(ReturnsType2="Relative", (C104/C103-1)*IRNow1*ApproxDuration(C104,5), (C104-C103)*ApproxDuration(C104,5)) -> 0.00428219334
B105: 95 | C105: 0.01975024947 | D105: =IF(ReturnsType="Relative", (C105/C104-1)*IRNow1*ApproxDuration(C105,5), (C105-C104)*ApproxDuration(C105,5)) -> 0.00396125176 | F105: =IF(ReturnsType2="Relative", (C105/C104-1)*IRNow1*ApproxDuration(C105,5), (C105-C104)*ApproxDuration(C105,5)) -> 0.00396125176
B106: 96 | C106: 0.02016857619 | D106: =IF(ReturnsType="Relative", (C106/C105-1)*IRNow1*ApproxDuration(C106,5), (C106-C105)*ApproxDuration(C106,5)) -> 0.002719963292 | F106: =IF(ReturnsType2="Relative", (C106/C105-1)*IRNow1*ApproxDuration(C106,5), (C106-C105)*ApproxDuration(C106,5)) -> 0.002719963292
B107: 97 | C107: 0.01959996978 | D107: =IF(ReturnsType="Relative", (C107/C106-1)*IRNow1*ApproxDuration(C107,5), (C107-C106)*ApproxDuration(C107,5)) -> -0.003625464499 | F107: =IF(ReturnsType2="Relative", (C107/C106-1)*IRNow1*ApproxDuration(C107,5), (C107-C106)*ApproxDuration(C107,5)) -> -0.003625464499
B108: 98 | C108: 0.0204923516 | D108: =IF(ReturnsType="Relative", (C108/C107-1)*IRNow1*ApproxDuration(C108,5), (C108-C107)*ApproxDuration(C108,5)) -> 0.005842110278 | F108: =IF(ReturnsType2="Relative", (C108/C107-1)*IRNow1*ApproxDuration(C108,5), (C108-C107)*ApproxDuration(C108,5)) -> 0.005842110278
B109: 99 | C109: 0.02098494896 | D109: =IF(ReturnsType="Relative", (C109/C108-1)*IRNow1*ApproxDuration(C109,5), (C109-C108)*ApproxDuration(C109,5)) -> 0.003080698009 | F109: =IF(ReturnsType2="Relative", (C109/C108-1)*IRNow1*ApproxDuration(C109,5), (C109-C108)*ApproxDuration(C109,5)) -> 0.003080698009
B110: 100 | C110: 0.02048820443 | D110: =IF(ReturnsType="Relative", (C110/C109-1)*IRNow1*ApproxDuration(C110,5), (C110-C109)*ApproxDuration(C110,5)) -> -0.003037414347 | F110: =IF(ReturnsType2="Relative", (C110/C109-1)*IRNow1*ApproxDuration(C110,5), (C110-C109)*ApproxDuration(C110,5)) -> -0.003037414347
B111: 101 | C111: 0.0215886806 | D111: =IF(ReturnsType="Relative", (C111/C110-1)*IRNow1*ApproxDuration(C111,5), (C111-C110)*ApproxDuration(C111,5)) -> 0.00687355995 | F111: =IF(ReturnsType2="Relative", (C111/C110-1)*IRNow1*ApproxDuration(C111,5), (C111-C110)*ApproxDuration(C111,5)) -> 0.00687355995
B112: 102 | C112: 0.02243022226 | D112: =IF(ReturnsType="Relative", (C112/C111-1)*IRNow1*ApproxDuration(C112,5), (C112-C111)*ApproxDuration(C112,5)) -> 0.004978030621 | F112: =IF(ReturnsType2="Relative", (C112/C111-1)*IRNow1*ApproxDuration(C112,5), (C112-C111)*ApproxDuration(C112,5)) -> 0.004978030621
B113: 103 | C113: 0.02217794142 | D113: =IF(ReturnsType="Relative", (C113/C112-1)*IRNow1*ApproxDuration(C113,5), (C113-C112)*ApproxDuration(C113,5)) -> -0.001437234264 | F113: =IF(ReturnsType2="Relative", (C113/C112-1)*IRNow1*ApproxDuration(C113,5), (C113-C112)*ApproxDuration(C113,5)) -> -0.001437234264
B114: 104 | C114: 0.02246983285 | D114: =IF(ReturnsType="Relative", (C114/C113-1)*IRNow1*ApproxDuration(C114,5), (C114-C113)*ApproxDuration(C114,5)) -> 0.001680606228 | F114: =IF(ReturnsType2="Relative", (C114/C113-1)*IRNow1*ApproxDuration(C114,5), (C114-C113)*ApproxDuration(C114,5)) -> 0.001680606228
B115: 105 | C115: 0.02285082367 | D115: =IF(ReturnsType="Relative", (C115/C114-1)*IRNow1*ApproxDuration(C115,5), (C115-C114)*ApproxDuration(C115,5)) -> 0.002163090364 | F115: =IF(ReturnsType2="Relative", (C115/C114-1)*IRNow1*ApproxDuration(C115,5), (C115-C114)*ApproxDuration(C115,5)) -> 0.002163090364
B116: 106 | C116: 0.02254929219 | D116: =IF(ReturnsType="Relative", (C116/C115-1)*IRNow1*ApproxDuration(C116,5), (C116-C115)*ApproxDuration(C116,5)) -> -0.001684658914 | F116: =IF(ReturnsType2="Relative", (C116/C115-1)*IRNow1*ApproxDuration(C116,5), (C116-C115)*ApproxDuration(C116,5)) -> -0.001684658914
B117: 107 | C117: 0.01956604501 | D117: =IF(ReturnsType="Relative", (C117/C116-1)*IRNow1*ApproxDuration(C117,5), (C117-C116)*ApproxDuration(C117,5)) -> -0.01701452012 | F117: =IF(ReturnsType2="Relative", (C117/C116-1)*IRNow1*ApproxDuration(C117,5), (C117-C116)*ApproxDuration(C117,5)) -> -0.01701452012
B118: 108 | C118: 0.02064928921 | D118: =IF(ReturnsType="Relative", (C118/C117-1)*IRNow1*ApproxDuration(C118,5), (C118-C117)*ApproxDuration(C118,5)) -> 0.007101176229 | F118: =IF(ReturnsType2="Relative", (C118/C117-1)*IRNow1*ApproxDuration(C118,5), (C118-C117)*ApproxDuration(C118,5)) -> 0.007101176229
B119: 109 | C119: 0.0231982433 | D119: =IF(ReturnsType="Relative", (C119/C118-1)*IRNow1*ApproxDuration(C119,5), (C119-C118)*ApproxDuration(C119,5)) -> 0.01573428209 | F119: =IF(ReturnsType2="Relative", (C119/C118-1)*IRNow1*ApproxDuration(C119,5), (C119-C118)*ApproxDuration(C119,5)) -> 0.01573428209
B120: 110 | C120: 0.02218058845 | D120: =IF(ReturnsType="Relative", (C120/C119-1)*IRNow1*ApproxDuration(C120,5), (C120-C119)*ApproxDuration(C120,5)) -> -0.005605565792 | F120: =IF(ReturnsType2="Relative", (C120/C119-1)*IRNow1*ApproxDuration(C120,5), (C120-C119)*ApproxDuration(C120,5)) -> -0.005605565792
B121: 111 | C121: 0.02413967091 | D121: =IF(ReturnsType="Relative", (C121/C120-1)*IRNow1*ApproxDuration(C121,5), (C121-C120)*ApproxDuration(C121,5)) -> 0.01123227414 | F121: =IF(ReturnsType2="Relative", (C121/C120-1)*IRNow1*ApproxDuration(C121,5), (C121-C120)*ApproxDuration(C121,5)) -> 0.01123227414
B122: 112 | C122: 0.02383390339 | D122: =IF(ReturnsType="Relative", (C122/C121-1)*IRNow1*ApproxDuration(C122,5), (C122-C121)*ApproxDuration(C122,5)) -> -0.001612031021 | F122: =IF(ReturnsType2="Relative", (C122/C121-1)*IRNow1*ApproxDuration(C122,5), (C122-C121)*ApproxDuration(C122,5)) -> -0.001612031021
B123: 113 | C123: 0.02422903205 | D123: =IF(ReturnsType="Relative", (C123/C122-1)*IRNow1*ApproxDuration(C123,5), (C123-C122)*ApproxDuration(C123,5)) -> 0.002107833636 | F123: =IF(ReturnsType2="Relative", (C123/C122-1)*IRNow1*ApproxDuration(C123,5), (C123-C122)*ApproxDuration(C123,5)) -> 0.002107833636
B124: 114 | C124: 0.0237325791 | D124: =IF(ReturnsType="Relative", (C124/C123-1)*IRNow1*ApproxDuration(C124,5), (C124-C123)*ApproxDuration(C124,5)) -> -0.002608334294 | F124: =IF(ReturnsType2="Relative", (C124/C123-1)*IRNow1*ApproxDuration(C124,5), (C124-C123)*ApproxDuration(C124,5)) -> -0.002608334294
B125: 115 | C125: 0.02373370668 | D125: =IF(ReturnsType="Relative", (C125/C124-1)*IRNow1*ApproxDuration(C125,5), (C125-C124)*ApproxDuration(C125,5)) -> 6.048141833e-06 | F125: =IF(ReturnsType2="Relative", (C125/C124-1)*IRNow1*ApproxDuration(C125,5), (C125-C124)*ApproxDuration(C125,5)) -> 6.048141833e-06
B126: 116 | C126: 0.02349511481 | D126: =IF(ReturnsType="Relative", (C126/C125-1)*IRNow1*ApproxDuration(C126,5), (C126-C125)*ApproxDuration(C126,5)) -> -0.001280454191 | F126: =IF(ReturnsType2="Relative", (C126/C125-1)*IRNow1*ApproxDuration(C126,5), (C126-C125)*ApproxDuration(C126,5)) -> -0.001280454191
B127: 117 | C127: 0.02371525489 | D127: =IF(ReturnsType="Relative", (C127/C126-1)*IRNow1*ApproxDuration(C127,5), (C127-C126)*ApproxDuration(C127,5)) -> 0.001192782345 | F127: =IF(ReturnsType2="Relative", (C127/C126-1)*IRNow1*ApproxDuration(C127,5), (C127-C126)*ApproxDuration(C127,5)) -> 0.001192782345
B128: 118 | C128: 0.02377139601 | D128: =IF(ReturnsType="Relative", (C128/C127-1)*IRNow1*ApproxDuration(C128,5), (C128-C127)*ApproxDuration(C128,5)) -> 0.0003013236241 | F128: =IF(ReturnsType2="Relative", (C128/C127-1)*IRNow1*ApproxDuration(C128,5), (C128-C127)*ApproxDuration(C128,5)) -> 0.0003013236241
B129: 119 | C129: 0.02559691546 | D129: =IF(ReturnsType="Relative", (C129/C128-1)*IRNow1*ApproxDuration(C129,5), (C129-C128)*ApproxDuration(C129,5)) -> 0.009731289981 | F129: =IF(ReturnsType2="Relative", (C129/C128-1)*IRNow1*ApproxDuration(C129,5), (C129-C128)*ApproxDuration(C129,5)) -> 0.009731289981
B130: 120 | C130: 0.02509699196 | D130: =IF(ReturnsType="Relative", (C130/C129-1)*IRNow1*ApproxDuration(C130,5), (C130-C129)*ApproxDuration(C130,5)) -> -0.002477911986 | F130: =IF(ReturnsType2="Relative", (C130/C129-1)*IRNow1*ApproxDuration(C130,5), (C130-C129)*ApproxDuration(C130,5)) -> -0.002477911986
B131: 121 | C131: 0.02424613596 | D131: =IF(ReturnsType="Relative", (C131/C130-1)*IRNow1*ApproxDuration(C131,5), (C131-C130)*ApproxDuration(C131,5)) -> -0.004310316586 | F131: =IF(ReturnsType2="Relative", (C131/C130-1)*IRNow1*ApproxDuration(C131,5), (C131-C130)*ApproxDuration(C131,5)) -> -0.004310316586
B132: 122 | C132: 0.02429518409 | D132: =IF(ReturnsType="Relative", (C132/C131-1)*IRNow1*ApproxDuration(C132,5), (C132-C131)*ApproxDuration(C132,5)) -> 0.0002571594406 | F132: =IF(ReturnsType2="Relative", (C132/C131-1)*IRNow1*ApproxDuration(C132,5), (C132-C131)*ApproxDuration(C132,5)) -> 0.0002571594406
B133: 123 | C133: 0.02478080105 | D133: =IF(ReturnsType="Relative", (C133/C132-1)*IRNow1*ApproxDuration(C133,5), (C133-C132)*ApproxDuration(C133,5)) -> 0.002537930815 | F133: =IF(ReturnsType2="Relative", (C133/C132-1)*IRNow1*ApproxDuration(C133,5), (C133-C132)*ApproxDuration(C133,5)) -> 0.002537930815
B134: 124 | C134: 0.0254180135 | D134: =IF(ReturnsType="Relative", (C134/C133-1)*IRNow1*ApproxDuration(C134,5), (C134-C133)*ApproxDuration(C134,5)) -> 0.003259850328 | F134: =IF(ReturnsType2="Relative", (C134/C133-1)*IRNow1*ApproxDuration(C134,5), (C134-C133)*ApproxDuration(C134,5)) -> 0.003259850328
B135: 125 | C135: 0.02555436622 | D135: =IF(ReturnsType="Relative", (C135/C134-1)*IRNow1*ApproxDuration(C135,5), (C135-C134)*ApproxDuration(C135,5)) -> 0.0006798389665 | F135: =IF(ReturnsType2="Relative", (C135/C134-1)*IRNow1*ApproxDuration(C135,5), (C135-C134)*ApproxDuration(C135,5)) -> 0.0006798389665
B136: 126 | C136: 0.02440065282 | D136: =IF(ReturnsType="Relative", (C136/C135-1)*IRNow1*ApproxDuration(C136,5), (C136-C135)*ApproxDuration(C136,5)) -> -0.005737771281 | F136: =IF(ReturnsType2="Relative", (C136/C135-1)*IRNow1*ApproxDuration(C136,5), (C136-C135)*ApproxDuration(C136,5)) -> -0.005737771281
B137: 127 | C137: 0.02389309888 | D137: =IF(ReturnsType="Relative", (C137/C136-1)*IRNow1*ApproxDuration(C137,5), (C137-C136)*ApproxDuration(C137,5)) -> -0.002646861139 | F137: =IF(ReturnsType2="Relative", (C137/C136-1)*IRNow1*ApproxDuration(C137,5), (C137-C136)*ApproxDuration(C137,5)) -> -0.002646861139
B138: 128 | C138: 0.02296953304 | D138: =IF(ReturnsType="Relative", (C138/C137-1)*IRNow1*ApproxDuration(C138,5), (C138-C137)*ApproxDuration(C138,5)) -> -0.004929796031 | F138: =IF(ReturnsType2="Relative", (C138/C137-1)*IRNow1*ApproxDuration(C138,5), (C138-C137)*ApproxDuration(C138,5)) -> -0.004929796031
B139: 129 | C139: 0.02291421665 | D139: =IF(ReturnsType="Relative", (C139/C138-1)*IRNow1*ApproxDuration(C139,5), (C139-C138)*ApproxDuration(C139,5)) -> -0.0003071808446 | F139: =IF(ReturnsType2="Relative", (C139/C138-1)*IRNow1*ApproxDuration(C139,5), (C139-C138)*ApproxDuration(C139,5)) -> -0.0003071808446
B140: =B139+1 -> 130 | C140: 0.02532261159 | D140: =IF(ReturnsType="Relative", (C140/C139-1)*IRNow1*ApproxDuration(C140,5), (C140-C139)*ApproxDuration(C140,5)) -> 0.0133276271 | F140: =IF(ReturnsType2="Relative", (C140/C139-1)*IRNow1*ApproxDuration(C140,5), (C140-C139)*ApproxDuration(C140,5)) -> 0.0133276271
B141: 131 | C141: 0.02555275487 | D141: =IF(ReturnsType="Relative", (C141/C140-1)*IRNow1*ApproxDuration(C141,5), (C141-C140)*ApproxDuration(C141,5)) -> 0.001151795457 | F141: =IF(ReturnsType2="Relative", (C141/C140-1)*IRNow1*ApproxDuration(C141,5), (C141-C140)*ApproxDuration(C141,5)) -> 0.001151795457
B142: 132 | C142: 0.02579796137 | D142: =IF(ReturnsType="Relative", (C142/C141-1)*IRNow1*ApproxDuration(C142,5), (C142-C141)*ApproxDuration(C142,5)) -> 0.001215400149 | F142: =IF(ReturnsType2="Relative", (C142/C141-1)*IRNow1*ApproxDuration(C142,5), (C142-C141)*ApproxDuration(C142,5)) -> 0.001215400149
B143: 133 | C143: 0.02559140515 | D143: =IF(ReturnsType="Relative", (C143/C142-1)*IRNow1*ApproxDuration(C143,5), (C143-C142)*ApproxDuration(C143,5)) -> -0.001014605914 | F143: =IF(ReturnsType2="Relative", (C143/C142-1)*IRNow1*ApproxDuration(C143,5), (C143-C142)*ApproxDuration(C143,5)) -> -0.001014605914
B144: 134 | C144: 0.02543388368 | D144: =IF(ReturnsType="Relative", (C144/C143-1)*IRNow1*ApproxDuration(C144,5), (C144-C143)*ApproxDuration(C144,5)) -> -0.0007802926 | F144: =IF(ReturnsType2="Relative", (C144/C143-1)*IRNow1*ApproxDuration(C144,5), (C144-C143)*ApproxDuration(C144,5)) -> -0.0007802926
B145: 135 | C145: 0.02460322207 | D145: =IF(ReturnsType="Relative", (C145/C144-1)*IRNow1*ApproxDuration(C145,5), (C145-C144)*ApproxDuration(C145,5)) -> -0.004148646468 | F145: =IF(ReturnsType2="Relative", (C145/C144-1)*IRNow1*ApproxDuration(C145,5), (C145-C144)*ApproxDuration(C145,5)) -> -0.004148646468
B146: 136 | C146: 0.02379981799 | D146: =IF(ReturnsType="Relative", (C146/C145-1)*IRNow1*ApproxDuration(C146,5), (C146-C145)*ApproxDuration(C146,5)) -> -0.004156154721 | F146: =IF(ReturnsType2="Relative", (C146/C145-1)*IRNow1*ApproxDuration(C146,5), (C146-C145)*ApproxDuration(C146,5)) -> -0.004156154721
B147: 137 | C147: 0.0243910134 | D147: =IF(ReturnsType="Relative", (C147/C146-1)*IRNow1*ApproxDuration(C147,5), (C147-C146)*ApproxDuration(C147,5)) -> 0.003157025435 | F147: =IF(ReturnsType2="Relative", (C147/C146-1)*IRNow1*ApproxDuration(C147,5), (C147-C146)*ApproxDuration(C147,5)) -> 0.003157025435
B148: 138 | C148: 0.02498333456 | D148: =IF(ReturnsType="Relative", (C148/C147-1)*IRNow1*ApproxDuration(C148,5), (C148-C147)*ApproxDuration(C148,5)) -> 0.003081897531 | F148: =IF(ReturnsType2="Relative", (C148/C147-1)*IRNow1*ApproxDuration(C148,5), (C148-C147)*ApproxDuration(C148,5)) -> 0.003081897531
B149: 139 | C149: 0.02528709999 | D149: =IF(ReturnsType="Relative", (C149/C148-1)*IRNow1*ApproxDuration(C149,5), (C149-C148)*ApproxDuration(C149,5)) -> 0.001541898635 | F149: =IF(ReturnsType2="Relative", (C149/C148-1)*IRNow1*ApproxDuration(C149,5), (C149-C148)*ApproxDuration(C149,5)) -> 0.001541898635
B150: 140 | C150: 0.02358733545 | D150: =IF(ReturnsType="Relative", (C150/C149-1)*IRNow1*ApproxDuration(C150,5), (C150-C149)*ApproxDuration(C150,5)) -> -0.008559838012 | F150: =IF(ReturnsType2="Relative", (C150/C149-1)*IRNow1*ApproxDuration(C150,5), (C150-C149)*ApproxDuration(C150,5)) -> -0.008559838012
B151: 141 | C151: 0.02490694902 | D151: =IF(ReturnsType="Relative", (C151/C150-1)*IRNow1*ApproxDuration(C151,5), (C151-C150)*ApproxDuration(C151,5)) -> 0.007101333145 | F151: =IF(ReturnsType2="Relative", (C151/C150-1)*IRNow1*ApproxDuration(C151,5), (C151-C150)*ApproxDuration(C151,5)) -> 0.007101333145
B152: 142 | C152: 0.02542569611 | D152: =IF(ReturnsType="Relative", (C152/C151-1)*IRNow1*ApproxDuration(C152,5), (C152-C151)*ApproxDuration(C152,5)) -> 0.002640314921 | F152: =IF(ReturnsType2="Relative", (C152/C151-1)*IRNow1*ApproxDuration(C152,5), (C152-C151)*ApproxDuration(C152,5)) -> 0.002640314921
B153: 143 | C153: 0.02444357481 | D153: =IF(ReturnsType="Relative", (C153/C152-1)*IRNow1*ApproxDuration(C153,5), (C153-C152)*ApproxDuration(C153,5)) -> -0.004908593184 | F153: =IF(ReturnsType2="Relative", (C153/C152-1)*IRNow1*ApproxDuration(C153,5), (C153-C152)*ApproxDuration(C153,5)) -> -0.004908593184
B154: 144 | C154: 0.02515673757 | D154: =IF(ReturnsType="Relative", (C154/C153-1)*IRNow1*ApproxDuration(C154,5), (C154-C153)*ApproxDuration(C154,5)) -> 0.003701096306 | F154: =IF(ReturnsType2="Relative", (C154/C153-1)*IRNow1*ApproxDuration(C154,5), (C154-C153)*ApproxDuration(C154,5)) -> 0.003701096306
B155: 145 | C155: 0.02603295368 | D155: =IF(ReturnsType="Relative", (C155/C154-1)*IRNow1*ApproxDuration(C155,5), (C155-C154)*ApproxDuration(C155,5)) -> 0.004408920937 | F155: =IF(ReturnsType2="Relative", (C155/C154-1)*IRNow1*ApproxDuration(C155,5), (C155-C154)*ApproxDuration(C155,5)) -> 0.004408920937
B156: 146 | C156: 0.02710118666 | D156: =IF(ReturnsType="Relative", (C156/C155-1)*IRNow1*ApproxDuration(C156,5), (C156-C155)*ApproxDuration(C156,5)) -> 0.005180644415 | F156: =IF(ReturnsType2="Relative", (C156/C155-1)*IRNow1*ApproxDuration(C156,5), (C156-C155)*ApproxDuration(C156,5)) -> 0.005180644415
B157: 147 | C157: 0.02868446235 | D157: =IF(ReturnsType="Relative", (C157/C156-1)*IRNow1*ApproxDuration(C157,5), (C157-C156)*ApproxDuration(C157,5)) -> 0.00734734457 | F157: =IF(ReturnsType2="Relative", (C157/C156-1)*IRNow1*ApproxDuration(C157,5), (C157-C156)*ApproxDuration(C157,5)) -> 0.00734734457
B158: 148 | C158: 0.02971485632 | D158: =IF(ReturnsType="Relative", (C158/C157-1)*IRNow1*ApproxDuration(C158,5), (C158-C157)*ApproxDuration(C158,5)) -> 0.00450637412 | F158: =IF(ReturnsType2="Relative", (C158/C157-1)*IRNow1*ApproxDuration(C158,5), (C158-C157)*ApproxDuration(C158,5)) -> 0.00450637412
B159: 149 | C159: 0.02888459688 | D159: =IF(ReturnsType="Relative", (C159/C158-1)*IRNow1*ApproxDuration(C159,5), (C159-C158)*ApproxDuration(C159,5)) -> -0.00351228929 | F159: =IF(ReturnsType2="Relative", (C159/C158-1)*IRNow1*ApproxDuration(C159,5), (C159-C158)*ApproxDuration(C159,5)) -> -0.00351228929
B160: 150 | C160: 0.02902902985 | D160: =IF(ReturnsType="Relative", (C160/C159-1)*IRNow1*ApproxDuration(C160,5), (C160-C159)*ApproxDuration(C160,5)) -> 0.0006283434447 | F160: =IF(ReturnsType2="Relative", (C160/C159-1)*IRNow1*ApproxDuration(C160,5), (C160-C159)*ApproxDuration(C160,5)) -> 0.0006283434447
B161: 151 | C161: 0.02959138134 | D161: =IF(ReturnsType="Relative", (C161/C160-1)*IRNow1*ApproxDuration(C161,5), (C161-C160)*ApproxDuration(C161,5)) -> 0.002430953923 | F161: =IF(ReturnsType2="Relative", (C161/C160-1)*IRNow1*ApproxDuration(C161,5), (C161-C160)*ApproxDuration(C161,5)) -> 0.002430953923
B162: 152 | C162: 0.02957451389 | D162: =IF(ReturnsType="Relative", (C162/C161-1)*IRNow1*ApproxDuration(C162,5), (C162-C161)*ApproxDuration(C162,5)) -> -7.153250494e-05 | F162: =IF(ReturnsType2="Relative", (C162/C161-1)*IRNow1*ApproxDuration(C162,5), (C162-C161)*ApproxDuration(C162,5)) -> -7.153250494e-05
B163: 153 | C163: 0.02957942375 | D163: =IF(ReturnsType="Relative", (C163/C162-1)*IRNow1*ApproxDuration(C163,5), (C163-C162)*ApproxDuration(C163,5)) -> 2.083367304e-05 | F163: =IF(ReturnsType2="Relative", (C163/C162-1)*IRNow1*ApproxDuration(C163,5), (C163-C162)*ApproxDuration(C163,5)) -> 2.083367304e-05
B164: 154 | C164: 0.02954827346 | D164: =IF(ReturnsType="Relative", (C164/C163-1)*IRNow1*ApproxDuration(C164,5), (C164-C163)*ApproxDuration(C164,5)) -> -0.0001321659136 | F164: =IF(ReturnsType2="Relative", (C164/C163-1)*IRNow1*ApproxDuration(C164,5), (C164-C163)*ApproxDuration(C164,5)) -> -0.0001321659136
B165: 155 | C165: 0.02950510195 | D165: =IF(ReturnsType="Relative", (C165/C164-1)*IRNow1*ApproxDuration(C165,5), (C165-C164)*ApproxDuration(C165,5)) -> -0.0001833825179 | F165: =IF(ReturnsType2="Relative", (C165/C164-1)*IRNow1*ApproxDuration(C165,5), (C165-C164)*ApproxDuration(C165,5)) -> -0.0001833825179
B166: 156 | C166: 0.03099018293 | D166: =IF(ReturnsType="Relative", (C166/C165-1)*IRNow1*ApproxDuration(C166,5), (C166-C165)*ApproxDuration(C166,5)) -> 0.006294685053 | F166: =IF(ReturnsType2="Relative", (C166/C165-1)*IRNow1*ApproxDuration(C166,5), (C166-C165)*ApproxDuration(C166,5)) -> 0.006294685053
B167: 157 | C167: 0.03090028301 | D167: =IF(ReturnsType="Relative", (C167/C166-1)*IRNow1*ApproxDuration(C167,5), (C167-C166)*ApproxDuration(C167,5)) -> -0.0003628701207 | F167: =IF(ReturnsType2="Relative", (C167/C166-1)*IRNow1*ApproxDuration(C167,5), (C167-C166)*ApproxDuration(C167,5)) -> -0.0003628701207
B168: 158 | C168: 0.03090752373 | D168: =IF(ReturnsType="Relative", (C168/C167-1)*IRNow1*ApproxDuration(C168,5), (C168-C167)*ApproxDuration(C168,5)) -> 2.931079149e-05 | F168: =IF(ReturnsType2="Relative", (C168/C167-1)*IRNow1*ApproxDuration(C168,5), (C168-C167)*ApproxDuration(C168,5)) -> 2.931079149e-05
B169: 159 | C169: 0.0308238231 | D169: =IF(ReturnsType="Relative", (C169/C168-1)*IRNow1*ApproxDuration(C169,5), (C169-C168)*ApproxDuration(C169,5)) -> -0.000338814099 | F169: =IF(ReturnsType2="Relative", (C169/C168-1)*IRNow1*ApproxDuration(C169,5), (C169-C168)*ApproxDuration(C169,5)) -> -0.000338814099
B170: 160 | C170: 0.03061136083 | D170: =IF(ReturnsType="Relative", (C170/C169-1)*IRNow1*ApproxDuration(C170,5), (C170-C169)*ApproxDuration(C170,5)) -> -0.0008628137424 | F170: =IF(ReturnsType2="Relative", (C170/C169-1)*IRNow1*ApproxDuration(C170,5), (C170-C169)*ApproxDuration(C170,5)) -> -0.0008628137424
B171: 161 | C171: 0.02898559298 | D171: =IF(ReturnsType="Relative", (C171/C170-1)*IRNow1*ApproxDuration(C171,5), (C171-C170)*ApproxDuration(C171,5)) -> -0.006674503593 | F171: =IF(ReturnsType2="Relative", (C171/C170-1)*IRNow1*ApproxDuration(C171,5), (C171-C170)*ApproxDuration(C171,5)) -> -0.006674503593
B172: 162 | C172: 0.02940499258 | D172: =IF(ReturnsType="Relative", (C172/C171-1)*IRNow1*ApproxDuration(C172,5), (C172-C171)*ApproxDuration(C172,5)) -> 0.00181653856 | F172: =IF(ReturnsType2="Relative", (C172/C171-1)*IRNow1*ApproxDuration(C172,5), (C172-C171)*ApproxDuration(C172,5)) -> 0.00181653856
B173: 163 | C173: 0.03053629991 | D173: =IF(ReturnsType="Relative", (C173/C172-1)*IRNow1*ApproxDuration(C173,5), (C173-C172)*ApproxDuration(C173,5)) -> 0.004816822933 | F173: =IF(ReturnsType2="Relative", (C173/C172-1)*IRNow1*ApproxDuration(C173,5), (C173-C172)*ApproxDuration(C173,5)) -> 0.004816822933
B174: 164 | C174: 0.02994200496 | D174: =IF(ReturnsType="Relative", (C174/C173-1)*IRNow1*ApproxDuration(C174,5), (C174-C173)*ApproxDuration(C174,5)) -> -0.002440145805 | F174: =IF(ReturnsType2="Relative", (C174/C173-1)*IRNow1*ApproxDuration(C174,5), (C174-C173)*ApproxDuration(C174,5)) -> -0.002440145805
B175: 165 | C175: 0.03015461917 | D175: =IF(ReturnsType="Relative", (C175/C174-1)*IRNow1*ApproxDuration(C175,5), (C175-C174)*ApproxDuration(C175,5)) -> 0.0008898493849 | F175: =IF(ReturnsType2="Relative", (C175/C174-1)*IRNow1*ApproxDuration(C175,5), (C175-C174)*ApproxDuration(C175,5)) -> 0.0008898493849
B176: 166 | C176: 0.0319480039 | D176: =IF(ReturnsType="Relative", (C176/C175-1)*IRNow1*ApproxDuration(C176,5), (C176-C175)*ApproxDuration(C176,5)) -> 0.007420410448 | F176: =IF(ReturnsType2="Relative", (C176/C175-1)*IRNow1*ApproxDuration(C176,5), (C176-C175)*ApproxDuration(C176,5)) -> 0.007420410448
B177: 167 | C177: 0.03058616796 | D177: =IF(ReturnsType="Relative", (C177/C176-1)*IRNow1*ApproxDuration(C177,5), (C177-C176)*ApproxDuration(C177,5)) -> -0.005336167532 | F177: =IF(ReturnsType2="Relative", (C177/C176-1)*IRNow1*ApproxDuration(C177,5), (C177-C176)*ApproxDuration(C177,5)) -> -0.005336167532
B178: 168 | C178: 0.03122651291 | D178: =IF(ReturnsType="Relative", (C178/C177-1)*IRNow1*ApproxDuration(C178,5), (C178-C177)*ApproxDuration(C178,5)) -> 0.002616736338 | F178: =IF(ReturnsType2="Relative", (C178/C177-1)*IRNow1*ApproxDuration(C178,5), (C178-C177)*ApproxDuration(C178,5)) -> 0.002616736338
B179: 169 | C179: 0.03089787305 | D179: =IF(ReturnsType="Relative", (C179/C178-1)*IRNow1*ApproxDuration(C179,5), (C179-C178)*ApproxDuration(C179,5)) -> -0.001316483358 | F179: =IF(ReturnsType2="Relative", (C179/C178-1)*IRNow1*ApproxDuration(C179,5), (C179-C178)*ApproxDuration(C179,5)) -> -0.001316483358
B180: 170 | C180: 0.03072164966 | D180: =IF(ReturnsType="Relative", (C180/C179-1)*IRNow1*ApproxDuration(C180,5), (C180-C179)*ApproxDuration(C180,5)) -> -0.0007137399822 | F180: =IF(ReturnsType2="Relative", (C180/C179-1)*IRNow1*ApproxDuration(C180,5), (C180-C179)*ApproxDuration(C180,5)) -> -0.0007137399822
B181: 171 | C181: 0.03249105744 | D181: =IF(ReturnsType="Relative", (C181/C180-1)*IRNow1*ApproxDuration(C181,5), (C181-C180)*ApproxDuration(C181,5)) -> 0.007176586454 | F181: =IF(ReturnsType2="Relative", (C181/C180-1)*IRNow1*ApproxDuration(C181,5), (C181-C180)*ApproxDuration(C181,5)) -> 0.007176586454
B182: 172 | C182: 0.03289692881 | D182: =IF(ReturnsType="Relative", (C182/C181-1)*IRNow1*ApproxDuration(C182,5), (C182-C181)*ApproxDuration(C182,5)) -> 0.001555000109 | F182: =IF(ReturnsType2="Relative", (C182/C181-1)*IRNow1*ApproxDuration(C182,5), (C182-C181)*ApproxDuration(C182,5)) -> 0.001555000109
B183: 173 | C183: 0.03288934312 | D183: =IF(ReturnsType="Relative", (C183/C182-1)*IRNow1*ApproxDuration(C183,5), (C183-C182)*ApproxDuration(C183,5)) -> -2.870475251e-05 | F183: =IF(ReturnsType2="Relative", (C183/C182-1)*IRNow1*ApproxDuration(C183,5), (C183-C182)*ApproxDuration(C183,5)) -> -2.870475251e-05
B184: 174 | C184: 0.03213708565 | D184: =IF(ReturnsType="Relative", (C184/C183-1)*IRNow1*ApproxDuration(C184,5), (C184-C183)*ApproxDuration(C184,5)) -> -0.002852461599 | F184: =IF(ReturnsType2="Relative", (C184/C183-1)*IRNow1*ApproxDuration(C184,5), (C184-C183)*ApproxDuration(C184,5)) -> -0.002852461599
B185: 175 | C185: 0.03320295036 | D185: =IF(ReturnsType="Relative", (C185/C184-1)*IRNow1*ApproxDuration(C185,5), (C185-C184)*ApproxDuration(C185,5)) -> 0.004125516551 | F185: =IF(ReturnsType2="Relative", (C185/C184-1)*IRNow1*ApproxDuration(C185,5), (C185-C184)*ApproxDuration(C185,5)) -> 0.004125516551
B186: 176 | C186: 0.03291962864 | D186: =IF(ReturnsType="Relative", (C186/C185-1)*IRNow1*ApproxDuration(C186,5), (C186-C185)*ApproxDuration(C186,5)) -> -0.001062148093 | F186: =IF(ReturnsType2="Relative", (C186/C185-1)*IRNow1*ApproxDuration(C186,5), (C186-C185)*ApproxDuration(C186,5)) -> -0.001062148093
B187: 177 | C187: 0.0328741769 | D187: =IF(ReturnsType="Relative", (C187/C186-1)*IRNow1*ApproxDuration(C187,5), (C187-C186)*ApproxDuration(C187,5)) -> -0.0001718800485 | F187: =IF(ReturnsType2="Relative", (C187/C186-1)*IRNow1*ApproxDuration(C187,5), (C187-C186)*ApproxDuration(C187,5)) -> -0.0001718800485
B188: 178 | C188: 0.0317992651 | D188: =IF(ReturnsType="Relative", (C188/C187-1)*IRNow1*ApproxDuration(C188,5), (C188-C187)*ApproxDuration(C188,5)) -> -0.004081158436 | F188: =IF(ReturnsType2="Relative", (C188/C187-1)*IRNow1*ApproxDuration(C188,5), (C188-C187)*ApproxDuration(C188,5)) -> -0.004081158436
B189: 179 | C189: 0.03039759281 | D189: =IF(ReturnsType="Relative", (C189/C188-1)*IRNow1*ApproxDuration(C189,5), (C189-C188)*ApproxDuration(C189,5)) -> -0.005520486358 | F189: =IF(ReturnsType2="Relative", (C189/C188-1)*IRNow1*ApproxDuration(C189,5), (C189-C188)*ApproxDuration(C189,5)) -> -0.005520486358
B190: 180 | C190: 0.03090865458 | D190: =IF(ReturnsType="Relative", (C190/C189-1)*IRNow1*ApproxDuration(C190,5), (C190-C189)*ApproxDuration(C190,5)) -> 0.002103010459 | F190: =IF(ReturnsType2="Relative", (C190/C189-1)*IRNow1*ApproxDuration(C190,5), (C190-C189)*ApproxDuration(C190,5)) -> 0.002103010459
B191: 181 | C191: 0.03038664117 | D191: =IF(ReturnsType="Relative", (C191/C190-1)*IRNow1*ApproxDuration(C191,5), (C191-C190)*ApproxDuration(C191,5)) -> -0.002115246989 | F191: =IF(ReturnsType2="Relative", (C191/C190-1)*IRNow1*ApproxDuration(C191,5), (C191-C190)*ApproxDuration(C191,5)) -> -0.002115246989
B192: 182 | C192: 0.03272949108 | D192: =IF(ReturnsType="Relative", (C192/C191-1)*IRNow1*ApproxDuration(C192,5), (C192-C191)*ApproxDuration(C192,5)) -> 0.009601618475 | F192: =IF(ReturnsType2="Relative", (C192/C191-1)*IRNow1*ApproxDuration(C192,5), (C192-C191)*ApproxDuration(C192,5)) -> 0.009601618475
B193: 183 | C193: 0.03271194184 | D193: =IF(ReturnsType="Relative", (C193/C192-1)*IRNow1*ApproxDuration(C193,5), (C193-C192)*ApproxDuration(C193,5)) -> -6.677594825e-05 | F193: =IF(ReturnsType2="Relative", (C193/C192-1)*IRNow1*ApproxDuration(C193,5), (C193-C192)*ApproxDuration(C193,5)) -> -6.677594825e-05
B194: 184 | C194: 0.03212186958 | D194: =IF(ReturnsType="Relative", (C194/C193-1)*IRNow1*ApproxDuration(C194,5), (C194-C193)*ApproxDuration(C194,5)) -> -0.002249693984 | F194: =IF(ReturnsType2="Relative", (C194/C193-1)*IRNow1*ApproxDuration(C194,5), (C194-C193)*ApproxDuration(C194,5)) -> -0.002249693984
B195: 185 | C195: 0.03137158626 | D195: =IF(ReturnsType="Relative", (C195/C194-1)*IRNow1*ApproxDuration(C195,5), (C195-C194)*ApproxDuration(C195,5)) -> -0.002918381887 | F195: =IF(ReturnsType2="Relative", (C195/C194-1)*IRNow1*ApproxDuration(C195,5), (C195-C194)*ApproxDuration(C195,5)) -> -0.002918381887
B196: 186 | C196: 0.03200787139 | D196: =IF(ReturnsType="Relative", (C196/C195-1)*IRNow1*ApproxDuration(C196,5), (C196-C195)*ApproxDuration(C196,5)) -> 0.002530231949 | F196: =IF(ReturnsType2="Relative", (C196/C195-1)*IRNow1*ApproxDuration(C196,5), (C196-C195)*ApproxDuration(C196,5)) -> 0.002530231949
B197: 187 | C197: 0.03257676431 | D197: =IF(ReturnsType="Relative", (C197/C196-1)*IRNow1*ApproxDuration(C197,5), (C197-C196)*ApproxDuration(C197,5)) -> 0.002214204482 | F197: =IF(ReturnsType2="Relative", (C197/C196-1)*IRNow1*ApproxDuration(C197,5), (C197-C196)*ApproxDuration(C197,5)) -> 0.002214204482
B198: 188 | C198: 0.03255068846 | D198: =IF(ReturnsType="Relative", (C198/C197-1)*IRNow1*ApproxDuration(C198,5), (C198-C197)*ApproxDuration(C198,5)) -> -9.972454503e-05 | F198: =IF(ReturnsType2="Relative", (C198/C197-1)*IRNow1*ApproxDuration(C198,5), (C198-C197)*ApproxDuration(C198,5)) -> -9.972454503e-05
B199: 189 | C199: 0.032600878 | D199: =IF(ReturnsType="Relative", (C199/C198-1)*IRNow1*ApproxDuration(C199,5), (C199-C198)*ApproxDuration(C199,5)) -> 0.0001920753098 | F199: =IF(ReturnsType2="Relative", (C199/C198-1)*IRNow1*ApproxDuration(C199,5), (C199-C198)*ApproxDuration(C199,5)) -> 0.0001920753098
B200: 190 | C200: 0.03167952848 | D200: =IF(ReturnsType="Relative", (C200/C199-1)*IRNow1*ApproxDuration(C200,5), (C200-C199)*ApproxDuration(C200,5)) -> -0.003528476227 | F200: =IF(ReturnsType2="Relative", (C200/C199-1)*IRNow1*ApproxDuration(C200,5), (C200-C199)*ApproxDuration(C200,5)) -> -0.003528476227
B201: 191 | C201: 0.03267433899 | D201: =IF(ReturnsType="Relative", (C201/C200-1)*IRNow1*ApproxDuration(C201,5), (C201-C200)*ApproxDuration(C201,5)) -> 0.003911132959 | F201: =IF(ReturnsType2="Relative", (C201/C200-1)*IRNow1*ApproxDuration(C201,5), (C201-C200)*ApproxDuration(C201,5)) -> 0.003911132959
B202: 192 | C202: 0.02977884388 | D202: =IF(ReturnsType="Relative", (C202/C201-1)*IRNow1*ApproxDuration(C202,5), (C202-C201)*ApproxDuration(C202,5)) -> -0.01111524196 | F202: =IF(ReturnsType2="Relative", (C202/C201-1)*IRNow1*ApproxDuration(C202,5), (C202-C201)*ApproxDuration(C202,5)) -> -0.01111524196
B203: 193 | C203: 0.0294715337 | D203: =IF(ReturnsType="Relative", (C203/C202-1)*IRNow1*ApproxDuration(C203,5), (C203-C202)*ApproxDuration(C203,5)) -> -0.001295380722 | F203: =IF(ReturnsType2="Relative", (C203/C202-1)*IRNow1*ApproxDuration(C203,5), (C203-C202)*ApproxDuration(C203,5)) -> -0.001295380722
B204: =B203+1 -> 194 | C204: 0.03067502017 | D204: =IF(ReturnsType="Relative", (C204/C203-1)*IRNow1*ApproxDuration(C204,5), (C204-C203)*ApproxDuration(C204,5)) -> 0.005110846752 | F204: =IF(ReturnsType2="Relative", (C204/C203-1)*IRNow1*ApproxDuration(C204,5), (C204-C203)*ApproxDuration(C204,5)) -> 0.005110846752
B205: 195 | C205: 0.03004862146 | D205: =IF(ReturnsType="Relative", (C205/C204-1)*IRNow1*ApproxDuration(C205,5), (C205-C204)*ApproxDuration(C205,5)) -> -0.002559665921 | F205: =IF(ReturnsType2="Relative", (C205/C204-1)*IRNow1*ApproxDuration(C205,5), (C205-C204)*ApproxDuration(C205,5)) -> -0.002559665921
B206: 196 | C206: 0.03178300231 | D206: =IF(ReturnsType="Relative", (C206/C205-1)*IRNow1*ApproxDuration(C206,5), (C206-C205)*ApproxDuration(C206,5)) -> 0.00720447967 | F206: =IF(ReturnsType2="Relative", (C206/C205-1)*IRNow1*ApproxDuration(C206,5), (C206-C205)*ApproxDuration(C206,5)) -> 0.00720447967
B207: 197 | C207: 0.03097304867 | D207: =IF(ReturnsType="Relative", (C207/C206-1)*IRNow1*ApproxDuration(C207,5), (C207-C206)*ApproxDuration(C207,5)) -> -0.003187163606 | F207: =IF(ReturnsType2="Relative", (C207/C206-1)*IRNow1*ApproxDuration(C207,5), (C207-C206)*ApproxDuration(C207,5)) -> -0.003187163606
... 3804 more rows

Sheet CrossMargining
M2: Parameters
M3: Alpha | N3: 0.998
M4: Metric | N4: VAR
M5: Returns | N5: Relative
M6: Data window | N6: 500
C9: IR1 | D9: IR2 | E9: ∆MTM1 | F9: ∆MTM2 | G9: ∆MTM(1+2) | H9: IM1 | I9: IM2 | J9: IM(1+2) | K9: P Effect
B10: 0 | C10: 0.05212 | D10: 0.02904
B11: =B10+1 -> 1 | C11: 0.0513 | D11: 0.0279884 | E11: =IF(ReturnsType="Relative", (C11/C10-1)*IRNow1*ApproxDuration(C11,5), (C11-C10)*ApproxDuration(C11,5)) -> -0.001873418674 | F11: =IF(ReturnsType="Relative", (D11/D10-1)*IRNow2*ApproxDuration(D11,5), (D11-D10)*ApproxDuration(D11,5)) -> -0.006035914221 | G11: =F11+E11 -> -0.007909332895
B12: =B11+1 -> 2 | C12: 0.0524 | D12: 0.0280422 | E12: =IF(ReturnsType="Relative", (C12/C11-1)*IRNow1*ApproxDuration(C12,5), (C12-C11)*ApproxDuration(C12,5)) -> 0.002546583708 | F12: =IF(ReturnsType="Relative", (D12/D11-1)*IRNow2*ApproxDuration(D12,5), (D12-D11)*ApproxDuration(D12,5)) -> 0.0003203584975 | G12: =F12+E12 -> 0.002866942205 | H12: =IF(DataWindow<B12,-CalcIM(OFFSET(E11,0,0,-DataWindow,1),ConfLevel, metric),"") ->  | J12: =IF(DataWindow<B12,-CalcIM(OFFSET(G11,0,0,-DataWindow,1),ConfLevel, metric),"") ->  | K12: =IF(H12<>"",J12/(I12+H12),"") -> 
B13: 3 | C13: 0.0524 | D13: 0.028069 | E13: =IF(ReturnsType="Relative", (C13/C12-1)*IRNow1*ApproxDuration(C13,5), (C13-C12)*ApproxDuration(C13,5)) -> 0 | F13: =IF(ReturnsType="Relative", (D13/D12-1)*IRNow2*ApproxDuration(D13,5), (D13-D12)*ApproxDuration(D13,5)) -> 0.0001592671976 | G13: 0.0001592671976 | H13: =IF(DataWindow<B13,-CalcIM(OFFSET(E12,0,0,-DataWindow,1),ConfLevel, metric),"") ->  | J13: =IF(DataWindow<B13,-CalcIM(OFFSET(G12,0,0,-DataWindow,1),ConfLevel, metric),"") ->  | K13: =IF(H13<>"",J13/(I13+H13),"") -> 
B14: 4 | C14: 0.0521 | D14: 0.0288294 | E14: =IF(ReturnsType="Relative", (C14/C13-1)*IRNow1*ApproxDuration(C14,5), (C14-C13)*ApproxDuration(C14,5)) -> -0.0006804311048 | F14: =IF(ReturnsType="Relative", (D14/D13-1)*IRNow2*ApproxDuration(D14,5), (D14-D13)*ApproxDuration(D14,5)) -> 0.004506223903 | G14: 0.003825792799 | H14: =IF(DataWindow<B14,-CalcIM(OFFSET(E13,0,0,-DataWindow,1),ConfLevel, metric),"") ->  | J14: =IF(DataWindow<B14,-CalcIM(OFFSET(G13,0,0,-DataWindow,1),ConfLevel, metric),"") -> 
B15: 5 | C15: 0.0521 | D15: 0.029152 | E15: =IF(ReturnsType="Relative", (C15/C14-1)*IRNow1*ApproxDuration(C15,5), (C15-C14)*ApproxDuration(C15,5)) -> 0 | F15: =IF(ReturnsType="Relative", (D15/D14-1)*IRNow2*ApproxDuration(D15,5), (D15-D14)*ApproxDuration(D15,5)) -> 0.001859878435 | G15: 0.001859878435 | H15: =IF(DataWindow<B15,-CalcIM(OFFSET(E14,0,0,-DataWindow,1),ConfLevel, metric),"") ->  | J15: =IF(DataWindow<B15,-CalcIM(OFFSET(G14,0,0,-DataWindow,1),ConfLevel, metric),"") -> 
B16: 6 | C16: 0.0524 | D16: 0.0287712 | E16: =IF(ReturnsType="Relative", (C16/C15-1)*IRNow1*ApproxDuration(C16,5), (C16-C15)*ApproxDuration(C16,5)) -> 0.0006838583713 | F16: =IF(ReturnsType="Relative", (D16/D15-1)*IRNow2*ApproxDuration(D16,5), (D16-D15)*ApproxDuration(D16,5)) -> -0.002173140759 | G16: -0.001489282388 | H16: =IF(DataWindow<B16,-CalcIM(OFFSET(E15,0,0,-DataWindow,1),ConfLevel, metric),"") ->  | J16: =IF(DataWindow<B16,-CalcIM(OFFSET(G15,0,0,-DataWindow,1),ConfLevel, metric),"") -> 
B17: 7 | C17: 0.0519 | D17: 0.028645 | E17: =IF(ReturnsType="Relative", (C17/C16-1)*IRNow1*ApproxDuration(C17,5), (C17-C16)*ApproxDuration(C17,5)) -> -0.001134594454 | F17: =IF(ReturnsType="Relative", (D17/D16-1)*IRNow2*ApproxDuration(D17,5), (D17-D16)*ApproxDuration(D17,5)) -> -0.000729952155 | G17: -0.001864546609 | H17: =IF(DataWindow<B17,-CalcIM(OFFSET(E16,0,0,-DataWindow,1),ConfLevel, metric),"") ->  | J17: =IF(DataWindow<B17,-CalcIM(OFFSET(G16,0,0,-DataWindow,1),ConfLevel, metric),"") -> 
B18: 8 | C18: 0.0535 | D18: 0.0289936 | E18: =IF(ReturnsType="Relative", (C18/C17-1)*IRNow1*ApproxDuration(C18,5), (C18-C17)*ApproxDuration(C18,5)) -> 0.003651687363 | F18: =IF(ReturnsType="Relative", (D18/D17-1)*IRNow2*ApproxDuration(D18,5), (D18-D17)*ApproxDuration(D18,5)) -> 0.002023495167 | G18: 0.00567518253 | H18: =IF(DataWindow<B18,-CalcIM(OFFSET(E17,0,0,-DataWindow,1),ConfLevel, metric),"") ->  | J18: =IF(DataWindow<B18,-CalcIM(OFFSET(G17,0,0,-DataWindow,1),ConfLevel, metric),"") -> 
B19: 9 | C19: 0.0536 | D19: 0.029303 | E19: =IF(ReturnsType="Relative", (C19/C18-1)*IRNow1*ApproxDuration(C19,5), (C19-C18)*ApproxDuration(C19,5)) -> 0.0002213519985 | F19: =IF(ReturnsType="Relative", (D19/D18-1)*IRNow2*ApproxDuration(D19,5), (D19-D18)*ApproxDuration(D19,5)) -> 0.001773021539 | G19: 0.001994373538 | H19: =IF(DataWindow<B19,-CalcIM(OFFSET(E18,0,0,-DataWindow,1),ConfLevel, metric),"") ->  | J19: =IF(DataWindow<B19,-CalcIM(OFFSET(G18,0,0,-DataWindow,1),ConfLevel, metric),"") -> 
B20: 10 | C20: 0.0541 | D20: 0.0291028 | E20: =IF(ReturnsType="Relative", (C20/C19-1)*IRNow1*ApproxDuration(C20,5), (C20-C19)*ApproxDuration(C20,5)) -> 0.001103376952 | F20: =IF(ReturnsType="Relative", (D20/D19-1)*IRNow2*ApproxDuration(D20,5), (D20-D19)*ApproxDuration(D20,5)) -> -0.001135690283 | G20: -3.231333074e-05 | H20: =IF(DataWindow<B20,-CalcIM(OFFSET(E19,0,0,-DataWindow,1),ConfLevel, metric),"") ->  | J20: =IF(DataWindow<B20,-CalcIM(OFFSET(G19,0,0,-DataWindow,1),ConfLevel, metric),"") -> 
B21: 11 | C21: 0.0539 | D21: 0.029118 | E21: =IF(ReturnsType="Relative", (C21/C20-1)*IRNow1*ApproxDuration(C21,5), (C21-C20)*ApproxDuration(C21,5)) -> -0.0004374806123 | F21: =IF(ReturnsType="Relative", (D21/D20-1)*IRNow2*ApproxDuration(D21,5), (D21-D20)*ApproxDuration(D21,5)) -> 8.681617189e-05 | G21: -0.0003506644404 | H21: =IF(DataWindow<B21,-CalcIM(OFFSET(E20,0,0,-DataWindow,1),ConfLevel, metric),"") ->  | J21: =IF(DataWindow<B21,-CalcIM(OFFSET(G20,0,0,-DataWindow,1),ConfLevel, metric),"") -> 
B22: 12 | C22: 0.0549 | D22: 0.0289114 | E22: =IF(ReturnsType="Relative", (C22/C21-1)*IRNow1*ApproxDuration(C22,5), (C22-C21)*ApproxDuration(C22,5)) -> 0.002190285554 | F22: =IF(ReturnsType="Relative", (D22/D21-1)*IRNow2*ApproxDuration(D22,5), (D22-D21)*ApproxDuration(D22,5)) -> -0.001179993148 | G22: 0.001010292405 | H22: =IF(DataWindow<B22,-CalcIM(OFFSET(E21,0,0,-DataWindow,1),ConfLevel, metric),"") ->  | J22: =IF(DataWindow<B22,-CalcIM(OFFSET(G21,0,0,-DataWindow,1),ConfLevel, metric),"") -> 
B23: 13 | C23: 0.0553 | D23: 0.0288272 | E23: =IF(ReturnsType="Relative", (C23/C22-1)*IRNow1*ApproxDuration(C23,5), (C23-C22)*ApproxDuration(C23,5)) -> 0.000859335538 | F23: =IF(ReturnsType="Relative", (D23/D22-1)*IRNow2*ApproxDuration(D23,5), (D23-D22)*ApproxDuration(D23,5)) -> -0.0004844432396 | G23: 0.0003748922985 | H23: =IF(DataWindow<B23,-CalcIM(OFFSET(E22,0,0,-DataWindow,1),ConfLevel, metric),"") ->  | J23: =IF(DataWindow<B23,-CalcIM(OFFSET(G22,0,0,-DataWindow,1),ConfLevel, metric),"") -> 
B24: 14 | C24: 0.0551 | D24: 0.0280306 | E24: =IF(ReturnsType="Relative", (C24/C23-1)*IRNow1*ApproxDuration(C24,5), (C24-C23)*ApproxDuration(C24,5)) -> -0.0004267633947 | F24: =IF(ReturnsType="Relative", (D24/D23-1)*IRNow2*ApproxDuration(D24,5), (D24-D23)*ApproxDuration(D24,5)) -> -0.004605557255 | G24: -0.00503232065 | H24: =IF(DataWindow<B24,-CalcIM(OFFSET(E23,0,0,-DataWindow,1),ConfLevel, metric),"") ->  | J24: =IF(DataWindow<B24,-CalcIM(OFFSET(G23,0,0,-DataWindow,1),ConfLevel, metric),"") -> 
B25: 15 | C25: 0.0557 | D25: 0.0282006 | E25: =IF(ReturnsType="Relative", (C25/C24-1)*IRNow1*ApproxDuration(C25,5), (C25-C24)*ApproxDuration(C25,5)) -> 0.001283100113 | F25: =IF(ReturnsType="Relative", (D25/D24-1)*IRNow2*ApproxDuration(D25,5), (D25-D24)*ApproxDuration(D25,5)) -> 0.001010370413 | G25: 0.002293470526 | H25: =IF(DataWindow<B25,-CalcIM(OFFSET(E24,0,0,-DataWindow,1),ConfLevel, metric),"") ->  | J25: =IF(DataWindow<B25,-CalcIM(OFFSET(G24,0,0,-DataWindow,1),ConfLevel, metric),"") -> 
B26: 16 | C26: 0.0556 | D26: 0.0280818 | E26: =IF(ReturnsType="Relative", (C26/C25-1)*IRNow1*ApproxDuration(C26,5), (C26-C25)*ApproxDuration(C26,5)) -> -0.0002115968711 | F26: =IF(ReturnsType="Relative", (D26/D25-1)*IRNow2*ApproxDuration(D26,5), (D26-D25)*ApproxDuration(D26,5)) -> -0.0007020178364 | G26: -0.0009136147075 | H26: =IF(DataWindow<B26,-CalcIM(OFFSET(E25,0,0,-DataWindow,1),ConfLevel, metric),"") ->  | J26: =IF(DataWindow<B26,-CalcIM(OFFSET(G25,0,0,-DataWindow,1),ConfLevel, metric),"") -> 
B27: 17 | C27: 0.0539 | D27: 0.0279712 | E27: =IF(ReturnsType="Relative", (C27/C26-1)*IRNow1*ApproxDuration(C27,5), (C27-C26)*ApproxDuration(C27,5)) -> -0.003618263661 | F27: =IF(ReturnsType="Relative", (D27/D26-1)*IRNow2*ApproxDuration(D27,5), (D27-D26)*ApproxDuration(D27,5)) -> -0.0006565042141 | G27: -0.004274767875 | H27: =IF(DataWindow<B27,-CalcIM(OFFSET(E26,0,0,-DataWindow,1),ConfLevel, metric),"") ->  | J27: =IF(DataWindow<B27,-CalcIM(OFFSET(G26,0,0,-DataWindow,1),ConfLevel, metric),"") -> 
B28: 18 | C28: 0.056 | D28: 0.0272032 | E28: =IF(ReturnsType="Relative", (C28/C27-1)*IRNow1*ApproxDuration(C28,5), (C28-C27)*ApproxDuration(C28,5)) -> 0.004587550311 | F28: =IF(ReturnsType="Relative", (D28/D27-1)*IRNow2*ApproxDuration(D28,5), (D28-D27)*ApproxDuration(D28,5)) -> -0.004585346258 | G28: 2.204052999e-06 | H28: =IF(DataWindow<B28,-CalcIM(OFFSET(E27,0,0,-DataWindow,1),ConfLevel, metric),"") ->  | J28: =IF(DataWindow<B28,-CalcIM(OFFSET(G27,0,0,-DataWindow,1),ConfLevel, metric),"") -> 
B29: 19 | C29: 0.0565 | D29: 0.0278892 | E29: =IF(ReturnsType="Relative", (C29/C28-1)*IRNow1*ApproxDuration(C29,5), (C29-C28)*ApproxDuration(C29,5)) -> 0.001050061736 | F29: =IF(ReturnsType="Relative", (D29/D28-1)*IRNow2*ApproxDuration(D29,5), (D29-D28)*ApproxDuration(D29,5)) -> 0.00420434565 | G29: 0.005254407386 | H29: =IF(DataWindow<B29,-CalcIM(OFFSET(E28,0,0,-DataWindow,1),ConfLevel, metric),"") ->  | J29: =IF(DataWindow<B29,-CalcIM(OFFSET(G28,0,0,-DataWindow,1),ConfLevel, metric),"") -> 
B30: 20 | C30: 0.0566 | D30: 0.0281856 | E30: =IF(ReturnsType="Relative", (C30/C29-1)*IRNow1*ApproxDuration(C30,5), (C30-C29)*ApproxDuration(C30,5)) -> 0.0002081042474 | F30: =IF(ReturnsType="Relative", (D30/D29-1)*IRNow2*ApproxDuration(D30,5), (D30-D29)*ApproxDuration(D30,5)) -> 0.001770606845 | G30: 0.001978711093 | H30: =IF(DataWindow<B30,-CalcIM(OFFSET(E29,0,0,-DataWindow,1),ConfLevel, metric),"") ->  | J30: =IF(DataWindow<B30,-CalcIM(OFFSET(G29,0,0,-DataWindow,1),ConfLevel, metric),"") -> 
B31: 21 | C31: 0.0559 | D31: 0.0281824 | E31: =IF(ReturnsType="Relative", (C31/C30-1)*IRNow1*ApproxDuration(C31,5), (C31-C30)*ApproxDuration(C31,5)) -> -0.001456583672 | F31: =IF(ReturnsType="Relative", (D31/D30-1)*IRNow2*ApproxDuration(D31,5), (D31-D30)*ApproxDuration(D31,5)) -> -1.891498857e-05 | G31: -0.001475498661 | H31: =IF(DataWindow<B31,-CalcIM(OFFSET(E30,0,0,-DataWindow,1),ConfLevel, metric),"") ->  | J31: =IF(DataWindow<B31,-CalcIM(OFFSET(G30,0,0,-DataWindow,1),ConfLevel, metric),"") -> 
B32: 22 | C32: 0.0558 | D32: 0.0284994 | E32: =IF(ReturnsType="Relative", (C32/C31-1)*IRNow1*ApproxDuration(C32,5), (C32-C31)*ApproxDuration(C32,5)) -> -0.000210739307 | F32: =IF(ReturnsType="Relative", (D32/D31-1)*IRNow2*ApproxDuration(D32,5), (D32-D31)*ApproxDuration(D32,5)) -> 0.00187252931 | G32: 0.001661790003 | H32: =IF(DataWindow<B32,-CalcIM(OFFSET(E31,0,0,-DataWindow,1),ConfLevel, metric),"") ->  | J32: =IF(DataWindow<B32,-CalcIM(OFFSET(G31,0,0,-DataWindow,1),ConfLevel, metric),"") -> 
B33: 23 | C33: 0.0552 | D33: 0.0284874 | E33: =IF(ReturnsType="Relative", (C33/C32-1)*IRNow1*ApproxDuration(C33,5), (C33-C32)*ApproxDuration(C33,5)) -> -0.001268515441 | F33: =IF(ReturnsType="Relative", (D33/D32-1)*IRNow2*ApproxDuration(D33,5), (D33-D32)*ApproxDuration(D33,5)) -> -7.009799327e-05 | G33: -0.001338613435 | H33: =IF(DataWindow<B33,-CalcIM(OFFSET(E32,0,0,-DataWindow,1),ConfLevel, metric),"") ->  | J33: =IF(DataWindow<B33,-CalcIM(OFFSET(G32,0,0,-DataWindow,1),ConfLevel, metric),"") -> 
B34: 24 | C34: 0.0549 | D34: 0.0284848 | E34: =IF(ReturnsType="Relative", (C34/C33-1)*IRNow1*ApproxDuration(C34,5), (C34-C33)*ApproxDuration(C34,5)) -> -0.0006416108226 | F34: =IF(ReturnsType="Relative", (D34/D33-1)*IRNow2*ApproxDuration(D34,5), (D34-D33)*ApproxDuration(D34,5)) -> -1.519439269e-05 | G34: -0.0006568052153 | H34: =IF(DataWindow<B34,-CalcIM(OFFSET(E33,0,0,-DataWindow,1),ConfLevel, metric),"") ->  | J34: =IF(DataWindow<B34,-CalcIM(OFFSET(G33,0,0,-DataWindow,1),ConfLevel, metric),"") -> 
B35: 25 | C35: 0.0548 | D35: 0.0288344 | E35: =IF(ReturnsType="Relative", (C35/C34-1)*IRNow1*ApproxDuration(C35,5), (C35-C34)*ApproxDuration(C35,5)) -> -0.0002150902759 | F35: =IF(ReturnsType="Relative", (D35/D34-1)*IRNow2*ApproxDuration(D35,5), (D35-D34)*ApproxDuration(D35,5)) -> 0.002041505482 | G35: 0.001826415206 | H35: =IF(DataWindow<B35,-CalcIM(OFFSET(E34,0,0,-DataWindow,1),ConfLevel, metric),"") ->  | J35: =IF(DataWindow<B35,-CalcIM(OFFSET(G34,0,0,-DataWindow,1),ConfLevel, metric),"") -> 
B36: 26 | C36: 0.0554 | D36: 0.0282342 | E36: =IF(ReturnsType="Relative", (C36/C35-1)*IRNow1*ApproxDuration(C36,5), (C36-C35)*ApproxDuration(C36,5)) -> 0.001291047573 | F36: =IF(ReturnsType="Relative", (D36/D35-1)*IRNow2*ApproxDuration(D36,5), (D36-D35)*ApproxDuration(D36,5)) -> -0.003467476623 | G36: -0.002176429051 | H36: =IF(DataWindow<B36,-CalcIM(OFFSET(E35,0,0,-DataWindow,1),ConfLevel, metric),"") ->  | J36: =IF(DataWindow<B36,-CalcIM(OFFSET(G35,0,0,-DataWindow,1),ConfLevel, metric),"") -> 
B37: 27 | C37: 0.0561 | D37: 0.0283366 | E37: =IF(ReturnsType="Relative", (C37/C36-1)*IRNow1*ApproxDuration(C37,5), (C37-C36)*ApproxDuration(C37,5)) -> 0.001487425001 | F37: =IF(ReturnsType="Relative", (D37/D36-1)*IRNow2*ApproxDuration(D37,5), (D37-D36)*ApproxDuration(D37,5)) -> 0.0006040103491 | G37: 0.00209143535 | H37: =IF(DataWindow<B37,-CalcIM(OFFSET(E36,0,0,-DataWindow,1),ConfLevel, metric),"") ->  | J37: =IF(DataWindow<B37,-CalcIM(OFFSET(G36,0,0,-DataWindow,1),ConfLevel, metric),"") -> 
B38: 28 | C38: 0.0561 | D38: 0.0277424 | E38: =IF(ReturnsType="Relative", (C38/C37-1)*IRNow1*ApproxDuration(C38,5), (C38-C37)*ApproxDuration(C38,5)) -> 0 | F38: =IF(ReturnsType="Relative", (D38/D37-1)*IRNow2*ApproxDuration(D38,5), (D38-D37)*ApproxDuration(D38,5)) -> -0.003497316143 | G38: -0.003497316143 | H38: =IF(DataWindow<B38,-CalcIM(OFFSET(E37,0,0,-DataWindow,1),ConfLevel, metric),"") ->  | J38: =IF(DataWindow<B38,-CalcIM(OFFSET(G37,0,0,-DataWindow,1),ConfLevel, metric),"") -> 
B39: 29 | C39: 0.0577 | D39: 0.0277988 | E39: =IF(ReturnsType="Relative", (C39/C38-1)*IRNow1*ApproxDuration(C39,5), (C39-C38)*ApproxDuration(C39,5)) -> 0.00334463712 | F39: =IF(ReturnsType="Relative", (D39/D38-1)*IRNow2*ApproxDuration(D39,5), (D39-D38)*ApproxDuration(D39,5)) -> 0.0003390199384 | G39: 0.003683657058 | H39: =IF(DataWindow<B39,-CalcIM(OFFSET(E38,0,0,-DataWindow,1),ConfLevel, metric),"") ->  | J39: =IF(DataWindow<B39,-CalcIM(OFFSET(G38,0,0,-DataWindow,1),ConfLevel, metric),"") -> 
B40: 30 | C40: 0.0578 | D40: 0.028041 | E40: =IF(ReturnsType="Relative", (C40/C39-1)*IRNow1*ApproxDuration(C40,5), (C40-C39)*ApproxDuration(C40,5)) -> 0.0002031948587 | F40: =IF(ReturnsType="Relative", (D40/D39-1)*IRNow2*ApproxDuration(D40,5), (D40-D39)*ApproxDuration(D40,5)) -> 0.00145204945 | G40: 0.001655244309 | H40: =IF(DataWindow<B40,-CalcIM(OFFSET(E39,0,0,-DataWindow,1),ConfLevel, metric),"") ->  | J40: =IF(DataWindow<B40,-CalcIM(OFFSET(G39,0,0,-DataWindow,1),ConfLevel, metric),"") -> 
B41: 31 | C41: 0.0579 | D41: 0.0277534 | E41: =IF(ReturnsType="Relative", (C41/C40-1)*IRNow1*ApproxDuration(C41,5), (C41-C40)*ApproxDuration(C41,5)) -> 0.0002027950467 | F41: =IF(ReturnsType="Relative", (D41/D40-1)*IRNow2*ApproxDuration(D41,5), (D41-D40)*ApproxDuration(D41,5)) -> -0.001710541842 | G41: -0.001507746795 | H41: =IF(DataWindow<B41,-CalcIM(OFFSET(E40,0,0,-DataWindow,1),ConfLevel, metric),"") ->  | J41: =IF(DataWindow<B41,-CalcIM(OFFSET(G40,0,0,-DataWindow,1),ConfLevel, metric),"") -> 
B42: 32 | C42: 0.0581 | D42: 0.0277652 | E42: =IF(ReturnsType="Relative", (C42/C41-1)*IRNow1*ApproxDuration(C42,5), (C42-C41)*ApproxDuration(C42,5)) -> 0.0004046969645 | F42: =IF(ReturnsType="Relative", (D42/D41-1)*IRNow2*ApproxDuration(D42,5), (D42-D41)*ApproxDuration(D42,5)) -> 7.090740872e-05 | G42: 0.0004756043733 | H42: =IF(DataWindow<B42,-CalcIM(OFFSET(E41,0,0,-DataWindow,1),ConfLevel, metric),"") ->  | J42: =IF(DataWindow<B42,-CalcIM(OFFSET(G41,0,0,-DataWindow,1),ConfLevel, metric),"") -> 
B43: 33 | C43: 0.058 | D43: 0.0269218 | E43: =IF(ReturnsType="Relative", (C43/C42-1)*IRNow1*ApproxDuration(C43,5), (C43-C42)*ApproxDuration(C43,5)) -> -0.0002016999132 | F43: =IF(ReturnsType="Relative", (D43/D42-1)*IRNow2*ApproxDuration(D43,5), (D43-D42)*ApproxDuration(D43,5)) -> -0.005076372043 | G43: -0.005278071956 | H43: =IF(DataWindow<B43,-CalcIM(OFFSET(E42,0,0,-DataWindow,1),ConfLevel, metric),"") ->  | J43: =IF(DataWindow<B43,-CalcIM(OFFSET(G42,0,0,-DataWindow,1),ConfLevel, metric),"") -> 
B44: 34 | C44: 0.0582 | D44: 0.0270434 | E44: =IF(ReturnsType="Relative", (C44/C43-1)*IRNow1*ApproxDuration(C44,5), (C44-C43)*ApproxDuration(C44,5)) -> 0.0004039031102 | F44: =IF(ReturnsType="Relative", (D44/D43-1)*IRNow2*ApproxDuration(D44,5), (D44-D43)*ApproxDuration(D44,5)) -> 0.0007546074295 | G44: 0.00115851054 | H44: =IF(DataWindow<B44,-CalcIM(OFFSET(E43,0,0,-DataWindow,1),ConfLevel, metric),"") ->  | J44: =IF(DataWindow<B44,-CalcIM(OFFSET(G43,0,0,-DataWindow,1),ConfLevel, metric),"") -> 
B45: 35 | C45: 0.0586 | D45: 0.0272138 | E45: =IF(ReturnsType="Relative", (C45/C44-1)*IRNow1*ApproxDuration(C45,5), (C45-C44)*ApproxDuration(C45,5)) -> 0.0008042647105 | F45: =IF(ReturnsType="Relative", (D45/D44-1)*IRNow2*ApproxDuration(D45,5), (D45-D44)*ApproxDuration(D45,5)) -> 0.001052250318 | G45: 0.001856515029 | H45: =IF(DataWindow<B45,-CalcIM(OFFSET(E44,0,0,-DataWindow,1),ConfLevel, metric),"") ->  | J45: =IF(DataWindow<B45,-CalcIM(OFFSET(G44,0,0,-DataWindow,1),ConfLevel, metric),"") -> 
B46: 36 | C46: 0.0592 | D46: 0.0270686 | E46: =IF(ReturnsType="Relative", (C46/C45-1)*IRNow1*ApproxDuration(C46,5), (C46-C45)*ApproxDuration(C46,5)) -> 0.001196454336 | F46: =IF(ReturnsType="Relative", (D46/D45-1)*IRNow2*ApproxDuration(D46,5), (D46-D45)*ApproxDuration(D46,5)) -> -0.0008913377068 | G46: 0.0003051166292 | H46: =IF(DataWindow<B46,-CalcIM(OFFSET(E45,0,0,-DataWindow,1),ConfLevel, metric),"") ->  | J46: =IF(DataWindow<B46,-CalcIM(OFFSET(G45,0,0,-DataWindow,1),ConfLevel, metric),"") -> 
B47: 37 | C47: 0.06 | D47: 0.0266672 | E47: =IF(ReturnsType="Relative", (C47/C46-1)*IRNow1*ApproxDuration(C47,5), (C47-C46)*ApproxDuration(C47,5)) -> 0.001576105415 | F47: =IF(ReturnsType="Relative", (D47/D46-1)*IRNow2*ApproxDuration(D47,5), (D47-D46)*ApproxDuration(D47,5)) -> -0.002479719087 | G47: -0.0009036136717 | H47: =IF(DataWindow<B47,-CalcIM(OFFSET(E46,0,0,-DataWindow,1),ConfLevel, metric),"") ->  | J47: =IF(DataWindow<B47,-CalcIM(OFFSET(G46,0,0,-DataWindow,1),ConfLevel, metric),"") -> 
B48: 38 | C48: 0.0597 | D48: 0.026961 | E48: =IF(ReturnsType="Relative", (C48/C47-1)*IRNow1*ApproxDuration(C48,5), (C48-C47)*ApproxDuration(C48,5)) -> -0.0005835747395 | F48: =IF(ReturnsType="Relative", (D48/D47-1)*IRNow2*ApproxDuration(D48,5), (D48-D47)*ApproxDuration(D48,5)) -> 0.001840998442 | G48: 0.001257423702 | H48: =IF(DataWindow<B48,-CalcIM(OFFSET(E47,0,0,-DataWindow,1),ConfLevel, metric),"") ->  | J48: =IF(DataWindow<B48,-CalcIM(OFFSET(G47,0,0,-DataWindow,1),ConfLevel, metric),"") -> 
B49: 39 | C49: 0.0596 | D49: 0.0273284 | E49: =IF(ReturnsType="Relative", (C49/C48-1)*IRNow1*ApproxDuration(C49,5), (C49-C48)*ApproxDuration(C49,5)) -> -0.0001955488805 | F49: =IF(ReturnsType="Relative", (D49/D48-1)*IRNow2*ApproxDuration(D49,5), (D49-D48)*ApproxDuration(D49,5)) -> 0.002275057221 | G49: 0.00207950834 | H49: =IF(DataWindow<B49,-CalcIM(OFFSET(E48,0,0,-DataWindow,1),ConfLevel, metric),"") ->  | J49: =IF(DataWindow<B49,-CalcIM(OFFSET(G48,0,0,-DataWindow,1),ConfLevel, metric),"") -> 
B50: 40 | C50: 0.0594 | D50: 0.0275838 | E50: =IF(ReturnsType="Relative", (C50/C49-1)*IRNow1*ApproxDuration(C50,5), (C50-C49)*ApproxDuration(C50,5)) -> -0.0003919401886 | F50: =IF(ReturnsType="Relative", (D50/D49-1)*IRNow2*ApproxDuration(D50,5), (D50-D49)*ApproxDuration(D50,5)) -> 0.001559282847 | G50: 0.001167342658 | H50: =IF(DataWindow<B50,-CalcIM(OFFSET(E49,0,0,-DataWindow,1),ConfLevel, metric),"") ->  | J50: =IF(DataWindow<B50,-CalcIM(OFFSET(G49,0,0,-DataWindow,1),ConfLevel, metric),"") -> 
B51: 41 | C51: 0.0578 | D51: 0.0276352 | E51: =IF(ReturnsType="Relative", (C51/C50-1)*IRNow1*ApproxDuration(C51,5), (C51-C50)*ApproxDuration(C51,5)) -> -0.003158072282 | F51: =IF(ReturnsType="Relative", (D51/D50-1)*IRNow2*ApproxDuration(D51,5), (D51-D50)*ApproxDuration(D51,5)) -> 0.0003108656347 | G51: -0.002847206647 | H51: =IF(DataWindow<B51,-CalcIM(OFFSET(E50,0,0,-DataWindow,1),ConfLevel, metric),"") ->  | J51: =IF(DataWindow<B51,-CalcIM(OFFSET(G50,0,0,-DataWindow,1),ConfLevel, metric),"") -> 
B52: 42 | C52: 0.0582 | D52: 0.0281834 | E52: =IF(ReturnsType="Relative", (C52/C51-1)*IRNow1*ApproxDuration(C52,5), (C52-C51)*ApproxDuration(C52,5)) -> 0.0008106013976 | F52: =IF(ReturnsType="Relative", (D52/D51-1)*IRNow2*ApproxDuration(D52,5), (D52-D51)*ApproxDuration(D52,5)) -> 0.003304903234 | G52: 0.004115504632 | H52: =IF(DataWindow<B52,-CalcIM(OFFSET(E51,0,0,-DataWindow,1),ConfLevel, metric),"") ->  | J52: =IF(DataWindow<B52,-CalcIM(OFFSET(G51,0,0,-DataWindow,1),ConfLevel, metric),"") -> 
B53: 43 | C53: 0.0589 | D53: 0.0278256 | E53: =IF(ReturnsType="Relative", (C53/C52-1)*IRNow1*ApproxDuration(C53,5), (C53-C52)*ApproxDuration(C53,5)) -> 0.00140645961 | F53: =IF(ReturnsType="Relative", (D53/D52-1)*IRNow2*ApproxDuration(D53,5), (D53-D52)*ApproxDuration(D53,5)) -> -0.002116940707 | G53: -0.0007104810966 | H53: =IF(DataWindow<B53,-CalcIM(OFFSET(E52,0,0,-DataWindow,1),ConfLevel, metric),"") ->  | J53: =IF(DataWindow<B53,-CalcIM(OFFSET(G52,0,0,-DataWindow,1),ConfLevel, metric),"") -> 
B54: 44 | C54: 0.0593 | D54: 0.0271124 | E54: =IF(ReturnsType="Relative", (C54/C53-1)*IRNow1*ApproxDuration(C54,5), (C54-C53)*ApproxDuration(C54,5)) -> 0.0007933849711 | F54: =IF(ReturnsType="Relative", (D54/D53-1)*IRNow2*ApproxDuration(D54,5), (D54-D53)*ApproxDuration(D54,5)) -> -0.004281393706 | G54: -0.003488008735 | H54: =IF(DataWindow<B54,-CalcIM(OFFSET(E53,0,0,-DataWindow,1),ConfLevel, metric),"") ->  | J54: =IF(DataWindow<B54,-CalcIM(OFFSET(G53,0,0,-DataWindow,1),ConfLevel, metric),"") -> 
B55: 45 | C55: 0.06 | D55: 0.027334 | E55: =IF(ReturnsType="Relative", (C55/C54-1)*IRNow1*ApproxDuration(C55,5), (C55-C54)*ApproxDuration(C55,5)) -> 0.001376766619 | F55: =IF(ReturnsType="Relative", (D55/D54-1)*IRNow2*ApproxDuration(D55,5), (D55-D54)*ApproxDuration(D55,5)) -> 0.001364536069 | G55: 0.002741302687 | H55: =IF(DataWindow<B55,-CalcIM(OFFSET(E54,0,0,-DataWindow,1),ConfLevel, metric),"") ->  | J55: =IF(DataWindow<B55,-CalcIM(OFFSET(G54,0,0,-DataWindow,1),ConfLevel, metric),"") -> 
B56: 46 | C56: 0.0603 | D56: 0.0280338 | E56: =IF(ReturnsType="Relative", (C56/C55-1)*IRNow1*ApproxDuration(C56,5), (C56-C55)*ApproxDuration(C56,5)) -> 0.0005827436723 | F56: =IF(ReturnsType="Relative", (D56/D55-1)*IRNow2*ApproxDuration(D56,5), (D56-D55)*ApproxDuration(D56,5)) -> 0.004266892483 | G56: 0.004849636156 | H56: =IF(DataWindow<B56,-CalcIM(OFFSET(E55,0,0,-DataWindow,1),ConfLevel, metric),"") ->  | J56: =IF(DataWindow<B56,-CalcIM(OFFSET(G55,0,0,-DataWindow,1),ConfLevel, metric),"") -> 
B57: 47 | C57: 0.0601 | D57: 0.0279014 | E57: =IF(ReturnsType="Relative", (C57/C56-1)*IRNow1*ApproxDuration(C57,5), (C57-C56)*ApproxDuration(C57,5)) -> -0.0003867466101 | F57: =IF(ReturnsType="Relative", (D57/D56-1)*IRNow2*ApproxDuration(D57,5), (D57-D56)*ApproxDuration(D57,5)) -> -0.0007873854193 | G57: -0.001174132029 | H57: =IF(DataWindow<B57,-CalcIM(OFFSET(E56,0,0,-DataWindow,1),ConfLevel, metric),"") ->  | J57: =IF(DataWindow<B57,-CalcIM(OFFSET(G56,0,0,-DataWindow,1),ConfLevel, metric),"") -> 
B58: 48 | C58: 0.0596 | D58: 0.0276724 | E58: =IF(ReturnsType="Relative", (C58/C57-1)*IRNow1*ApproxDuration(C58,5), (C58-C57)*ApproxDuration(C58,5)) -> -0.0009712369522 | F58: =IF(ReturnsType="Relative", (D58/D57-1)*IRNow2*ApproxDuration(D58,5), (D58-D57)*ApproxDuration(D58,5)) -> -0.001369095425 | G58: -0.002340332377 | H58: =IF(DataWindow<B58,-CalcIM(OFFSET(E57,0,0,-DataWindow,1),ConfLevel, metric),"") ->  | J58: =IF(DataWindow<B58,-CalcIM(OFFSET(G57,0,0,-DataWindow,1),ConfLevel, metric),"") -> 
B59: 49 | C59: 0.0593 | D59: 0.027183 | E59: =IF(ReturnsType="Relative", (C59/C58-1)*IRNow1*ApproxDuration(C59,5), (C59-C58)*ApproxDuration(C59,5)) -> -0.0005880500184 | F59: =IF(ReturnsType="Relative", (D59/D58-1)*IRNow2*ApproxDuration(D59,5), (D59-D58)*ApproxDuration(D59,5)) -> -0.002953660591 | G59: -0.003541710609 | H59: =IF(DataWindow<B59,-CalcIM(OFFSET(E58,0,0,-DataWindow,1),ConfLevel, metric),"") ->  | J59: =IF(DataWindow<B59,-CalcIM(OFFSET(G58,0,0,-DataWindow,1),ConfLevel, metric),"") -> 
B60: 50 | C60: 0.0581 | D60: 0.0278428 | E60: =IF(ReturnsType="Relative", (C60/C59-1)*IRNow1*ApproxDuration(C60,5), (C60-C59)*ApproxDuration(C60,5)) -> -0.002370855404 | F60: =IF(ReturnsType="Relative", (D60/D59-1)*IRNow2*ApproxDuration(D60,5), (D60-D59)*ApproxDuration(D60,5)) -> 0.004047235043 | G60: 0.001676379639 | H60: =IF(DataWindow<B60,-CalcIM(OFFSET(E59,0,0,-DataWindow,1),ConfLevel, metric),"") ->  | J60: =IF(DataWindow<B60,-CalcIM(OFFSET(G59,0,0,-DataWindow,1),ConfLevel, metric),"") -> 
B61: 51 | C61: 0.0584 | D61: 0.0291694 | E61: =IF(ReturnsType="Relative", (C61/C60-1)*IRNow1*ApproxDuration(C61,5), (C61-C60)*ApproxDuration(C61,5)) -> 0.0006045242198 | F61: =IF(ReturnsType="Relative", (D61/D60-1)*IRNow2*ApproxDuration(D61,5), (D61-D60)*ApproxDuration(D61,5)) -> 0.007918892584 | G61: 0.008523416803 | H61: =IF(DataWindow<B61,-CalcIM(OFFSET(E60,0,0,-DataWindow,1),ConfLevel, metric),"") ->  | J61: =IF(DataWindow<B61,-CalcIM(OFFSET(G60,0,0,-DataWindow,1),ConfLevel, metric),"") -> 
B62: 52 | C62: 0.0582 | D62: 0.0292894 | E62: =IF(ReturnsType="Relative", (C62/C61-1)*IRNow1*ApproxDuration(C62,5), (C62-C61)*ApproxDuration(C62,5)) -> -0.0004011366505 | F62: =IF(ReturnsType="Relative", (D62/D61-1)*IRNow2*ApproxDuration(D62,5), (D62-D61)*ApproxDuration(D62,5)) -> 0.0006835401052 | G62: 0.0002824034547 | H62: =IF(DataWindow<B62,-CalcIM(OFFSET(E61,0,0,-DataWindow,1),ConfLevel, metric),"") ->  | J62: =IF(DataWindow<B62,-CalcIM(OFFSET(G61,0,0,-DataWindow,1),ConfLevel, metric),"") -> 
B63: 53 | C63: 0.0587 | D63: 0.0291326 | E63: =IF(ReturnsType="Relative", (C63/C62-1)*IRNow1*ApproxDuration(C63,5), (C63-C62)*ApproxDuration(C63,5)) -> 0.00100509185 | F63: =IF(ReturnsType="Relative", (D63/D62-1)*IRNow2*ApproxDuration(D63,5), (D63-D62)*ApproxDuration(D63,5)) -> -0.0008898400218 | G63: 0.0001152518284 | H63: =IF(DataWindow<B63,-CalcIM(OFFSET(E62,0,0,-DataWindow,1),ConfLevel, metric),"") ->  | J63: =IF(DataWindow<B63,-CalcIM(OFFSET(G62,0,0,-DataWindow,1),ConfLevel, metric),"") -> 
B64: 54 | C64: 0.0589 | D64: 0.0298774 | E64: =IF(ReturnsType="Relative", (C64/C63-1)*IRNow1*ApproxDuration(C64,5), (C64-C63)*ApproxDuration(C64,5)) -> 0.0003984227272 | F64: =IF(ReturnsType="Relative", (D64/D63-1)*IRNow2*ApproxDuration(D64,5), (D64-D63)*ApproxDuration(D64,5)) -> 0.004241778564 | G64: 0.004640201291 | H64: =IF(DataWindow<B64,-CalcIM(OFFSET(E63,0,0,-DataWindow,1),ConfLevel, metric),"") ->  | J64: =IF(DataWindow<B64,-CalcIM(OFFSET(G63,0,0,-DataWindow,1),ConfLevel, metric),"") -> 
B65: 55 | C65: 0.0583 | D65: 0.0300128 | E65: =IF(ReturnsType="Relative", (C65/C64-1)*IRNow1*ApproxDuration(C65,5), (C65-C64)*ApproxDuration(C65,5)) -> -0.001192910442 | F65: =IF(ReturnsType="Relative", (D65/D64-1)*IRNow2*ApproxDuration(D65,5), (D65-D64)*ApproxDuration(D65,5)) -> 0.000751657668 | G65: -0.0004412527741 | H65: =IF(DataWindow<B65,-CalcIM(OFFSET(E64,0,0,-DataWindow,1),ConfLevel, metric),"") ->  | J65: =IF(DataWindow<B65,-CalcIM(OFFSET(G64,0,0,-DataWindow,1),ConfLevel, metric),"") -> 
B66: 56 | C66: 0.0582 | D66: 0.030547 | E66: =IF(ReturnsType="Relative", (C66/C65-1)*IRNow1*ApproxDuration(C66,5), (C66-C65)*ApproxDuration(C66,5)) -> -0.0002009123533 | F66: =IF(ReturnsType="Relative", (D66/D65-1)*IRNow2*ApproxDuration(D66,5), (D66-D65)*ApproxDuration(D66,5)) -> 0.002948330929 | G66: 0.002747418575 | H66: =IF(DataWindow<B66,-CalcIM(OFFSET(E65,0,0,-DataWindow,1),ConfLevel, metric),"") ->  | J66: =IF(DataWindow<B66,-CalcIM(OFFSET(G65,0,0,-DataWindow,1),ConfLevel, metric),"") -> 
B67: 57 | C67: 0.0572 | D67: 0.0305492 | E67: =IF(ReturnsType="Relative", (C67/C66-1)*IRNow1*ApproxDuration(C67,5), (C67-C66)*ApproxDuration(C67,5)) -> -0.002017371185 | F67: =IF(ReturnsType="Relative", (D67/D66-1)*IRNow2*ApproxDuration(D67,5), (D67-D66)*ApproxDuration(D67,5)) -> 1.192973089e-05 | G67: -0.002005441454 | H67: =IF(DataWindow<B67,-CalcIM(OFFSET(E66,0,0,-DataWindow,1),ConfLevel, metric),"") ->  | J67: =IF(DataWindow<B67,-CalcIM(OFFSET(G66,0,0,-DataWindow,1),ConfLevel, metric),"") -> 
B68: 58 | C68: 0.0569 | D68: 0.0304772 | E68: =IF(ReturnsType="Relative", (C68/C67-1)*IRNow1*ApproxDuration(C68,5), (C68-C67)*ApproxDuration(C68,5)) -> -0.0006162320476 | F68: =IF(ReturnsType="Relative", (D68/D67-1)*IRNow2*ApproxDuration(D68,5), (D68-D67)*ApproxDuration(D68,5)) -> -0.0003904679314 | G68: -0.001006699979 | H68: =IF(DataWindow<B68,-CalcIM(OFFSET(E67,0,0,-DataWindow,1),ConfLevel, metric),"") ->  | J68: =IF(DataWindow<B68,-CalcIM(OFFSET(G67,0,0,-DataWindow,1),ConfLevel, metric),"") -> 
B69: 59 | C69: 0.0572 | D69: 0.0301546 | E69: =IF(ReturnsType="Relative", (C69/C68-1)*IRNow1*ApproxDuration(C69,5), (C69-C68)*ApproxDuration(C69,5)) -> 0.0006190386799 | F69: =IF(ReturnsType="Relative", (D69/D68-1)*IRNow2*ApproxDuration(D69,5), (D69-D68)*ApproxDuration(D69,5)) -> -0.001755025489 | G69: -0.001135986809 | H69: =IF(DataWindow<B69,-CalcIM(OFFSET(E68,0,0,-DataWindow,1),ConfLevel, metric),"") ->  | J69: =IF(DataWindow<B69,-CalcIM(OFFSET(G68,0,0,-DataWindow,1),ConfLevel, metric),"") -> 
B70: 60 | C70: 0.0571 | D70: 0.0301704 | E70: =IF(ReturnsType="Relative", (C70/C69-1)*IRNow1*ApproxDuration(C70,5), (C70-C69)*ApproxDuration(C70,5)) -> -0.0002053128724 | F70: =IF(ReturnsType="Relative", (D70/D69-1)*IRNow2*ApproxDuration(D70,5), (D70-D69)*ApproxDuration(D70,5)) -> 8.687222033e-05 | G70: -0.0001184406521 | H70: =IF(DataWindow<B70,-CalcIM(OFFSET(E69,0,0,-DataWindow,1),ConfLevel, metric),"") ->  | J70: =IF(DataWindow<B70,-CalcIM(OFFSET(G69,0,0,-DataWindow,1),ConfLevel, metric),"") -> 
B71: 61 | C71: 0.0567 | D71: 0.0297584 | E71: =IF(ReturnsType="Relative", (C71/C70-1)*IRNow1*ApproxDuration(C71,5), (C71-C70)*ApproxDuration(C71,5)) -> -0.0008234738649 | F71: =IF(ReturnsType="Relative", (D71/D70-1)*IRNow2*ApproxDuration(D71,5), (D71-D70)*ApproxDuration(D71,5)) -> -0.002266364257 | G71: -0.003089838122 | H71: =IF(DataWindow<B71,-CalcIM(OFFSET(E70,0,0,-DataWindow,1),ConfLevel, metric),"") ->  | J71: =IF(DataWindow<B71,-CalcIM(OFFSET(G70,0,0,-DataWindow,1),ConfLevel, metric),"") -> 
B72: 62 | C72: 0.0565 | D72: 0.0299716 | E72: =IF(ReturnsType="Relative", (C72/C71-1)*IRNow1*ApproxDuration(C72,5), (C72-C71)*ApproxDuration(C72,5)) -> -0.0004148392045 | F72: =IF(ReturnsType="Relative", (D72/D71-1)*IRNow2*ApproxDuration(D72,5), (D72-D71)*ApproxDuration(D72,5)) -> 0.001188407728 | G72: 0.0007735685239 | H72: =IF(DataWindow<B72,-CalcIM(OFFSET(E71,0,0,-DataWindow,1),ConfLevel, metric),"") ->  | J72: =IF(DataWindow<B72,-CalcIM(OFFSET(G71,0,0,-DataWindow,1),ConfLevel, metric),"") -> 
B73: 63 | C73: 0.0563 | D73: 0.0301194 | E73: =IF(ReturnsType="Relative", (C73/C72-1)*IRNow1*ApproxDuration(C73,5), (C73-C72)*ApproxDuration(C73,5)) -> -0.0004165060926 | F73: =IF(ReturnsType="Relative", (D73/D72-1)*IRNow2*ApproxDuration(D73,5), (D73-D72)*ApproxDuration(D73,5)) -> 0.0008177035719 | G73: 0.0004011974793 | H73: =IF(DataWindow<B73,-CalcIM(OFFSET(E72,0,0,-DataWindow,1),ConfLevel, metric),"") ->  | J73: =IF(DataWindow<B73,-CalcIM(OFFSET(G72,0,0,-DataWindow,1),ConfLevel, metric),"") -> 
B74: 64 | C74: 0.0565 | D74: 0.0298946 | E74: =IF(ReturnsType="Relative", (C74/C73-1)*IRNow1*ApproxDuration(C74,5), (C74-C73)*ApproxDuration(C74,5)) -> 0.0004177865523 | F74: =IF(ReturnsType="Relative", (D74/D73-1)*IRNow2*ApproxDuration(D74,5), (D74-D73)*ApproxDuration(D74,5)) -> -0.001238281407 | G74: -0.0008204948546 | H74: =IF(DataWindow<B74,-CalcIM(OFFSET(E73,0,0,-DataWindow,1),ConfLevel, metric),"") ->  | J74: =IF(DataWindow<B74,-CalcIM(OFFSET(G73,0,0,-DataWindow,1),ConfLevel, metric),"") -> 
B75: 65 | C75: 0.0577 | D75: 0.0297474 | E75: =IF(ReturnsType="Relative", (C75/C74-1)*IRNow1*ApproxDuration(C75,5), (C75-C74)*ApproxDuration(C75,5)) -> 0.002490718705 | F75: =IF(ReturnsType="Relative", (D75/D74-1)*IRNow2*ApproxDuration(D75,5), (D75-D74)*ApproxDuration(D75,5)) -> -0.0008172224235 | G75: 0.001673496281 | H75: =IF(DataWindow<B75,-CalcIM(OFFSET(E74,0,0,-DataWindow,1),ConfLevel, metric),"") ->  | J75: =IF(DataWindow<B75,-CalcIM(OFFSET(G74,0,0,-DataWindow,1),ConfLevel, metric),"") -> 
B76: =B75+1 -> 66 | C76: 0.0583 | D76: 0.0300268 | E76: =IF(ReturnsType="Relative", (C76/C75-1)*IRNow1*ApproxDuration(C76,5), (C76-C75)*ApproxDuration(C76,5)) -> 0.001217719671 | F76: =IF(ReturnsType="Relative", (D76/D75-1)*IRNow2*ApproxDuration(D76,5), (D76-D75)*ApproxDuration(D76,5)) -> 0.001557782418 | G76: =F76+E76 -> 0.002775502089 | H76: =IF(DataWindow<B76,-CalcIM(OFFSET(E75,0,0,-DataWindow,1),ConfLevel, metric),"") ->  | J76: =IF(DataWindow<B76,-CalcIM(OFFSET(G75,0,0,-DataWindow,1),ConfLevel, metric),"") -> 
B77: 67 | C77: 0.0585 | D77: 0.030327 | E77: =IF(ReturnsType="Relative", (C77/C76-1)*IRNow1*ApproxDuration(C77,5), (C77-C76)*ApproxDuration(C77,5)) -> 0.0004015380736 | F77: =IF(ReturnsType="Relative", (D77/D76-1)*IRNow2*ApproxDuration(D77,5), (D77-D76)*ApproxDuration(D77,5)) -> 0.001656964871 | G77: 0.002058502945 | H77: =IF(DataWindow<B77,-CalcIM(OFFSET(E76,0,0,-DataWindow,1),ConfLevel, metric),"") ->  | J77: =IF(DataWindow<B77,-CalcIM(OFFSET(G76,0,0,-DataWindow,1),ConfLevel, metric),"") ->  | K77: =IF(H77<>"",J77/(I77+H77),"") -> 
B78: 68 | C78: 0.058 | D78: 0.0300892 | E78: =IF(ReturnsType="Relative", (C78/C77-1)*IRNow1*ApproxDuration(C78,5), (C78-C77)*ApproxDuration(C78,5)) -> -0.001001603843 | F78: =IF(ReturnsType="Relative", (D78/D77-1)*IRNow2*ApproxDuration(D78,5), (D78-D77)*ApproxDuration(D78,5)) -> -0.001300306563 | G78: -0.002301910406 | H78: =IF(DataWindow<B78,-CalcIM(OFFSET(E77,0,0,-DataWindow,1),ConfLevel, metric),"") ->  | J78: =IF(DataWindow<B78,-CalcIM(OFFSET(G77,0,0,-DataWindow,1),ConfLevel, metric),"") -> 
B79: 69 | C79: 0.0579 | D79: 0.0300118 | E79: =IF(ReturnsType="Relative", (C79/C78-1)*IRNow1*ApproxDuration(C79,5), (C79-C78)*ApproxDuration(C79,5)) -> -0.0002020957534 | F79: =IF(ReturnsType="Relative", (D79/D78-1)*IRNow2*ApproxDuration(D79,5), (D79-D78)*ApproxDuration(D79,5)) -> -0.0004266537898 | G79: -0.0006287495432 | H79: =IF(DataWindow<B79,-CalcIM(OFFSET(E78,0,0,-DataWindow,1),ConfLevel, metric),"") ->  | J79: =IF(DataWindow<B79,-CalcIM(OFFSET(G78,0,0,-DataWindow,1),ConfLevel, metric),"") -> 
B80: 70 | C80: 0.0586 | D80: 0.0293434 | E80: =IF(ReturnsType="Relative", (C80/C79-1)*IRNow1*ApproxDuration(C80,5), (C80-C79)*ApproxDuration(C80,5)) -> 0.001414755799 | F80: =IF(ReturnsType="Relative", (D80/D79-1)*IRNow2*ApproxDuration(D80,5), (D80-D79)*ApproxDuration(D80,5)) -> -0.003699963592 | G80: -0.002285207793 | H80: =IF(DataWindow<B80,-CalcIM(OFFSET(E79,0,0,-DataWindow,1),ConfLevel, metric),"") ->  | J80: =IF(DataWindow<B80,-CalcIM(OFFSET(G79,0,0,-DataWindow,1),ConfLevel, metric),"") -> 
B81: 71 | C81: 0.0591 | D81: 0.0288102 | E81: =IF(ReturnsType="Relative", (C81/C80-1)*IRNow1*ApproxDuration(C81,5), (C81-C80)*ApproxDuration(C81,5)) -> 0.0009972823008 | F81: =IF(ReturnsType="Relative", (D81/D80-1)*IRNow2*ApproxDuration(D81,5), (D81-D80)*ApproxDuration(D81,5)) -> -0.003022718137 | G81: -0.002025435836 | H81: =IF(DataWindow<B81,-CalcIM(OFFSET(E80,0,0,-DataWindow,1),ConfLevel, metric),"") ->  | J81: =IF(DataWindow<B81,-CalcIM(OFFSET(G80,0,0,-DataWindow,1),ConfLevel, metric),"") -> 
B82: 72 | C82: 0.0591 | D82: 0.0271312 | E82: =IF(ReturnsType="Relative", (C82/C81-1)*IRNow1*ApproxDuration(C82,5), (C82-C81)*ApproxDuration(C82,5)) -> 0 | F82: =IF(ReturnsType="Relative", (D82/D81-1)*IRNow2*ApproxDuration(D82,5), (D82-D81)*ApproxDuration(D82,5)) -> -0.009734257756 | G82: -0.009734257756 | H82: =IF(DataWindow<B82,-CalcIM(OFFSET(E81,0,0,-DataWindow,1),ConfLevel, metric),"") ->  | J82: =IF(DataWindow<B82,-CalcIM(OFFSET(G81,0,0,-DataWindow,1),ConfLevel, metric),"") -> 
B83: 73 | C83: 0.0594 | D83: 0.0280288 | E83: =IF(ReturnsType="Relative", (C83/C82-1)*IRNow1*ApproxDuration(C83,5), (C83-C82)*ApproxDuration(C83,5)) -> 0.0005928841431 | F83: =IF(ReturnsType="Relative", (D83/D82-1)*IRNow2*ApproxDuration(D83,5), (D83-D82)*ApproxDuration(D83,5)) -> 0.005513915352 | G83: 0.006106799495 | H83: =IF(DataWindow<B83,-CalcIM(OFFSET(E82,0,0,-DataWindow,1),ConfLevel, metric),"") ->  | J83: =IF(DataWindow<B83,-CalcIM(OFFSET(G82,0,0,-DataWindow,1),ConfLevel, metric),"") -> 
B84: 74 | C84: 0.0595 | D84: 0.0288322 | E84: =IF(ReturnsType="Relative", (C84/C83-1)*IRNow1*ApproxDuration(C84,5), (C84-C83)*ApproxDuration(C84,5)) -> 0.0001965832061 | F84: =IF(ReturnsType="Relative", (D84/D83-1)*IRNow2*ApproxDuration(D84,5), (D84-D83)*ApproxDuration(D84,5)) -> 0.004767843097 | G84: 0.004964426304 | H84: =IF(DataWindow<B84,-CalcIM(OFFSET(E83,0,0,-DataWindow,1),ConfLevel, metric),"") ->  | J84: =IF(DataWindow<B84,-CalcIM(OFFSET(G83,0,0,-DataWindow,1),ConfLevel, metric),"") -> 
B85: 75 | C85: 0.0588 | D85: 0.0285494 | E85: =IF(ReturnsType="Relative", (C85/C84-1)*IRNow1*ApproxDuration(C85,5), (C85-C84)*ApproxDuration(C85,5)) -> -0.001376057369 | F85: =IF(ReturnsType="Relative", (D85/D84-1)*IRNow2*ApproxDuration(D85,5), (D85-D84)*ApproxDuration(D85,5)) -> -0.001632660791 | G85: -0.00300871816 | H85: =IF(DataWindow<B85,-CalcIM(OFFSET(E84,0,0,-DataWindow,1),ConfLevel, metric),"") ->  | J85: =IF(DataWindow<B85,-CalcIM(OFFSET(G84,0,0,-DataWindow,1),ConfLevel, metric),"") -> 
B86: 76 | C86: 0.0601 | D86: 0.0286908 | E86: =IF(ReturnsType="Relative", (C86/C85-1)*IRNow1*ApproxDuration(C86,5), (C86-C85)*ApproxDuration(C86,5)) -> 0.002577981868 | F86: =IF(ReturnsType="Relative", (D86/D85-1)*IRNow2*ApproxDuration(D86,5), (D86-D85)*ApproxDuration(D86,5)) -> 0.0008241322342 | G86: 0.003402114102 | H86: =IF(DataWindow<B86,-CalcIM(OFFSET(E85,0,0,-DataWindow,1),ConfLevel, metric),"") ->  | J86: =IF(DataWindow<B86,-CalcIM(OFFSET(G85,0,0,-DataWindow,1),ConfLevel, metric),"") -> 
B87: 77 | C87: 0.0612 | D87: 0.0285972 | E87: =IF(ReturnsType="Relative", (C87/C86-1)*IRNow1*ApproxDuration(C87,5), (C87-C86)*ApproxDuration(C87,5)) -> 0.00212861935 | F87: =IF(ReturnsType="Relative", (D87/D86-1)*IRNow2*ApproxDuration(D87,5), (D87-D86)*ApproxDuration(D87,5)) -> -0.0005429712913 | G87: 0.001585648058 | H87: =IF(DataWindow<B87,-CalcIM(OFFSET(E86,0,0,-DataWindow,1),ConfLevel, metric),"") ->  | J87: =IF(DataWindow<B87,-CalcIM(OFFSET(G86,0,0,-DataWindow,1),ConfLevel, metric),"") -> 
B88: 78 | C88: 0.0614 | D88: 0.0295488 | E88: =IF(ReturnsType="Relative", (C88/C87-1)*IRNow1*ApproxDuration(C88,5), (C88-C87)*ApproxDuration(C88,5)) -> 0.0003798851299 | F88: =IF(ReturnsType="Relative", (D88/D87-1)*IRNow2*ApproxDuration(D88,5), (D88-D87)*ApproxDuration(D88,5)) -> 0.005525434484 | G88: 0.005905319614 | H88: =IF(DataWindow<B88,-CalcIM(OFFSET(E87,0,0,-DataWindow,1),ConfLevel, metric),"") ->  | J88: =IF(DataWindow<B88,-CalcIM(OFFSET(G87,0,0,-DataWindow,1),ConfLevel, metric),"") -> 
B89: 79 | C89: 0.0611 | D89: 0.0292198 | E89: =IF(ReturnsType="Relative", (C89/C88-1)*IRNow1*ApproxDuration(C89,5), (C89-C88)*ApproxDuration(C89,5)) -> -0.0005683759925 | F89: =IF(ReturnsType="Relative", (D89/D88-1)*IRNow2*ApproxDuration(D89,5), (D89-D88)*ApproxDuration(D89,5)) -> -0.001850290956 | G89: -0.002418666948 | H89: =IF(DataWindow<B89,-CalcIM(OFFSET(E88,0,0,-DataWindow,1),ConfLevel, metric),"") ->  | J89: =IF(DataWindow<B89,-CalcIM(OFFSET(G88,0,0,-DataWindow,1),ConfLevel, metric),"") -> 
B90: 80 | C90: 0.0607 | D90: 0.0292984 | E90: =IF(ReturnsType="Relative", (C90/C89-1)*IRNow1*ApproxDuration(C90,5), (C90-C89)*ApproxDuration(C90,5)) -> -0.000762278922 | F90: =IF(ReturnsType="Relative", (D90/D89-1)*IRNow2*ApproxDuration(D90,5), (D90-D89)*ApproxDuration(D90,5)) -> 0.0004469367069 | G90: -0.000315342215 | H90: =IF(DataWindow<B90,-CalcIM(OFFSET(E89,0,0,-DataWindow,1),ConfLevel, metric),"") ->  | J90: =IF(DataWindow<B90,-CalcIM(OFFSET(G89,0,0,-DataWindow,1),ConfLevel, metric),"") -> 
B91: 81 | C91: 0.0597 | D91: 0.0290486 | E91: =IF(ReturnsType="Relative", (C91/C90-1)*IRNow1*ApproxDuration(C91,5), (C91-C90)*ApproxDuration(C91,5)) -> -0.001922816275 | F91: =IF(ReturnsType="Relative", (D91/D90-1)*IRNow2*ApproxDuration(D91,5), (D91-D90)*ApproxDuration(D91,5)) -> -0.001417469991 | G91: -0.003340286267 | H91: =IF(DataWindow<B91,-CalcIM(OFFSET(E90,0,0,-DataWindow,1),ConfLevel, metric),"") ->  | J91: =IF(DataWindow<B91,-CalcIM(OFFSET(G90,0,0,-DataWindow,1),ConfLevel, metric),"") -> 
B92: 82 | C92: 0.0597 | D92: 0.029365 | E92: =IF(ReturnsType="Relative", (C92/C91-1)*IRNow1*ApproxDuration(C92,5), (C92-C91)*ApproxDuration(C92,5)) -> 0 | F92: =IF(ReturnsType="Relative", (D92/D91-1)*IRNow2*ApproxDuration(D92,5), (D92-D91)*ApproxDuration(D92,5)) -> 0.001809428569 | G92: 0.001809428569 | H92: =IF(DataWindow<B92,-CalcIM(OFFSET(E91,0,0,-DataWindow,1),ConfLevel, metric),"") ->  | J92: =IF(DataWindow<B92,-CalcIM(OFFSET(G91,0,0,-DataWindow,1),ConfLevel, metric),"") -> 
B93: 83 | C93: 0.0587 | D93: 0.0289258 | E93: =IF(ReturnsType="Relative", (C93/C92-1)*IRNow1*ApproxDuration(C93,5), (C93-C92)*ApproxDuration(C93,5)) -> -0.001959676572 | F93: =IF(ReturnsType="Relative", (D93/D92-1)*IRNow2*ApproxDuration(D93,5), (D93-D92)*ApproxDuration(D93,5)) -> -0.002487297758 | G93: -0.00444697433 | H93: =IF(DataWindow<B93,-CalcIM(OFFSET(E92,0,0,-DataWindow,1),ConfLevel, metric),"") ->  | J93: =IF(DataWindow<B93,-CalcIM(OFFSET(G92,0,0,-DataWindow,1),ConfLevel, metric),"") -> 
B94: 84 | C94: 0.0587 | D94: 0.028302 | E94: =IF(ReturnsType="Relative", (C94/C93-1)*IRNow1*ApproxDuration(C94,5), (C94-C93)*ApproxDuration(C94,5)) -> 0 | F94: =IF(ReturnsType="Relative", (D94/D93-1)*IRNow2*ApproxDuration(D94,5), (D94-D93)*ApproxDuration(D94,5)) -> -0.003591836683 | G94: -0.003591836683 | H94: =IF(DataWindow<B94,-CalcIM(OFFSET(E93,0,0,-DataWindow,1),ConfLevel, metric),"") ->  | J94: =IF(DataWindow<B94,-CalcIM(OFFSET(G93,0,0,-DataWindow,1),ConfLevel, metric),"") -> 
B95: 85 | C95: 0.0588 | D95: 0.0281914 | E95: =IF(ReturnsType="Relative", (C95/C94-1)*IRNow1*ApproxDuration(C95,5), (C95-C94)*ApproxDuration(C95,5)) -> 0.0001992587332 | F95: =IF(ReturnsType="Relative", (D95/D94-1)*IRNow2*ApproxDuration(D95,5), (D95-D94)*ApproxDuration(D95,5)) -> -0.0006510462583 | G95: -0.0004517875252 | H95: =IF(DataWindow<B95,-CalcIM(OFFSET(E94,0,0,-DataWindow,1),ConfLevel, metric),"") ->  | J95: =IF(DataWindow<B95,-CalcIM(OFFSET(G94,0,0,-DataWindow,1),ConfLevel, metric),"") -> 
B96: 86 | C96: 0.0587 | D96: 0.0286526 | E96: =IF(ReturnsType="Relative", (C96/C95-1)*IRNow1*ApproxDuration(C96,5), (C96-C95)*ApproxDuration(C96,5)) -> -0.0001989671622 | F96: =IF(ReturnsType="Relative", (D96/D95-1)*IRNow2*ApproxDuration(D96,5), (D96-D95)*ApproxDuration(D96,5)) -> 0.002722435608 | G96: 0.002523468445 | H96: =IF(DataWindow<B96,-CalcIM(OFFSET(E95,0,0,-DataWindow,1),ConfLevel, metric),"") ->  | J96: =IF(DataWindow<B96,-CalcIM(OFFSET(G95,0,0,-DataWindow,1),ConfLevel, metric),"") -> 
B97: 87 | C97: 0.0588 | D97: 0.0284834 | E97: =IF(ReturnsType="Relative", (C97/C96-1)*IRNow1*ApproxDuration(C97,5), (C97-C96)*ApproxDuration(C97,5)) -> 0.0001992587332 | F97: =IF(ReturnsType="Relative", (D97/D96-1)*IRNow2*ApproxDuration(D97,5), (D97-D96)*ApproxDuration(D97,5)) -> -0.0009831066139 | G97: -0.0007838478808 | H97: =IF(DataWindow<B97,-CalcIM(OFFSET(E96,0,0,-DataWindow,1),ConfLevel, metric),"") ->  | J97: =IF(DataWindow<B97,-CalcIM(OFFSET(G96,0,0,-DataWindow,1),ConfLevel, metric),"") -> 
B98: 88 | C98: 0.0584 | D98: 0.0282428 | E98: =IF(ReturnsType="Relative", (C98/C97-1)*IRNow1*ApproxDuration(C98,5), (C98-C97)*ApproxDuration(C98,5)) -> -0.0007964366705 | F98: =IF(ReturnsType="Relative", (D98/D97-1)*IRNow2*ApproxDuration(D98,5), (D98-D97)*ApproxDuration(D98,5)) -> -0.001407094113 | G98: -0.002203530784 | H98: =IF(DataWindow<B98,-CalcIM(OFFSET(E97,0,0,-DataWindow,1),ConfLevel, metric),"") ->  | J98: =IF(DataWindow<B98,-CalcIM(OFFSET(G97,0,0,-DataWindow,1),ConfLevel, metric),"") -> 
B99: 89 | C99: 0.0572 | D99: 0.027661 | E99: =IF(ReturnsType="Relative", (C99/C98-1)*IRNow1*ApproxDuration(C99,5), (C99-C98)*ApproxDuration(C99,5)) -> -0.002412554855 | F99: =IF(ReturnsType="Relative", (D99/D98-1)*IRNow2*ApproxDuration(D99,5), (D99-D98)*ApproxDuration(D99,5)) -> -0.003436388765 | G99: -0.00584894362 | H99: =IF(DataWindow<B99,-CalcIM(OFFSET(E98,0,0,-DataWindow,1),ConfLevel, metric),"") ->  | J99: =IF(DataWindow<B99,-CalcIM(OFFSET(G98,0,0,-DataWindow,1),ConfLevel, metric),"") -> 
B100: 90 | C100: 0.0574 | D100: 0.0281562 | E100: =IF(ReturnsType="Relative", (C100/C99-1)*IRNow1*ApproxDuration(C100,5), (C100-C99)*ApproxDuration(C100,5)) -> 0.0004103325529 | F100: =IF(ReturnsType="Relative", (D100/D99-1)*IRNow2*ApproxDuration(D100,5), (D100-D99)*ApproxDuration(D100,5)) -> 0.002982798577 | G100: 0.00339313113 | H100: =IF(DataWindow<B100,-CalcIM(OFFSET(E99,0,0,-DataWindow,1),ConfLevel, metric),"") ->  | J100: =IF(DataWindow<B100,-CalcIM(OFFSET(G99,0,0,-DataWindow,1),ConfLevel, metric),"") -> 
B101: 91 | C101: 0.0584 | D101: 0.0284192 | E101: =IF(ReturnsType="Relative", (C101/C100-1)*IRNow1*ApproxDuration(C101,5), (C101-C100)*ApproxDuration(C101,5)) -> 0.002039654888 | F101: =IF(ReturnsType="Relative", (D101/D100-1)*IRNow2*ApproxDuration(D101,5), (D101-D100)*ApproxDuration(D101,5)) -> 0.001555299582 | G101: 0.00359495447 | H101: =IF(DataWindow<B101,-CalcIM(OFFSET(E100,0,0,-DataWindow,1),ConfLevel, metric),"") ->  | J101: =IF(DataWindow<B101,-CalcIM(OFFSET(G100,0,0,-DataWindow,1),ConfLevel, metric),"") -> 
B102: 92 | C102: 0.0594 | D102: 0.0290472 | E102: =IF(ReturnsType="Relative", (C102/C101-1)*IRNow1*ApproxDuration(C102,5), (C102-C101)*ApproxDuration(C102,5)) -> 0.001999968771 | F102: =IF(ReturnsType="Relative", (D102/D101-1)*IRNow2*ApproxDuration(D102,5), (D102-D101)*ApproxDuration(D102,5)) -> 0.003673792489 | G102: 0.00567376126 | H102: =IF(DataWindow<B102,-CalcIM(OFFSET(E101,0,0,-DataWindow,1),ConfLevel, metric),"") ->  | J102: =IF(DataWindow<B102,-CalcIM(OFFSET(G101,0,0,-DataWindow,1),ConfLevel, metric),"") -> 
B103: 93 | C103: 0.0598 | D103: 0.0293208 | E103: =IF(ReturnsType="Relative", (C103/C102-1)*IRNow1*ApproxDuration(C103,5), (C103-C102)*ApproxDuration(C103,5)) -> 0.0007857725466 | F103: =IF(ReturnsType="Relative", (D103/D102-1)*IRNow2*ApproxDuration(D103,5), (D103-D102)*ApproxDuration(D103,5)) -> 0.001564907994 | G103: 0.002350680541 | H103: =IF(DataWindow<B103,-CalcIM(OFFSET(E102,0,0,-DataWindow,1),ConfLevel, metric),"") ->  | J103: =IF(DataWindow<B103,-CalcIM(OFFSET(G102,0,0,-DataWindow,1),ConfLevel, metric),"") -> 
B104: 94 | C104: 0.0597 | D104: 0.028956 | E104: =IF(ReturnsType="Relative", (C104/C103-1)*IRNow1*ApproxDuration(C104,5), (C104-C103)*ApproxDuration(C104,5)) -> -0.0001951754982 | F104: =IF(ReturnsType="Relative", (D104/D103-1)*IRNow2*ApproxDuration(D104,5), (D104-D103)*ApproxDuration(D104,5)) -> -0.002068914139 | G104: -0.002264089637 | H104: =IF(DataWindow<B104,-CalcIM(OFFSET(E103,0,0,-DataWindow,1),ConfLevel, metric),"") ->  | J104: =IF(DataWindow<B104,-CalcIM(OFFSET(G103,0,0,-DataWindow,1),ConfLevel, metric),"") -> 
B105: 95 | C105: 0.0601 | D105: 0.0287442 | E105: =IF(ReturnsType="Relative", (C105/C104-1)*IRNow1*ApproxDuration(C105,5), (C105-C104)*ApproxDuration(C105,5)) -> 0.0007812670215 | F105: =IF(ReturnsType="Relative", (D105/D104-1)*IRNow2*ApproxDuration(D105,5), (D105-D104)*ApproxDuration(D105,5)) -> -0.001216957113 | G105: -0.0004356900917 | H105: =IF(DataWindow<B105,-CalcIM(OFFSET(E104,0,0,-DataWindow,1),ConfLevel, metric),"") ->  | J105: =IF(DataWindow<B105,-CalcIM(OFFSET(G104,0,0,-DataWindow,1),ConfLevel, metric),"") -> 
B106: 96 | C106: 0.0588 | D106: 0.028139 | E106: =IF(ReturnsType="Relative", (C106/C105-1)*IRNow1*ApproxDuration(C106,5), (C106-C105)*ApproxDuration(C106,5)) -> -0.002530022284 | F106: =IF(ReturnsType="Relative", (D106/D105-1)*IRNow2*ApproxDuration(D106,5), (D106-D105)*ApproxDuration(D106,5)) -> -0.003508149544 | G106: -0.006038171828 | H106: =IF(DataWindow<B106,-CalcIM(OFFSET(E105,0,0,-DataWindow,1),ConfLevel, metric),"") ->  | J106: =IF(DataWindow<B106,-CalcIM(OFFSET(G105,0,0,-DataWindow,1),ConfLevel, metric),"") -> 
B107: 97 | C107: 0.0594 | D107: 0.0280144 | E107: =IF(ReturnsType="Relative", (C107/C106-1)*IRNow1*ApproxDuration(C107,5), (C107-C106)*ApproxDuration(C107,5)) -> 0.001191818124 | F107: =IF(ReturnsType="Relative", (D107/D106-1)*IRNow2*ApproxDuration(D107,5), (D107-D106)*ApproxDuration(D107,5)) -> -0.0007380247155 | G107: 0.000453793409 | H107: =IF(DataWindow<B107,-CalcIM(OFFSET(E106,0,0,-DataWindow,1),ConfLevel, metric),"") ->  | J107: =IF(DataWindow<B107,-CalcIM(OFFSET(G106,0,0,-DataWindow,1),ConfLevel, metric),"") -> 
B108: 98 | C108: 0.0592 | D108: 0.0274772 | E108: =IF(ReturnsType="Relative", (C108/C107-1)*IRNow1*ApproxDuration(C108,5), (C108-C107)*ApproxDuration(C108,5)) -> -0.0003934468243 | F108: =IF(ReturnsType="Relative", (D108/D107-1)*IRNow2*ApproxDuration(D108,5), (D108-D107)*ApproxDuration(D108,5)) -> -0.003200265265 | G108: -0.003593712089 | H108: =IF(DataWindow<B108,-CalcIM(OFFSET(E107,0,0,-DataWindow,1),ConfLevel, metric),"") ->  | J108: =IF(DataWindow<B108,-CalcIM(OFFSET(G107,0,0,-DataWindow,1),ConfLevel, metric),"") -> 
B109: 99 | C109: 0.0596 | D109: 0.027981 | E109: =IF(ReturnsType="Relative", (C109/C108-1)*IRNow1*ApproxDuration(C109,5), (C109-C108)*ApproxDuration(C109,5)) -> 0.0007888019031 | F109: =IF(ReturnsType="Relative", (D109/D108-1)*IRNow2*ApproxDuration(D109,5), (D109-D108)*ApproxDuration(D109,5)) -> 0.003056206037 | G109: 0.00384500794 | H109: =IF(DataWindow<B109,-CalcIM(OFFSET(E108,0,0,-DataWindow,1),ConfLevel, metric),"") ->  | J109: =IF(DataWindow<B109,-CalcIM(OFFSET(G108,0,0,-DataWindow,1),ConfLevel, metric),"") -> 
B110: 100 | C110: 0.0589 | D110: 0.0276304 | E110: =IF(ReturnsType="Relative", (C110/C109-1)*IRNow1*ApproxDuration(C110,5), (C110-C109)*ApproxDuration(C110,5)) -> -0.001373421968 | F110: =IF(ReturnsType="Relative", (D110/D109-1)*IRNow2*ApproxDuration(D110,5), (D110-D109)*ApproxDuration(D110,5)) -> -0.002090342559 | G110: -0.003463764527 | H110: =IF(DataWindow<B110,-CalcIM(OFFSET(E109,0,0,-DataWindow,1),ConfLevel, metric),"") ->  | J110: =IF(DataWindow<B110,-CalcIM(OFFSET(G109,0,0,-DataWindow,1),ConfLevel, metric),"") -> 
B111: 101 | C111: 0.0591 | D111: 0.0275604 | E111: =IF(ReturnsType="Relative", (C111/C110-1)*IRNow1*ApproxDuration(C111,5), (C111-C110)*ApproxDuration(C111,5)) -> 0.0003968811058 | F111: =IF(ReturnsType="Relative", (D111/D110-1)*IRNow2*ApproxDuration(D111,5), (D111-D110)*ApproxDuration(D111,5)) -> -0.0004227210792 | G111: -2.583997341e-05 | H111: =IF(DataWindow<B111,-CalcIM(OFFSET(E110,0,0,-DataWindow,1),ConfLevel, metric),"") ->  | J111: =IF(DataWindow<B111,-CalcIM(OFFSET(G110,0,0,-DataWindow,1),ConfLevel, metric),"") -> 
B112: 102 | C112: 0.0595 | D112: 0.028449 | E112: =IF(ReturnsType="Relative", (C112/C111-1)*IRNow1*ApproxDuration(C112,5), (C112-C111)*ApproxDuration(C112,5)) -> 0.0007903243616 | F112: =IF(ReturnsType="Relative", (D112/D111-1)*IRNow2*ApproxDuration(D112,5), (D112-D111)*ApproxDuration(D112,5)) -> 0.0053681118 | G112: 0.006158436162 | H112: =IF(DataWindow<B112,-CalcIM(OFFSET(E111,0,0,-DataWindow,1),ConfLevel, metric),"") ->  | J112: =IF(DataWindow<B112,-CalcIM(OFFSET(G111,0,0,-DataWindow,1),ConfLevel, metric),"") -> 
B113: 103 | C113: 0.0593 | D113: 0.028412 | E113: =IF(ReturnsType="Relative", (C113/C112-1)*IRNow1*ApproxDuration(C113,5), (C113-C112)*ApproxDuration(C113,5)) -> -0.0003926922252 | F113: =IF(ReturnsType="Relative", (D113/D112-1)*IRNow2*ApproxDuration(D113,5), (D113-D112)*ApproxDuration(D113,5)) -> -0.0002165582331 | G113: -0.0006092504583 | H113: =IF(DataWindow<B113,-CalcIM(OFFSET(E112,0,0,-DataWindow,1),ConfLevel, metric),"") ->  | J113: =IF(DataWindow<B113,-CalcIM(OFFSET(G112,0,0,-DataWindow,1),ConfLevel, metric),"") -> 
B114: 104 | C114: 0.0589 | D114: 0.0289762 | E114: =IF(ReturnsType="Relative", (C114/C113-1)*IRNow1*ApproxDuration(C114,5), (C114-C113)*ApproxDuration(C114,5)) -> -0.0007887829372 | F114: =IF(ReturnsType="Relative", (D114/D113-1)*IRNow2*ApproxDuration(D114,5), (D114-D113)*ApproxDuration(D114,5)) -> 0.003301971547 | G114: 0.00251318861 | H114: =IF(DataWindow<B114,-CalcIM(OFFSET(E113,0,0,-DataWindow,1),ConfLevel, metric),"") ->  | J114: =IF(DataWindow<B114,-CalcIM(OFFSET(G113,0,0,-DataWindow,1),ConfLevel, metric),"") -> 
B115: 105 | C115: 0.0585 | D115: 0.0295452 | E115: =IF(ReturnsType="Relative", (C115/C114-1)*IRNow1*ApproxDuration(C115,5), (C115-C114)*ApproxDuration(C115,5)) -> -0.0007948954054 | F115: =IF(ReturnsType="Relative", (D115/D114-1)*IRNow2*ApproxDuration(D115,5), (D115-D114)*ApproxDuration(D115,5)) -> 0.003260694879 | G115: 0.002465799473 | H115: =IF(DataWindow<B115,-CalcIM(OFFSET(E114,0,0,-DataWindow,1),ConfLevel, metric),"") ->  | J115: =IF(DataWindow<B115,-CalcIM(OFFSET(G114,0,0,-DataWindow,1),ConfLevel, metric),"") -> 
B116: 106 | C116: 0.059 | D116: 0.0293526 | E116: =IF(ReturnsType="Relative", (C116/C115-1)*IRNow1*ApproxDuration(C116,5), (C116-C115)*ApproxDuration(C116,5)) -> 0.0009992245601 | F116: =IF(ReturnsType="Relative", (D116/D115-1)*IRNow2*ApproxDuration(D116,5), (D116-D115)*ApproxDuration(D116,5)) -> -0.001082960601 | G116: -8.373604106e-05 | H116: =IF(DataWindow<B116,-CalcIM(OFFSET(E115,0,0,-DataWindow,1),ConfLevel, metric),"") ->  | J116: =IF(DataWindow<B116,-CalcIM(OFFSET(G115,0,0,-DataWindow,1),ConfLevel, metric),"") -> 
B117: 107 | C117: 0.0592 | D117: 0.0291568 | E117: =IF(ReturnsType="Relative", (C117/C116-1)*IRNow1*ApproxDuration(C117,5), (C117-C116)*ApproxDuration(C117,5)) -> 0.0003961142604 | F117: =IF(ReturnsType="Relative", (D117/D116-1)*IRNow2*ApproxDuration(D117,5), (D117-D116)*ApproxDuration(D117,5)) -> -0.001108707093 | G117: -0.0007125928325 | H117: =IF(DataWindow<B117,-CalcIM(OFFSET(E116,0,0,-DataWindow,1),ConfLevel, metric),"") ->  | J117: =IF(DataWindow<B117,-CalcIM(OFFSET(G116,0,0,-DataWindow,1),ConfLevel, metric),"") -> 
B118: 108 | C118: 0.0591 | D118: 0.0294272 | E118: =IF(ReturnsType="Relative", (C118/C117-1)*IRNow1*ApproxDuration(C118,5), (C118-C117)*ApproxDuration(C118,5)) -> -0.000197434942 | F118: =IF(ReturnsType="Relative", (D118/D117-1)*IRNow2*ApproxDuration(D118,5), (D118-D117)*ApproxDuration(D118,5)) -> 0.001540391541 | G118: 0.001342956599 | H118: =IF(DataWindow<B118,-CalcIM(OFFSET(E117,0,0,-DataWindow,1),ConfLevel, metric),"") ->  | J118: =IF(DataWindow<B118,-CalcIM(OFFSET(G117,0,0,-DataWindow,1),ConfLevel, metric),"") -> 
B119: 109 | C119: 0.0585 | D119: 0.0292334 | E119: =IF(ReturnsType="Relative", (C119/C118-1)*IRNow1*ApproxDuration(C119,5), (C119-C118)*ApproxDuration(C119,5)) -> -0.001188308106 | F119: =IF(ReturnsType="Relative", (D119/D118-1)*IRNow2*ApproxDuration(D119,5), (D119-D118)*ApproxDuration(D119,5)) -> -0.00109439576 | G119: -0.002282703866 | H119: =IF(DataWindow<B119,-CalcIM(OFFSET(E118,0,0,-DataWindow,1),ConfLevel, metric),"") ->  | J119: =IF(DataWindow<B119,-CalcIM(OFFSET(G118,0,0,-DataWindow,1),ConfLevel, metric),"") -> 
B120: 110 | C120: 0.0574 | D120: 0.029139 | E120: =IF(ReturnsType="Relative", (C120/C119-1)*IRNow1*ApproxDuration(C120,5), (C120-C119)*ApproxDuration(C120,5)) -> -0.002206677284 | F120: =IF(ReturnsType="Relative", (D120/D119-1)*IRNow2*ApproxDuration(D120,5), (D120-D119)*ApproxDuration(D120,5)) -> -0.0005367378681 | G120: -0.002743415153 | H120: =IF(DataWindow<B120,-CalcIM(OFFSET(E119,0,0,-DataWindow,1),ConfLevel, metric),"") ->  | J120: =IF(DataWindow<B120,-CalcIM(OFFSET(G119,0,0,-DataWindow,1),ConfLevel, metric),"") -> 
B121: 111 | C121: 0.0582 | D121: 0.02892 | E121: =IF(ReturnsType="Relative", (C121/C120-1)*IRNow1*ApproxDuration(C121,5), (C121-C120)*ApproxDuration(C121,5)) -> 0.001632500376 | F121: =IF(ReturnsType="Relative", (D121/D120-1)*IRNow2*ApproxDuration(D121,5), (D121-D120)*ApproxDuration(D121,5)) -> -0.001249887915 | G121: 0.0003826124601 | H121: =IF(DataWindow<B121,-CalcIM(OFFSET(E120,0,0,-DataWindow,1),ConfLevel, metric),"") ->  | J121: =IF(DataWindow<B121,-CalcIM(OFFSET(G120,0,0,-DataWindow,1),ConfLevel, metric),"") -> 
B122: 112 | C122: 0.0587 | D122: 0.0293888 | E122: =IF(ReturnsType="Relative", (C122/C121-1)*IRNow1*ApproxDuration(C122,5), (C122-C121)*ApproxDuration(C122,5)) -> 0.00100509185 | F122: =IF(ReturnsType="Relative", (D122/D121-1)*IRNow2*ApproxDuration(D122,5), (D122-D121)*ApproxDuration(D122,5)) -> 0.002692739126 | G122: 0.003697830976 | H122: =IF(DataWindow<B122,-CalcIM(OFFSET(E121,0,0,-DataWindow,1),ConfLevel, metric),"") ->  | J122: =IF(DataWindow<B122,-CalcIM(OFFSET(G121,0,0,-DataWindow,1),ConfLevel, metric),"") -> 
B123: 113 | C123: 0.0595 | D123: 0.0294108 | E123: =IF(ReturnsType="Relative", (C123/C122-1)*IRNow1*ApproxDuration(C123,5), (C123-C122)*ApproxDuration(C123,5)) -> 0.001591419754 | F123: =IF(ReturnsType="Relative", (D123/D122-1)*IRNow2*ApproxDuration(D123,5), (D123-D122)*ApproxDuration(D123,5)) -> 0.0001243433296 | G123: 0.001715763083 | H123: =IF(DataWindow<B123,-CalcIM(OFFSET(E122,0,0,-DataWindow,1),ConfLevel, metric),"") ->  | J123: =IF(DataWindow<B123,-CalcIM(OFFSET(G122,0,0,-DataWindow,1),ConfLevel, metric),"") -> 
B124: 114 | C124: 0.0589 | D124: 0.0295746 | E124: =IF(ReturnsType="Relative", (C124/C123-1)*IRNow1*ApproxDuration(C124,5), (C124-C123)*ApproxDuration(C124,5)) -> -0.001179197349 | F124: =IF(ReturnsType="Relative", (D124/D123-1)*IRNow2*ApproxDuration(D124,5), (D124-D123)*ApproxDuration(D124,5)) -> 0.0009247306457 | G124: -0.0002544667032 | H124: =IF(DataWindow<B124,-CalcIM(OFFSET(E123,0,0,-DataWindow,1),ConfLevel, metric),"") ->  | J124: =IF(DataWindow<B124,-CalcIM(OFFSET(G123,0,0,-DataWindow,1),ConfLevel, metric),"") -> 
B125: 115 | C125: 0.0599 | D125: 0.0292892 | E125: =IF(ReturnsType="Relative", (C125/C124-1)*IRNow1*ApproxDuration(C125,5), (C125-C124)*ApproxDuration(C125,5)) -> 0.001980636798 | F125: =IF(ReturnsType="Relative", (D125/D124-1)*IRNow2*ApproxDuration(D125,5), (D125-D124)*ApproxDuration(D125,5)) -> -0.00160341356 | G125: 0.0003772232386 | H125: =IF(DataWindow<B125,-CalcIM(OFFSET(E124,0,0,-DataWindow,1),ConfLevel, metric),"") ->  | J125: =IF(DataWindow<B125,-CalcIM(OFFSET(G124,0,0,-DataWindow,1),ConfLevel, metric),"") -> 
B126: 116 | C126: 0.0593 | D126: 0.02972 | E126: =IF(ReturnsType="Relative", (C126/C125-1)*IRNow1*ApproxDuration(C126,5), (C126-C125)*ApproxDuration(C126,5)) -> -0.001170209719 | F126: =IF(ReturnsType="Relative", (D126/D125-1)*IRNow2*ApproxDuration(D126,5), (D126-D125)*ApproxDuration(D126,5)) -> 0.002441307069 | G126: 0.00127109735 | H126: =IF(DataWindow<B126,-CalcIM(OFFSET(E125,0,0,-DataWindow,1),ConfLevel, metric),"") ->  | J126: =IF(DataWindow<B126,-CalcIM(OFFSET(G125,0,0,-DataWindow,1),ConfLevel, metric),"") -> 
B127: 117 | C127: 0.0602 | D127: 0.029519 | E127: =IF(ReturnsType="Relative", (C127/C126-1)*IRNow1*ApproxDuration(C127,5), (C127-C126)*ApproxDuration(C127,5)) -> 0.001769287905 | F127: =IF(ReturnsType="Relative", (D127/D126-1)*IRNow2*ApproxDuration(D127,5), (D127-D126)*ApproxDuration(D127,5)) -> -0.00112308939 | G127: 0.0006461985157 | H127: =IF(DataWindow<B127,-CalcIM(OFFSET(E126,0,0,-DataWindow,1),ConfLevel, metric),"") ->  | J127: =IF(DataWindow<B127,-CalcIM(OFFSET(G126,0,0,-DataWindow,1),ConfLevel, metric),"") -> 
B128: 118 | C128: 0.0603 | D128: 0.0295826 | E128: =IF(ReturnsType="Relative", (C128/C127-1)*IRNow1*ApproxDuration(C128,5), (C128-C127)*ApproxDuration(C128,5)) -> 0.000193602549 | F128: =IF(ReturnsType="Relative", (D128/D127-1)*IRNow2*ApproxDuration(D128,5), (D128-D127)*ApproxDuration(D128,5)) -> 0.0003577298609 | G128: 0.0005513324098 | H128: =IF(DataWindow<B128,-CalcIM(OFFSET(E127,0,0,-DataWindow,1),ConfLevel, metric),"") ->  | J128: =IF(DataWindow<B128,-CalcIM(OFFSET(G127,0,0,-DataWindow,1),ConfLevel, metric),"") -> 
B129: 119 | C129: 0.0603 | D129: 0.0290436 | E129: =IF(ReturnsType="Relative", (C129/C128-1)*IRNow1*ApproxDuration(C129,5), (C129-C128)*ApproxDuration(C129,5)) -> 0 | F129: =IF(ReturnsType="Relative", (D129/D128-1)*IRNow2*ApproxDuration(D129,5), (D129-D128)*ApproxDuration(D129,5)) -> -0.003029165937 | G129: -0.003029165937 | H129: =IF(DataWindow<B129,-CalcIM(OFFSET(E128,0,0,-DataWindow,1),ConfLevel, metric),"") ->  | J129: =IF(DataWindow<B129,-CalcIM(OFFSET(G128,0,0,-DataWindow,1),ConfLevel, metric),"") -> 
B130: 120 | C130: 0.0602 | D130: 0.0288296 | E130: =IF(ReturnsType="Relative", (C130/C129-1)*IRNow1*ApproxDuration(C130,5), (C130-C129)*ApproxDuration(C130,5)) -> -0.0001933273868 | F130: =IF(ReturnsType="Relative", (D130/D129-1)*IRNow2*ApproxDuration(D130,5), (D130-D129)*ApproxDuration(D130,5)) -> -0.001225633757 | G130: -0.001418961143 | H130: =IF(DataWindow<B130,-CalcIM(OFFSET(E129,0,0,-DataWindow,1),ConfLevel, metric),"") ->  | J130: =IF(DataWindow<B130,-CalcIM(OFFSET(G129,0,0,-DataWindow,1),ConfLevel, metric),"") -> 
B131: 121 | C131: 0.0606 | D131: 0.0291062 | E131: =IF(ReturnsType="Relative", (C131/C130-1)*IRNow1*ApproxDuration(C131,5), (C131-C130)*ApproxDuration(C131,5)) -> 0.0007738587983 | F131: =IF(ReturnsType="Relative", (D131/D130-1)*IRNow2*ApproxDuration(D131,5), (D131-D130)*ApproxDuration(D131,5)) -> 0.001594842788 | G131: 0.002368701586 | H131: =IF(DataWindow<B131,-CalcIM(OFFSET(E130,0,0,-DataWindow,1),ConfLevel, metric),"") ->  | J131: =IF(DataWindow<B131,-CalcIM(OFFSET(G130,0,0,-DataWindow,1),ConfLevel, metric),"") -> 
B132: 122 | C132: 0.0611 | D132: 0.029011 | E132: =IF(ReturnsType="Relative", (C132/C131-1)*IRNow1*ApproxDuration(C132,5), (C132-C131)*ApproxDuration(C132,5)) -> 0.0009597988432 | F132: =IF(ReturnsType="Relative", (D132/D131-1)*IRNow2*ApproxDuration(D132,5), (D132-D131)*ApproxDuration(D132,5)) -> -0.0005438218074 | G132: 0.0004159770358 | H132: =IF(DataWindow<B132,-CalcIM(OFFSET(E131,0,0,-DataWindow,1),ConfLevel, metric),"") ->  | J132: =IF(DataWindow<B132,-CalcIM(OFFSET(G131,0,0,-DataWindow,1),ConfLevel, metric),"") -> 
B133: 123 | C133: 0.0616 | D133: 0.0290964 | E133: =IF(ReturnsType="Relative", (C133/C132-1)*IRNow1*ApproxDuration(C133,5), (C133-C132)*ApproxDuration(C133,5)) -> 0.0009508159943 | F133: =IF(ReturnsType="Relative", (D133/D132-1)*IRNow2*ApproxDuration(D133,5), (D133-D132)*ApproxDuration(D133,5)) -> 0.0004893390491 | G133: 0.001440155043 | H133: =IF(DataWindow<B133,-CalcIM(OFFSET(E132,0,0,-DataWindow,1),ConfLevel, metric),"") ->  | J133: =IF(DataWindow<B133,-CalcIM(OFFSET(G132,0,0,-DataWindow,1),ConfLevel, metric),"") -> 
B134: 124 | C134: 0.0607 | D134: 0.0288478 | E134: =IF(ReturnsType="Relative", (C134/C133-1)*IRNow1*ApproxDuration(C134,5), (C134-C133)*ApproxDuration(C134,5)) -> -0.001701206084 | F134: =IF(ReturnsType="Relative", (D134/D133-1)*IRNow2*ApproxDuration(D134,5), (D134-D133)*ApproxDuration(D134,5)) -> -0.001421150157 | G134: -0.003122356242 | H134: =IF(DataWindow<B134,-CalcIM(OFFSET(E133,0,0,-DataWindow,1),ConfLevel, metric),"") ->  | J134: =IF(DataWindow<B134,-CalcIM(OFFSET(G133,0,0,-DataWindow,1),ConfLevel, metric),"") -> 
B135: 125 | C135: 0.0611 | D135: 0.029092 | E135: =IF(ReturnsType="Relative", (C135/C134-1)*IRNow1*ApproxDuration(C135,5), (C135-C134)*ApproxDuration(C135,5)) -> 0.0007665741008 | F135: =IF(ReturnsType="Relative", (D135/D134-1)*IRNow2*ApproxDuration(D135,5), (D135-D134)*ApproxDuration(D135,5)) -> 0.001407188654 | G135: 0.002173762754 | H135: =IF(DataWindow<B135,-CalcIM(OFFSET(E134,0,0,-DataWindow,1),ConfLevel, metric),"") ->  | J135: =IF(DataWindow<B135,-CalcIM(OFFSET(G134,0,0,-DataWindow,1),ConfLevel, metric),"") -> 
B136: 126 | C136: 0.0617 | D136: 0.0293908 | E136: =IF(ReturnsType="Relative", (C136/C135-1)*IRNow1*ApproxDuration(C136,5), (C136-C135)*ApproxDuration(C136,5)) -> 0.001140708612 | F136: =IF(ReturnsType="Relative", (D136/D135-1)*IRNow2*ApproxDuration(D136,5), (D136-D135)*ApproxDuration(D136,5)) -> 0.001706121133 | G136: 0.002846829744 | H136: =IF(DataWindow<B136,-CalcIM(OFFSET(E135,0,0,-DataWindow,1),ConfLevel, metric),"") ->  | J136: =IF(DataWindow<B136,-CalcIM(OFFSET(G135,0,0,-DataWindow,1),ConfLevel, metric),"") -> 
B137: 127 | C137: 0.0618 | D137: 0.0289246 | E137: =IF(ReturnsType="Relative", (C137/C136-1)*IRNow1*ApproxDuration(C137,5), (C137-C136)*ApproxDuration(C137,5)) -> 0.0001882246597 | F137: =IF(ReturnsType="Relative", (D137/D136-1)*IRNow2*ApproxDuration(D137,5), (D137-D136)*ApproxDuration(D137,5)) -> -0.00263789549 | G137: -0.00244967083 | H137: =IF(DataWindow<B137,-CalcIM(OFFSET(E136,0,0,-DataWindow,1),ConfLevel, metric),"") ->  | J137: =IF(DataWindow<B137,-CalcIM(OFFSET(G136,0,0,-DataWindow,1),ConfLevel, metric),"") -> 
B138: 128 | C138: 0.0618 | D138: 0.0291334 | E138: =IF(ReturnsType="Relative", (C138/C137-1)*IRNow1*ApproxDuration(C138,5), (C138-C137)*ApproxDuration(C138,5)) -> 0 | F138: =IF(ReturnsType="Relative", (D138/D137-1)*IRNow2*ApproxDuration(D138,5), (D138-D137)*ApproxDuration(D138,5)) -> 0.001199882272 | G138: 0.001199882272 | H138: =IF(DataWindow<B138,-CalcIM(OFFSET(E137,0,0,-DataWindow,1),ConfLevel, metric),"") ->  | J138: =IF(DataWindow<B138,-CalcIM(OFFSET(G137,0,0,-DataWindow,1),ConfLevel, metric),"") -> 
B139: 129 | C139: 0.0619 | D139: 0.029578 | E139: =IF(ReturnsType="Relative", (C139/C138-1)*IRNow1*ApproxDuration(C139,5), (C139-C138)*ApproxDuration(C139,5)) -> 0.0001878755319 | F139: =IF(ReturnsType="Relative", (D139/D138-1)*IRNow2*ApproxDuration(D139,5), (D139-D138)*ApproxDuration(D139,5)) -> 0.002533861524 | G139: 0.002721737056 | H139: =IF(DataWindow<B139,-CalcIM(OFFSET(E138,0,0,-DataWindow,1),ConfLevel, metric),"") ->  | J139: =IF(DataWindow<B139,-CalcIM(OFFSET(G138,0,0,-DataWindow,1),ConfLevel, metric),"") -> 
B140: =B139+1 -> 130 | C140: 0.062 | D140: 0.0295124 | E140: =IF(ReturnsType="Relative", (C140/C139-1)*IRNow1*ApproxDuration(C140,5), (C140-C139)*ApproxDuration(C140,5)) -> 0.0001875275466 | F140: =IF(ReturnsType="Relative", (D140/D139-1)*IRNow2*ApproxDuration(D140,5), (D140-D139)*ApproxDuration(D140,5)) -> -0.0003683062566 | G140: =F140+E140 -> -0.00018077871 | H140: =IF(DataWindow<B140,-CalcIM(OFFSET(E139,0,0,-DataWindow,1),ConfLevel, metric),"") ->  | J140: =IF(DataWindow<B140,-CalcIM(OFFSET(G139,0,0,-DataWindow,1),ConfLevel, metric),"") -> 
B141: 131 | C141: 0.0623 | D141: 0.0296176 | E141: =IF(ReturnsType="Relative", (C141/C140-1)*IRNow1*ApproxDuration(C141,5), (C141-C140)*ApproxDuration(C141,5)) -> 0.0005612759165 | F141: =IF(ReturnsType="Relative", (D141/D140-1)*IRNow2*ApproxDuration(D141,5), (D141-D140)*ApproxDuration(D141,5)) -> 0.0005917985089 | G141: 0.001153074425 | H141: =IF(DataWindow<B141,-CalcIM(OFFSET(E140,0,0,-DataWindow,1),ConfLevel, metric),"") ->  | J141: =IF(DataWindow<B141,-CalcIM(OFFSET(G140,0,0,-DataWindow,1),ConfLevel, metric),"") ->  | K141: =IF(H141<>"",J141/(I141+H141),"") -> 
B142: 132 | C142: 0.0618 | D142: 0.0298584 | E142: =IF(ReturnsType="Relative", (C142/C141-1)*IRNow1*ApproxDuration(C142,5), (C142-C141)*ApproxDuration(C142,5)) -> -0.0009320595107 | F142: =IF(ReturnsType="Relative", (D142/D141-1)*IRNow2*ApproxDuration(D142,5), (D142-D141)*ApproxDuration(D142,5)) -> 0.001349007319 | G142: 0.0004169478078 | H142: =IF(DataWindow<B142,-CalcIM(OFFSET(E141,0,0,-DataWindow,1),ConfLevel, metric),"") ->  | J142: =IF(DataWindow<B142,-CalcIM(OFFSET(G141,0,0,-DataWindow,1),ConfLevel, metric),"") -> 
B143: 133 | C143: 0.0611 | D143: 0.0299168 | E143: =IF(ReturnsType="Relative", (C143/C142-1)*IRNow1*ApproxDuration(C143,5), (C143-C142)*ApproxDuration(C143,5)) -> -0.001317626761 | F143: =IF(ReturnsType="Relative", (D143/D142-1)*IRNow2*ApproxDuration(D143,5), (D143-D142)*ApproxDuration(D143,5)) -> 0.0003244831681 | G143: -0.0009931435933 | H143: =IF(DataWindow<B143,-CalcIM(OFFSET(E142,0,0,-DataWindow,1),ConfLevel, metric),"") ->  | J143: =IF(DataWindow<B143,-CalcIM(OFFSET(G142,0,0,-DataWindow,1),ConfLevel, metric),"") -> 
B144: 134 | C144: 0.06 | D144: 0.0301996 | E144: =IF(ReturnsType="Relative", (C144/C143-1)*IRNow1*ApproxDuration(C144,5), (C144-C143)*ApproxDuration(C144,5)) -> -0.002099754186 | F144: =IF(ReturnsType="Relative", (D144/D143-1)*IRNow2*ApproxDuration(D144,5), (D144-D143)*ApproxDuration(D144,5)) -> 0.001567150723 | G144: -0.0005326034633 | H144: =IF(DataWindow<B144,-CalcIM(OFFSET(E143,0,0,-DataWindow,1),ConfLevel, metric),"") ->  | J144: =IF(DataWindow<B144,-CalcIM(OFFSET(G143,0,0,-DataWindow,1),ConfLevel, metric),"") -> 
B145: 135 | C145: 0.0605 | D145: 0.0302098 | E145: =IF(ReturnsType="Relative", (C145/C144-1)*IRNow1*ApproxDuration(C145,5), (C145-C144)*ApproxDuration(C145,5)) -> 0.0009707783495 | F145: =IF(ReturnsType="Relative", (D145/D144-1)*IRNow2*ApproxDuration(D145,5), (D145-D144)*ApproxDuration(D145,5)) -> 5.599312231e-05 | G145: 0.001026771472 | H145: =IF(DataWindow<B145,-CalcIM(OFFSET(E144,0,0,-DataWindow,1),ConfLevel, metric),"") ->  | J145: =IF(DataWindow<B145,-CalcIM(OFFSET(G144,0,0,-DataWindow,1),ConfLevel, metric),"") -> 
B146: 136 | C146: 0.0602 | D146: 0.0298748 | E146: =IF(ReturnsType="Relative", (C146/C145-1)*IRNow1*ApproxDuration(C146,5), (C146-C145)*ApproxDuration(C146,5)) -> -0.0005780648639 | F146: =IF(ReturnsType="Relative", (D146/D145-1)*IRNow2*ApproxDuration(D146,5), (D146-D145)*ApproxDuration(D146,5)) -> -0.001839870604 | G146: -0.002417935467 | H146: =IF(DataWindow<B146,-CalcIM(OFFSET(E145,0,0,-DataWindow,1),ConfLevel, metric),"") ->  | J146: =IF(DataWindow<B146,-CalcIM(OFFSET(G145,0,0,-DataWindow,1),ConfLevel, metric),"") -> 
B147: 137 | C147: 0.06 | D147: 0.0296392 | E147: =IF(ReturnsType="Relative", (C147/C146-1)*IRNow1*ApproxDuration(C147,5), (C147-C146)*ApproxDuration(C147,5)) -> -0.0003874810654 | F147: =IF(ReturnsType="Relative", (D147/D146-1)*IRNow2*ApproxDuration(D147,5), (D147-D146)*ApproxDuration(D147,5)) -> -0.001309212255 | G147: -0.00169669332 | H147: =IF(DataWindow<B147,-CalcIM(OFFSET(E146,0,0,-DataWindow,1),ConfLevel, metric),"") ->  | J147: =IF(DataWindow<B147,-CalcIM(OFFSET(G146,0,0,-DataWindow,1),ConfLevel, metric),"") -> 
B148: 138 | C148: 0.0594 | D148: 0.0299114 | E148: =IF(ReturnsType="Relative", (C148/C147-1)*IRNow1*ApproxDuration(C148,5), (C148-C147)*ApproxDuration(C148,5)) -> -0.001167981762 | F148: =IF(ReturnsType="Relative", (D148/D147-1)*IRNow2*ApproxDuration(D148,5), (D148-D147)*ApproxDuration(D148,5)) -> 0.00152360791 | G148: 0.0003556261483 | H148: =IF(DataWindow<B148,-CalcIM(OFFSET(E147,0,0,-DataWindow,1),ConfLevel, metric),"") ->  | J148: =IF(DataWindow<B148,-CalcIM(OFFSET(G147,0,0,-DataWindow,1),ConfLevel, metric),"") -> 
B149: 139 | C149: 0.0591 | D149: 0.0296038 | E149: =IF(ReturnsType="Relative", (C149/C148-1)*IRNow1*ApproxDuration(C149,5), (C149-C148)*ApproxDuration(C149,5)) -> -0.0005903105336 | F149: =IF(ReturnsType="Relative", (D149/D148-1)*IRNow2*ApproxDuration(D149,5), (D149-D148)*ApproxDuration(D149,5)) -> -0.001707366907 | G149: -0.00229767744 | H149: =IF(DataWindow<B149,-CalcIM(OFFSET(E148,0,0,-DataWindow,1),ConfLevel, metric),"") ->  | J149: =IF(DataWindow<B149,-CalcIM(OFFSET(G148,0,0,-DataWindow,1),ConfLevel, metric),"") -> 
B150: 140 | C150: 0.0593 | D150: 0.0292858 | E150: =IF(ReturnsType="Relative", (C150/C149-1)*IRNow1*ApproxDuration(C150,5), (C150-C149)*ApproxDuration(C150,5)) -> 0.0003953500406 | F150: =IF(ReturnsType="Relative", (D150/D149-1)*IRNow2*ApproxDuration(D150,5), (D150-D149)*ApproxDuration(D150,5)) -> -0.001784817118 | G150: -0.001389467078 | H150: =IF(DataWindow<B150,-CalcIM(OFFSET(E149,0,0,-DataWindow,1),ConfLevel, metric),"") ->  | J150: =IF(DataWindow<B150,-CalcIM(OFFSET(G149,0,0,-DataWindow,1),ConfLevel, metric),"") -> 
B151: 141 | C151: 0.0595 | D151: 0.0294894 | E151: =IF(ReturnsType="Relative", (C151/C150-1)*IRNow1*ApproxDuration(C151,5), (C151-C150)*ApproxDuration(C151,5)) -> 0.0003938294247 | F151: =IF(ReturnsType="Relative", (D151/D150-1)*IRNow2*ApproxDuration(D151,5), (D151-D150)*ApproxDuration(D151,5)) -> 0.001154566897 | G151: 0.001548396321 | H151: =IF(DataWindow<B151,-CalcIM(OFFSET(E150,0,0,-DataWindow,1),ConfLevel, metric),"") ->  | J151: =IF(DataWindow<B151,-CalcIM(OFFSET(G150,0,0,-DataWindow,1),ConfLevel, metric),"") -> 
B152: 142 | C152: 0.0598 | D152: 0.0290484 | E152: =IF(ReturnsType="Relative", (C152/C151-1)*IRNow1*ApproxDuration(C152,5), (C152-C151)*ApproxDuration(C152,5)) -> 0.0005883389403 | F152: =IF(ReturnsType="Relative", (D152/D151-1)*IRNow2*ApproxDuration(D152,5), (D152-D151)*ApproxDuration(D152,5)) -> -0.002486212286 | G152: -0.001897873346 | H152: =IF(DataWindow<B152,-CalcIM(OFFSET(E151,0,0,-DataWindow,1),ConfLevel, metric),"") ->  | J152: =IF(DataWindow<B152,-CalcIM(OFFSET(G151,0,0,-DataWindow,1),ConfLevel, metric),"") -> 
B153: 143 | C153: 0.0591 | D153: 0.0289924 | E153: =IF(ReturnsType="Relative", (C153/C152-1)*IRNow1*ApproxDuration(C153,5), (C153-C152)*ApproxDuration(C153,5)) -> -0.001368177926 | F153: =IF(ReturnsType="Relative", (D153/D152-1)*IRNow2*ApproxDuration(D153,5), (D153-D152)*ApproxDuration(D153,5)) -> -0.0003205462476 | G153: -0.001688724173 | H153: =IF(DataWindow<B153,-CalcIM(OFFSET(E152,0,0,-DataWindow,1),ConfLevel, metric),"") ->  | J153: =IF(DataWindow<B153,-CalcIM(OFFSET(G152,0,0,-DataWindow,1),ConfLevel, metric),"") -> 
B154: 144 | C154: 0.0592 | D154: 0.0283978 | E154: =IF(ReturnsType="Relative", (C154/C153-1)*IRNow1*ApproxDuration(C154,5), (C154-C153)*ApproxDuration(C154,5)) -> 0.0001977220081 | F154: =IF(ReturnsType="Relative", (D154/D153-1)*IRNow2*ApproxDuration(D154,5), (D154-D153)*ApproxDuration(D154,5)) -> -0.003415039805 | G154: -0.003217317797 | H154: =IF(DataWindow<B154,-CalcIM(OFFSET(E153,0,0,-DataWindow,1),ConfLevel, metric),"") ->  | J154: =IF(DataWindow<B154,-CalcIM(OFFSET(G153,0,0,-DataWindow,1),ConfLevel, metric),"") -> 
B155: 145 | C155: 0.0595 | D155: 0.0286166 | E155: =IF(ReturnsType="Relative", (C155/C154-1)*IRNow1*ApproxDuration(C155,5), (C155-C154)*ApproxDuration(C155,5)) -> 0.0005917420156 | F155: =IF(ReturnsType="Relative", (D155/D154-1)*IRNow2*ApproxDuration(D155,5), (D155-D154)*ApproxDuration(D155,5)) -> 0.00128228847 | G155: 0.001874030485 | H155: =IF(DataWindow<B155,-CalcIM(OFFSET(E154,0,0,-DataWindow,1),ConfLevel, metric),"") ->  | J155: =IF(DataWindow<B155,-CalcIM(OFFSET(G154,0,0,-DataWindow,1),ConfLevel, metric),"") -> 
B156: 146 | C156: 0.0602 | D156: 0.028762 | E156: =IF(ReturnsType="Relative", (C156/C155-1)*IRNow1*ApproxDuration(C156,5), (C156-C155)*ApproxDuration(C156,5)) -> 0.001371487226 | F156: =IF(ReturnsType="Relative", (D156/D155-1)*IRNow2*ApproxDuration(D156,5), (D156-D155)*ApproxDuration(D156,5)) -> 0.0008453088113 | G156: 0.002216796037 | H156: =IF(DataWindow<B156,-CalcIM(OFFSET(E155,0,0,-DataWindow,1),ConfLevel, metric),"") ->  | J156: =IF(DataWindow<B156,-CalcIM(OFFSET(G155,0,0,-DataWindow,1),ConfLevel, metric),"") -> 
B157: 147 | C157: 0.0605 | D157: 0.028774 | E157: =IF(ReturnsType="Relative", (C157/C156-1)*IRNow1*ApproxDuration(C157,5), (C157-C156)*ApproxDuration(C157,5)) -> 0.0005805319033 | F157: =IF(ReturnsType="Relative", (D157/D156-1)*IRNow2*ApproxDuration(D157,5), (D157-D156)*ApproxDuration(D157,5)) -> 6.940942873e-05 | G157: 0.0006499413321 | H157: =IF(DataWindow<B157,-CalcIM(OFFSET(E156,0,0,-DataWindow,1),ConfLevel, metric),"") ->  | J157: =IF(DataWindow<B157,-CalcIM(OFFSET(G156,0,0,-DataWindow,1),ConfLevel, metric),"") -> 
B158: 148 | C158: 0.0605 | D158: 0.0290512 | E158: =IF(ReturnsType="Relative", (C158/C157-1)*IRNow1*ApproxDuration(C158,5), (C158-C157)*ApproxDuration(C158,5)) -> 0 | F158: =IF(ReturnsType="Relative", (D158/D157-1)*IRNow2*ApproxDuration(D158,5), (D158-D157)*ApproxDuration(D158,5)) -> 0.001601605588 | G158: 0.001601605588 | H158: =IF(DataWindow<B158,-CalcIM(OFFSET(E157,0,0,-DataWindow,1),ConfLevel, metric),"") ->  | J158: =IF(DataWindow<B158,-CalcIM(OFFSET(G157,0,0,-DataWindow,1),ConfLevel, metric),"") -> 
B159: 149 | C159: 0.0609 | D159: 0.0292586 | E159: =IF(ReturnsType="Relative", (C159/C158-1)*IRNow1*ApproxDuration(C159,5), (C159-C158)*ApproxDuration(C159,5)) -> 0.0007694733529 | F159: =IF(ReturnsType="Relative", (D159/D158-1)*IRNow2*ApproxDuration(D159,5), (D159-D158)*ApproxDuration(D159,5)) -> 0.001186280938 | G159: 0.001955754291 | H159: =IF(DataWindow<B159,-CalcIM(OFFSET(E158,0,0,-DataWindow,1),ConfLevel, metric),"") ->  | J159: =IF(DataWindow<B159,-CalcIM(OFFSET(G158,0,0,-DataWindow,1),ConfLevel, metric),"") -> 
B160: 150 | C160: 0.0608 | D160: 0.0295864 | E160: =IF(ReturnsType="Relative", (C160/C159-1)*IRNow1*ApproxDuration(C160,5), (C160-C159)*ApproxDuration(C160,5)) -> -0.0001911501979 | F160: =IF(ReturnsType="Relative", (D160/D159-1)*IRNow2*ApproxDuration(D160,5), (D160-D159)*ApproxDuration(D160,5)) -> 0.001860163432 | G160: 0.001669013234 | H160: =IF(DataWindow<B160,-CalcIM(OFFSET(E159,0,0,-DataWindow,1),ConfLevel, metric),"") ->  | J160: =IF(DataWindow<B160,-CalcIM(OFFSET(G159,0,0,-DataWindow,1),ConfLevel, metric),"") -> 
B161: 151 | C161: 0.0608 | D161: 0.029656 | E161: =IF(ReturnsType="Relative", (C161/C160-1)*IRNow1*ApproxDuration(C161,5), (C161-C160)*ApproxDuration(C161,5)) -> 0 | F161: =IF(ReturnsType="Relative", (D161/D160-1)*IRNow2*ApproxDuration(D161,5), (D161-D160)*ApproxDuration(D161,5)) -> 0.0003905162475 | G161: 0.0003905162475 | H161: =IF(DataWindow<B161,-CalcIM(OFFSET(E160,0,0,-DataWindow,1),ConfLevel, metric),"") ->  | J161: =IF(DataWindow<B161,-CalcIM(OFFSET(G160,0,0,-DataWindow,1),ConfLevel, metric),"") -> 
B162: 152 | C162: 0.0611 | D162: 0.0294574 | E162: =IF(ReturnsType="Relative", (C162/C161-1)*IRNow1*ApproxDuration(C162,5), (C162-C161)*ApproxDuration(C162,5)) -> 0.0005739849661 | F162: =IF(ReturnsType="Relative", (D162/D161-1)*IRNow2*ApproxDuration(D162,5), (D162-D161)*ApproxDuration(D162,5)) -> -0.001112241208 | G162: -0.0005382562423 | H162: =IF(DataWindow<B162,-CalcIM(OFFSET(E161,0,0,-DataWindow,1),ConfLevel, metric),"") ->  | J162: =IF(DataWindow<B162,-CalcIM(OFFSET(G161,0,0,-DataWindow,1),ConfLevel, metric),"") -> 
B163: 153 | C163: 0.0619 | D163: 0.029205 | E163: =IF(ReturnsType="Relative", (C163/C162-1)*IRNow1*ApproxDuration(C163,5), (C163-C162)*ApproxDuration(C163,5)) -> 0.001520223617 | F163: =IF(ReturnsType="Relative", (D163/D162-1)*IRNow2*ApproxDuration(D163,5), (D163-D162)*ApproxDuration(D163,5)) -> -0.001423949518 | G163: 9.627409851e-05 | H163: =IF(DataWindow<B163,-CalcIM(OFFSET(E162,0,0,-DataWindow,1),ConfLevel, metric),"") ->  | J163: =IF(DataWindow<B163,-CalcIM(OFFSET(G162,0,0,-DataWindow,1),ConfLevel, metric),"") -> 
B164: 154 | C164: 0.0616 | D164: 0.0294368 | E164: =IF(ReturnsType="Relative", (C164/C163-1)*IRNow1*ApproxDuration(C164,5), (C164-C163)*ApproxDuration(C164,5)) -> -0.0005631165485 | F164: =IF(ReturnsType="Relative", (D164/D163-1)*IRNow2*ApproxDuration(D164,5), (D164-D163)*ApproxDuration(D164,5)) -> 0.001318288152 | G164: 0.0007551716038 | H164: =IF(DataWindow<B164,-CalcIM(OFFSET(E163,0,0,-DataWindow,1),ConfLevel, metric),"") ->  | J164: =IF(DataWindow<B164,-CalcIM(OFFSET(G163,0,0,-DataWindow,1),ConfLevel, metric),"") -> 
B165: 155 | C165: 0.0619 | D165: 0.0298312 | E165: =IF(ReturnsType="Relative", (C165/C164-1)*IRNow1*ApproxDuration(C165,5), (C165-C164)*ApproxDuration(C165,5)) -> 0.0005654565522 | F165: =IF(ReturnsType="Relative", (D165/D164-1)*IRNow2*ApproxDuration(D165,5), (D165-D164)*ApproxDuration(D165,5)) -> 0.002223221807 | G165: 0.002788678359 | H165: =IF(DataWindow<B165,-CalcIM(OFFSET(E164,0,0,-DataWindow,1),ConfLevel, metric),"") ->  | J165: =IF(DataWindow<B165,-CalcIM(OFFSET(G164,0,0,-DataWindow,1),ConfLevel, metric),"") -> 
B166: 156 | C166: 0.0622 | D166: 0.0296886 | E166: =IF(ReturnsType="Relative", (C166/C165-1)*IRNow1*ApproxDuration(C166,5), (C166-C165)*ApproxDuration(C166,5)) -> 0.0005623159451 | F166: =IF(ReturnsType="Relative", (D166/D165-1)*IRNow2*ApproxDuration(D166,5), (D166-D165)*ApproxDuration(D166,5)) -> -0.0007934805285 | G166: -0.0002311645835 | H166: =IF(DataWindow<B166,-CalcIM(OFFSET(E165,0,0,-DataWindow,1),ConfLevel, metric),"") ->  | J166: =IF(DataWindow<B166,-CalcIM(OFFSET(G165,0,0,-DataWindow,1),ConfLevel, metric),"") -> 
B167: 157 | C167: 0.0616 | D167: 0.029597 | E167: =IF(ReturnsType="Relative", (C167/C166-1)*IRNow1*ApproxDuration(C167,5), (C167-C166)*ApproxDuration(C167,5)) -> -0.001120801105 | F167: =IF(ReturnsType="Relative", (D167/D166-1)*IRNow2*ApproxDuration(D167,5), (D167-D166)*ApproxDuration(D167,5)) -> -0.0005122597404 | G167: -0.001633060845 | H167: =IF(DataWindow<B167,-CalcIM(OFFSET(E166,0,0,-DataWindow,1),ConfLevel, metric),"") ->  | J167: =IF(DataWindow<B167,-CalcIM(OFFSET(G166,0,0,-DataWindow,1),ConfLevel, metric),"") -> 
B168: 158 | C168: 0.0614 | D168: 0.0299214 | E168: =IF(ReturnsType="Relative", (C168/C167-1)*IRNow1*ApproxDuration(C168,5), (C168-C167)*ApproxDuration(C168,5)) -> -0.0003774183434 | F168: =IF(ReturnsType="Relative", (D168/D167-1)*IRNow2*ApproxDuration(D168,5), (D168-D167)*ApproxDuration(D168,5)) -> 0.001818336018 | G168: 0.001440917675 | H168: =IF(DataWindow<B168,-CalcIM(OFFSET(E167,0,0,-DataWindow,1),ConfLevel, metric),"") ->  | J168: =IF(DataWindow<B168,-CalcIM(OFFSET(G167,0,0,-DataWindow,1),ConfLevel, metric),"") -> 
B169: 159 | C169: 0.061 | D169: 0.0298344 | E169: =IF(ReturnsType="Relative", (C169/C168-1)*IRNow1*ApproxDuration(C169,5), (C169-C168)*ApproxDuration(C169,5)) -> -0.0007580145129 | F169: =IF(ReturnsType="Relative", (D169/D168-1)*IRNow2*ApproxDuration(D169,5), (D169-D168)*ApproxDuration(D169,5)) -> -0.0004824701389 | G169: -0.001240484652 | H169: =IF(DataWindow<B169,-CalcIM(OFFSET(E168,0,0,-DataWindow,1),ConfLevel, metric),"") ->  | J169: =IF(DataWindow<B169,-CalcIM(OFFSET(G168,0,0,-DataWindow,1),ConfLevel, metric),"") -> 
B170: 160 | C170: 0.0613 | D170: 0.0299896 | E170: =IF(ReturnsType="Relative", (C170/C169-1)*IRNow1*ApproxDuration(C170,5), (C170-C169)*ApproxDuration(C170,5)) -> 0.000571831627 | F170: =IF(ReturnsType="Relative", (D170/D169-1)*IRNow2*ApproxDuration(D170,5), (D170-D169)*ApproxDuration(D170,5)) -> 0.0008628656844 | G170: 0.001434697311 | H170: =IF(DataWindow<B170,-CalcIM(OFFSET(E169,0,0,-DataWindow,1),ConfLevel, metric),"") ->  | J170: =IF(DataWindow<B170,-CalcIM(OFFSET(G169,0,0,-DataWindow,1),ConfLevel, metric),"") -> 
B171: 161 | C171: 0.0612 | D171: 0.0299626 | E171: =IF(ReturnsType="Relative", (C171/C170-1)*IRNow1*ApproxDuration(C171,5), (C171-C170)*ApproxDuration(C171,5)) -> -0.0001897227093 | F171: =IF(ReturnsType="Relative", (D171/D170-1)*IRNow2*ApproxDuration(D171,5), (D171-D170)*ApproxDuration(D171,5)) -> -0.0001493449228 | G171: -0.0003390676322 | H171: =IF(DataWindow<B171,-CalcIM(OFFSET(E170,0,0,-DataWindow,1),ConfLevel, metric),"") ->  | J171: =IF(DataWindow<B171,-CalcIM(OFFSET(G170,0,0,-DataWindow,1),ConfLevel, metric),"") -> 
B172: 162 | C172: 0.0607 | D172: 0.0301194 | E172: =IF(ReturnsType="Relative", (C172/C171-1)*IRNow1*ApproxDuration(C172,5), (C172-C171)*ApproxDuration(C172,5)) -> -0.0009512917102 | F172: =IF(ReturnsType="Relative", (D172/D171-1)*IRNow2*ApproxDuration(D172,5), (D172-D171)*ApproxDuration(D172,5)) -> 0.00086775665 | G172: -8.353506025e-05 | H172: =IF(DataWindow<B172,-CalcIM(OFFSET(E171,0,0,-DataWindow,1),ConfLevel, metric),"") ->  | J172: =IF(DataWindow<B172,-CalcIM(OFFSET(G171,0,0,-DataWindow,1),ConfLevel, metric),"") -> 
B173: 163 | C173: 0.0609 | D173: 0.0301662 | E173: =IF(ReturnsType="Relative", (C173/C172-1)*IRNow1*ApproxDuration(C173,5), (C173-C172)*ApproxDuration(C173,5)) -> 0.0003834690103 | F173: =IF(ReturnsType="Relative", (D173/D172-1)*IRNow2*ApproxDuration(D173,5), (D173-D172)*ApproxDuration(D173,5)) -> 0.0002576210755 | G173: 0.0006410900858 | H173: =IF(DataWindow<B173,-CalcIM(OFFSET(E172,0,0,-DataWindow,1),ConfLevel, metric),"") ->  | J173: =IF(DataWindow<B173,-CalcIM(OFFSET(G172,0,0,-DataWindow,1),ConfLevel, metric),"") -> 
B174: 164 | C174: 0.062 | D174: 0.030129 | E174: =IF(ReturnsType="Relative", (C174/C173-1)*IRNow1*ApproxDuration(C174,5), (C174-C173)*ApproxDuration(C174,5)) -> 0.002096674983 | F174: =IF(ReturnsType="Relative", (D174/D173-1)*IRNow2*ApproxDuration(D174,5), (D174-D173)*ApproxDuration(D174,5)) -> -0.0002044765745 | G174: 0.001892198408 | H174: =IF(DataWindow<B174,-CalcIM(OFFSET(E173,0,0,-DataWindow,1),ConfLevel, metric),"") ->  | J174: =IF(DataWindow<B174,-CalcIM(OFFSET(G173,0,0,-DataWindow,1),ConfLevel, metric),"") -> 
B175: 165 | C175: 0.0624 | D175: 0.0302818 | E175: =IF(ReturnsType="Relative", (C175/C174-1)*IRNow1*ApproxDuration(C175,5), (C175-C174)*ApproxDuration(C175,5)) -> 0.0007481905229 | F175: =IF(ReturnsType="Relative", (D175/D174-1)*IRNow2*ApproxDuration(D175,5), (D175-D174)*ApproxDuration(D175,5)) -> 0.0008406169404 | G175: 0.001588807463 | H175: =IF(DataWindow<B175,-CalcIM(OFFSET(E174,0,0,-DataWindow,1),ConfLevel, metric),"") ->  | J175: =IF(DataWindow<B175,-CalcIM(OFFSET(G174,0,0,-DataWindow,1),ConfLevel, metric),"") -> 
B176: 166 | C176: 0.063 | D176: 0.0301968 | E176: =IF(ReturnsType="Relative", (C176/C175-1)*IRNow1*ApproxDuration(C176,5), (C176-C175)*ApproxDuration(C176,5)) -> 0.001113507386 | F176: =IF(ReturnsType="Relative", (D176/D175-1)*IRNow2*ApproxDuration(D176,5), (D176-D175)*ApproxDuration(D176,5)) -> -0.0004653574841 | G176: 0.0006481499022 | H176: =IF(DataWindow<B176,-CalcIM(OFFSET(E175,0,0,-DataWindow,1),ConfLevel, metric),"") ->  | J176: =IF(DataWindow<B176,-CalcIM(OFFSET(G175,0,0,-DataWindow,1),ConfLevel, metric),"") -> 
B177: 167 | C177: 0.0629 | D177: 0.0300518 | E177: =IF(ReturnsType="Relative", (C177/C176-1)*IRNow1*ApproxDuration(C177,5), (C177-C176)*ApproxDuration(C177,5)) -> -0.0001838606451 | F177: =IF(ReturnsType="Relative", (D177/D176-1)*IRNow2*ApproxDuration(D177,5), (D177-D176)*ApproxDuration(D177,5)) -> -0.0007963610759 | G177: -0.000980221721 | H177: =IF(DataWindow<B177,-CalcIM(OFFSET(E176,0,0,-DataWindow,1),ConfLevel, metric),"") ->  | J177: =IF(DataWindow<B177,-CalcIM(OFFSET(G176,0,0,-DataWindow,1),ConfLevel, metric),"") -> 
B178: 168 | C178: 0.0634 | D178: 0.0303536 | E178: =IF(ReturnsType="Relative", (C178/C177-1)*IRNow1*ApproxDuration(C178,5), (C178-C177)*ApproxDuration(C178,5)) -> 0.0009196749148 | F178: =IF(ReturnsType="Relative", (D178/D177-1)*IRNow2*ApproxDuration(D178,5), (D178-D177)*ApproxDuration(D178,5)) -> 0.001664302477 | G178: 0.002583977392 | H178: =IF(DataWindow<B178,-CalcIM(OFFSET(E177,0,0,-DataWindow,1),ConfLevel, metric),"") ->  | J178: =IF(DataWindow<B178,-CalcIM(OFFSET(G177,0,0,-DataWindow,1),ConfLevel, metric),"") -> 
B179: 169 | C179: 0.0636 | D179: 0.0304154 | E179: =IF(ReturnsType="Relative", (C179/C178-1)*IRNow1*ApproxDuration(C179,5), (C179-C178)*ApproxDuration(C179,5)) -> 0.00036479598 | F179: =IF(ReturnsType="Relative", (D179/D178-1)*IRNow2*ApproxDuration(D179,5), (D179-D178)*ApproxDuration(D179,5)) -> 0.0003373621705 | G179: 0.0007021581505 | H179: =IF(DataWindow<B179,-CalcIM(OFFSET(E178,0,0,-DataWindow,1),ConfLevel, metric),"") ->  | J179: =IF(DataWindow<B179,-CalcIM(OFFSET(G178,0,0,-DataWindow,1),ConfLevel, metric),"") -> 
B180: 170 | C180: 0.0638 | D180: 0.0301416 | E180: =IF(ReturnsType="Relative", (C180/C179-1)*IRNow1*ApproxDuration(C180,5), (C180-C179)*ApproxDuration(C180,5)) -> 0.0003634766748 | F180: =IF(ReturnsType="Relative", (D180/D179-1)*IRNow2*ApproxDuration(D180,5), (D180-D179)*ApproxDuration(D180,5)) -> -0.001492615 | G180: -0.001129138325 | H180: =IF(DataWindow<B180,-CalcIM(OFFSET(E179,0,0,-DataWindow,1),ConfLevel, metric),"") ->  | J180: =IF(DataWindow<B180,-CalcIM(OFFSET(G179,0,0,-DataWindow,1),ConfLevel, metric),"") -> 
B181: 171 | C181: 0.0639 | D181: 0.029845 | E181: =IF(ReturnsType="Relative", (C181/C180-1)*IRNow1*ApproxDuration(C181,5), (C181-C180)*ApproxDuration(C181,5)) -> 0.0001811257435 | F181: =IF(ReturnsType="Relative", (D181/D180-1)*IRNow2*ApproxDuration(D181,5), (D181-D180)*ApproxDuration(D181,5)) -> -0.001632776414 | G181: -0.001451650671 | H181: =IF(DataWindow<B181,-CalcIM(OFFSET(E180,0,0,-DataWindow,1),ConfLevel, metric),"") ->  | J181: =IF(DataWindow<B181,-CalcIM(OFFSET(G180,0,0,-DataWindow,1),ConfLevel, metric),"") -> 
B182: 172 | C182: 0.0639 | D182: 0.0300502 | E182: =IF(ReturnsType="Relative", (C182/C181-1)*IRNow1*ApproxDuration(C182,5), (C182-C181)*ApproxDuration(C182,5)) -> 0 | F182: =IF(ReturnsType="Relative", (D182/D181-1)*IRNow2*ApproxDuration(D182,5), (D182-D181)*ApproxDuration(D182,5)) -> 0.001140277125 | G182: 0.001140277125 | H182: =IF(DataWindow<B182,-CalcIM(OFFSET(E181,0,0,-DataWindow,1),ConfLevel, metric),"") ->  | J182: =IF(DataWindow<B182,-CalcIM(OFFSET(G181,0,0,-DataWindow,1),ConfLevel, metric),"") -> 
B183: 173 | C183: 0.0642 | D183: 0.02989 | E183: =IF(ReturnsType="Relative", (C183/C182-1)*IRNow1*ApproxDuration(C183,5), (C183-C182)*ApproxDuration(C183,5)) -> 0.0005421417974 | F183: =IF(ReturnsType="Relative", (D183/D182-1)*IRNow2*ApproxDuration(D183,5), (D183-D182)*ApproxDuration(D183,5)) -> -0.000884482768 | G183: -0.0003423409706 | H183: =IF(DataWindow<B183,-CalcIM(OFFSET(E182,0,0,-DataWindow,1),ConfLevel, metric),"") ->  | J183: =IF(DataWindow<B183,-CalcIM(OFFSET(G182,0,0,-DataWindow,1),ConfLevel, metric),"") -> 
B184: 174 | C184: 0.0639 | D184: 0.0297852 | E184: =IF(ReturnsType="Relative", (C184/C183-1)*IRNow1*ApproxDuration(C184,5), (C184-C183)*ApproxDuration(C184,5)) -> -0.0005399917026 | F184: =IF(ReturnsType="Relative", (D184/D183-1)*IRNow2*ApproxDuration(D184,5), (D184-D183)*ApproxDuration(D184,5)) -> -0.0005818627508 | G184: -0.001121854453 | H184: =IF(DataWindow<B184,-CalcIM(OFFSET(E183,0,0,-DataWindow,1),ConfLevel, metric),"") ->  | J184: =IF(DataWindow<B184,-CalcIM(OFFSET(G183,0,0,-DataWindow,1),ConfLevel, metric),"") -> 
B185: 175 | C185: 0.0637 | D185: 0.0296398 | E185: =IF(ReturnsType="Relative", (C185/C184-1)*IRNow1*ApproxDuration(C185,5), (C185-C184)*ApproxDuration(C185,5)) -> -0.0003618558676 | F185: =IF(ReturnsType="Relative", (D185/D184-1)*IRNow2*ApproxDuration(D185,5), (D185-D184)*ApproxDuration(D185,5)) -> -0.0008104067184 | G185: -0.001172262586 | H185: =IF(DataWindow<B185,-CalcIM(OFFSET(E184,0,0,-DataWindow,1),ConfLevel, metric),"") ->  | J185: =IF(DataWindow<B185,-CalcIM(OFFSET(G184,0,0,-DataWindow,1),ConfLevel, metric),"") -> 
B186: 176 | C186: 0.0643 | D186: 0.0296982 | E186: =IF(ReturnsType="Relative", (C186/C185-1)*IRNow1*ApproxDuration(C186,5), (C186-C185)*ApproxDuration(C186,5)) -> 0.001087430582 | F186: =IF(ReturnsType="Relative", (D186/D185-1)*IRNow2*ApproxDuration(D186,5), (D186-D185)*ApproxDuration(D186,5)) -> 0.0003270505511 | G186: 0.001414481133 | H186: =IF(DataWindow<B186,-CalcIM(OFFSET(E185,0,0,-DataWindow,1),ConfLevel, metric),"") ->  | J186: =IF(DataWindow<B186,-CalcIM(OFFSET(G185,0,0,-DataWindow,1),ConfLevel, metric),"") -> 
B187: 177 | C187: 0.0655 | D187: 0.0296174 | E187: =IF(ReturnsType="Relative", (C187/C186-1)*IRNow1*ApproxDuration(C187,5), (C187-C186)*ApproxDuration(C187,5)) -> 0.002148460903 | F187: =IF(ReturnsType="Relative", (D187/D186-1)*IRNow2*ApproxDuration(D187,5), (D187-D186)*ApproxDuration(D187,5)) -> -0.0004516937696 | G187: 0.001696767134 | H187: =IF(DataWindow<B187,-CalcIM(OFFSET(E186,0,0,-DataWindow,1),ConfLevel, metric),"") ->  | J187: =IF(DataWindow<B187,-CalcIM(OFFSET(G186,0,0,-DataWindow,1),ConfLevel, metric),"") -> 
B188: 178 | C188: 0.0649 | D188: 0.0293162 | E188: =IF(ReturnsType="Relative", (C188/C187-1)*IRNow1*ApproxDuration(C188,5), (C188-C187)*ApproxDuration(C188,5)) -> -0.001056046986 | F188: =IF(ReturnsType="Relative", (D188/D187-1)*IRNow2*ApproxDuration(D188,5), (D188-D187)*ApproxDuration(D188,5)) -> -0.00168962334 | G188: -0.002745670326 | H188: =IF(DataWindow<B188,-CalcIM(OFFSET(E187,0,0,-DataWindow,1),ConfLevel, metric),"") ->  | J188: =IF(DataWindow<B188,-CalcIM(OFFSET(G187,0,0,-DataWindow,1),ConfLevel, metric),"") -> 
B189: 179 | C189: 0.066 | D189: 0.0288902 | E189: =IF(ReturnsType="Relative", (C189/C188-1)*IRNow1*ApproxDuration(C189,5), (C189-C188)*ApproxDuration(C189,5)) -> 0.001948910939 | F189: =IF(ReturnsType="Relative", (D189/D188-1)*IRNow2*ApproxDuration(D189,5), (D189-D188)*ApproxDuration(D189,5)) -> -0.002416768751 | G189: -0.0004678578117 | H189: =IF(DataWindow<B189,-CalcIM(OFFSET(E188,0,0,-DataWindow,1),ConfLevel, metric),"") ->  | J189: =IF(DataWindow<B189,-CalcIM(OFFSET(G188,0,0,-DataWindow,1),ConfLevel, metric),"") -> 
B190: 180 | C190: 0.0655 | D190: 0.029198 | E190: =IF(ReturnsType="Relative", (C190/C189-1)*IRNow1*ApproxDuration(C190,5), (C190-C189)*ApproxDuration(C190,5)) -> -0.0008721340661 | F190: =IF(ReturnsType="Relative", (D190/D189-1)*IRNow2*ApproxDuration(D190,5), (D190-D189)*ApproxDuration(D190,5)) -> 0.001770619068 | G190: 0.0008984850015 | H190: =IF(DataWindow<B190,-CalcIM(OFFSET(E189,0,0,-DataWindow,1),ConfLevel, metric),"") ->  | J190: =IF(DataWindow<B190,-CalcIM(OFFSET(G189,0,0,-DataWindow,1),ConfLevel, metric),"") -> 
B191: 181 | C191: 0.065 | D191: 0.0290268 | E191: =IF(ReturnsType="Relative", (C191/C190-1)*IRNow1*ApproxDuration(C191,5), (C191-C190)*ApproxDuration(C191,5)) -> -0.0008798310572 | F191: =IF(ReturnsType="Relative", (D191/D190-1)*IRNow2*ApproxDuration(D191,5), (D191-D190)*ApproxDuration(D191,5)) -> -0.0009748529179 | G191: -0.001854683975 | H191: =IF(DataWindow<B191,-CalcIM(OFFSET(E190,0,0,-DataWindow,1),ConfLevel, metric),"") ->  | J191: =IF(DataWindow<B191,-CalcIM(OFFSET(G190,0,0,-DataWindow,1),ConfLevel, metric),"") -> 
B192: 182 | C192: 0.0656 | D192: 0.028981 | E192: =IF(ReturnsType="Relative", (C192/C191-1)*IRNow1*ApproxDuration(C192,5), (C192-C191)*ApproxDuration(C192,5)) -> 0.001062410666 | F192: =IF(ReturnsType="Relative", (D192/D191-1)*IRNow2*ApproxDuration(D192,5), (D192-D191)*ApproxDuration(D192,5)) -> -0.0002623634194 | G192: 0.0008000472468 | H192: =IF(DataWindow<B192,-CalcIM(OFFSET(E191,0,0,-DataWindow,1),ConfLevel, metric),"") ->  | J192: =IF(DataWindow<B192,-CalcIM(OFFSET(G191,0,0,-DataWindow,1),ConfLevel, metric),"") -> 
B193: 183 | C193: 0.0666 | D193: 0.0289744 | E193: =IF(ReturnsType="Relative", (C193/C192-1)*IRNow1*ApproxDuration(C193,5), (C193-C192)*ApproxDuration(C193,5)) -> 0.001750348998 | F193: =IF(ReturnsType="Relative", (D193/D192-1)*IRNow2*ApproxDuration(D193,5), (D193-D192)*ApproxDuration(D193,5)) -> -3.786818818e-05 | G193: 0.00171248081 | H193: =IF(DataWindow<B193,-CalcIM(OFFSET(E192,0,0,-DataWindow,1),ConfLevel, metric),"") ->  | J193: =IF(DataWindow<B193,-CalcIM(OFFSET(G192,0,0,-DataWindow,1),ConfLevel, metric),"") -> 
B194: 184 | C194: 0.067 | D194: 0.0287806 | E194: =IF(ReturnsType="Relative", (C194/C193-1)*IRNow1*ApproxDuration(C194,5), (C194-C193)*ApproxDuration(C194,5)) -> 0.0006889759911 | F194: =IF(ReturnsType="Relative", (D194/D193-1)*IRNow2*ApproxDuration(D194,5), (D194-D193)*ApproxDuration(D194,5)) -> -0.001112727018 | G194: -0.0004237510267 | H194: =IF(DataWindow<B194,-CalcIM(OFFSET(E193,0,0,-DataWindow,1),ConfLevel, metric),"") ->  | J194: =IF(DataWindow<B194,-CalcIM(OFFSET(G193,0,0,-DataWindow,1),ConfLevel, metric),"") -> 
B195: 185 | C195: 0.0662 | D195: 0.0285442 | E195: =IF(ReturnsType="Relative", (C195/C194-1)*IRNow1*ApproxDuration(C195,5), (C195-C194)*ApproxDuration(C195,5)) -> -0.001372315541 | F195: =IF(ReturnsType="Relative", (D195/D194-1)*IRNow2*ApproxDuration(D195,5), (D195-D194)*ApproxDuration(D195,5)) -> -0.001367248577 | G195: -0.002739564117 | H195: =IF(DataWindow<B195,-CalcIM(OFFSET(E194,0,0,-DataWindow,1),ConfLevel, metric),"") ->  | J195: =IF(DataWindow<B195,-CalcIM(OFFSET(G194,0,0,-DataWindow,1),ConfLevel, metric),"") -> 
B196: 186 | C196: 0.0667 | D196: 0.0285314 | E196: =IF(ReturnsType="Relative", (C196/C195-1)*IRNow1*ApproxDuration(C196,5), (C196-C195)*ApproxDuration(C196,5)) -> 0.0008670376372 | F196: =IF(ReturnsType="Relative", (D196/D195-1)*IRNow2*ApproxDuration(D196,5), (D196-D195)*ApproxDuration(D196,5)) -> -7.464582329e-05 | G196: 0.0007923918139 | H196: =IF(DataWindow<B196,-CalcIM(OFFSET(E195,0,0,-DataWindow,1),ConfLevel, metric),"") ->  | J196: =IF(DataWindow<B196,-CalcIM(OFFSET(G195,0,0,-DataWindow,1),ConfLevel, metric),"") -> 
B197: 187 | C197: 0.0675 | D197: 0.0291658 | E197: =IF(ReturnsType="Relative", (C197/C196-1)*IRNow1*ApproxDuration(C197,5), (C197-C196)*ApproxDuration(C197,5)) -> 0.00137426339 | F197: =IF(ReturnsType="Relative", (D197/D196-1)*IRNow2*ApproxDuration(D197,5), (D197-D196)*ApproxDuration(D197,5)) -> 0.003695568634 | G197: 0.005069832023 | H197: =IF(DataWindow<B197,-CalcIM(OFFSET(E196,0,0,-DataWindow,1),ConfLevel, metric),"") ->  | J197: =IF(DataWindow<B197,-CalcIM(OFFSET(G196,0,0,-DataWindow,1),ConfLevel, metric),"") -> 
B198: 188 | C198: 0.0672 | D198: 0.0287302 | E198: =IF(ReturnsType="Relative", (C198/C197-1)*IRNow1*ApproxDuration(C198,5), (C198-C197)*ApproxDuration(C198,5)) -> -0.0005096015968 | F198: =IF(ReturnsType="Relative", (D198/D197-1)*IRNow2*ApproxDuration(D198,5), (D198-D197)*ApproxDuration(D198,5)) -> -0.002484944537 | G198: -0.002994546133 | H198: =IF(DataWindow<B198,-CalcIM(OFFSET(E197,0,0,-DataWindow,1),ConfLevel, metric),"") ->  | J198: =IF(DataWindow<B198,-CalcIM(OFFSET(G197,0,0,-DataWindow,1),ConfLevel, metric),"") -> 
B199: 189 | C199: 0.0675 | D199: 0.0287246 | E199: =IF(ReturnsType="Relative", (C199/C198-1)*IRNow1*ApproxDuration(C199,5), (C199-C198)*ApproxDuration(C199,5)) -> 0.0005115143309 | F199: =IF(ReturnsType="Relative", (D199/D198-1)*IRNow2*ApproxDuration(D199,5), (D199-D198)*ApproxDuration(D199,5)) -> -3.243082782e-05 | G199: 0.0004790835031 | H199: =IF(DataWindow<B199,-CalcIM(OFFSET(E198,0,0,-DataWindow,1),ConfLevel, metric),"") ->  | J199: =IF(DataWindow<B199,-CalcIM(OFFSET(G198,0,0,-DataWindow,1),ConfLevel, metric),"") -> 
B200: 190 | C200: 0.0678 | D200: 0.0285292 | E200: =IF(ReturnsType="Relative", (C200/C199-1)*IRNow1*ApproxDuration(C200,5), (C200-C199)*ApproxDuration(C200,5)) -> 0.0005088806211 | F200: =IF(ReturnsType="Relative", (D200/D199-1)*IRNow2*ApproxDuration(D200,5), (D200-D199)*ApproxDuration(D200,5)) -> -0.001132364694 | G200: -0.0006234840726 | H200: =IF(DataWindow<B200,-CalcIM(OFFSET(E199,0,0,-DataWindow,1),ConfLevel, metric),"") ->  | J200: =IF(DataWindow<B200,-CalcIM(OFFSET(G199,0,0,-DataWindow,1),ConfLevel, metric),"") -> 
B201: 191 | C201: 0.0668 | D201: 0.0286864 | E201: =IF(ReturnsType="Relative", (C201/C200-1)*IRNow1*ApproxDuration(C201,5), (C201-C200)*ApproxDuration(C201,5)) -> -0.001692753405 | F201: =IF(ReturnsType="Relative", (D201/D200-1)*IRNow2*ApproxDuration(D201,5), (D201-D200)*ApproxDuration(D201,5)) -> 0.0009168791316 | G201: -0.0007758742731 | H201: =IF(DataWindow<B201,-CalcIM(OFFSET(E200,0,0,-DataWindow,1),ConfLevel, metric),"") ->  | J201: =IF(DataWindow<B201,-CalcIM(OFFSET(G200,0,0,-DataWindow,1),ConfLevel, metric),"") -> 
B202: 192 | C202: 0.0668 | D202: 0.0287256 | E202: =IF(ReturnsType="Relative", (C202/C201-1)*IRNow1*ApproxDuration(C202,5), (C202-C201)*ApproxDuration(C202,5)) -> 0 | F202: =IF(ReturnsType="Relative", (D202/D201-1)*IRNow2*ApproxDuration(D202,5), (D202-D201)*ApproxDuration(D202,5)) -> 0.0002273618603 | G202: 0.0002273618603 | H202: =IF(DataWindow<B202,-CalcIM(OFFSET(E201,0,0,-DataWindow,1),ConfLevel, metric),"") ->  | J202: =IF(DataWindow<B202,-CalcIM(OFFSET(G201,0,0,-DataWindow,1),ConfLevel, metric),"") -> 
B203: 193 | C203: 0.0668 | D203: 0.0281798 | E203: =IF(ReturnsType="Relative", (C203/C202-1)*IRNow1*ApproxDuration(C203,5), (C203-C202)*ApproxDuration(C203,5)) -> 0 | F203: =IF(ReturnsType="Relative", (D203/D202-1)*IRNow2*ApproxDuration(D203,5), (D203-D202)*ApproxDuration(D203,5)) -> -0.003165560137 | G203: -0.003165560137 | H203: =IF(DataWindow<B203,-CalcIM(OFFSET(E202,0,0,-DataWindow,1),ConfLevel, metric),"") ->  | J203: =IF(DataWindow<B203,-CalcIM(OFFSET(G202,0,0,-DataWindow,1),ConfLevel, metric),"") -> 
... 3558 more rows
